Workbook

Sheet Cover
A1: Cover
A3: Workbook title: | B3: PR24PD14 Cost sharing & total costs reconciliation
A4: Version: | B4: 4f
A5: Filename: | B5: PR24PD14 Cost-sharing-&-total-costs-Reconcilation-v4f - ANH
A6: Date: | B6: December 2024
A7: Author: | B7: Ofwat
A8: Author contact information: | B8: PR24@ofwat.gov.uk
A11: Summary of workbook: | B11: The cost sharing reconciliation model calculates any adjustment for underperformance or outperformance against forecast totex at the PR19 final determinations.
B12: Separate adjustments are made for wage growth, net totex and business rates and abstraction charges.
B13: The price base of the model is 2017-18 FYA CPIH with time value of money adjustments to 2024-25 present values using
B14: the FD wholesale WACC deflated for long-term CPIH.
A16: Known limitations: | B16: This model is subject to consultation and consequently may be subject to further changes.
A18: Instructions: | B18: na
A20: Amendments: | B20: Below are details of changes to the model from the version 4a published Mar 23. The changes fix issues that have been identified and implements a change to include a bonus adjustment in the reconciliation calculations.
B22: Category | C22: Sheet(s) in current model | D22: Description of change(s) made | E22: Model link(s)
B23: Policy Implementation | C23: InpActive, Cost sharing calculations, Bioresources, Thames Tideway Tunnel | D23: The model has been amended to adjust the reconciliation adjustments for performance related pay recovery adjustments where they are not appropriate. A new input has been added which is removed from the final adjustments for each control. For applicable controls this adjustment is also removed from baseline allowances and actual totex spends when calculation cost sharing adjustments. | E23: =InpActive!$E$44 -> Performance related pay recovery mechanism adjustment - WR - Nominal (Neg)
E24: ='Cost sharing calculations'!$E$96 -> Actual net totex for cost sharing reconciliation - WR - Real
E25: ='Cost sharing calculations'!$E$101 -> Total Performance related pay recovery mechanism adjustment - WR - real
E26: ='Cost sharing calculations'!$E$106 -> Actual net totex for cost sharing reconciliation - WR - Real
E27: ='Cost sharing calculations'!$E$127 -> Net totex available for cost sharing after adjustments profiled - WR - Real
E28: ='Cost sharing calculations'!$E$180 -> Total adjustment for cost sharing after ex ante allowance & wage adjustment - WR - Real
B29: Refinement | C29: Abstraction & Rates | D29: Model previously linked to business rates row, this has been amended to link to the abstraction charges line | E29: ='Abstraction & Rates'!$F$48 -> 47.359
B30: Refinement | C30: Abstraction & Rates | D30: Calculation has been amended to remove fixed reference linking to the business rate lines | E30: ='Abstraction & Rates'!$F$70 -> -4.072496415
E31: ='Abstraction & Rates'!$F$74 -> 0
B32: Refinement | C32: Cost sharing calculations | D32: Calculation has been amended to calculate customer share instead of the company share | E32: ='Cost sharing calculations'!$F$353 -> 0
E33: ='Cost sharing calculations'!$F$526 -> 0
B34: Refinement | C34: Cost sharing calculations, Bioresources | D34: Updated formulas to link to actuals instead of allowances | E34: ='Cost sharing calculations'!$E$498 -> Actuals for CMA excluded items - WWN - nominal
E35: =Bioresources!$E$67 -> Actuals for CMA excluded items - BIO - nominal
B36: Refinement | C36: Cost sharing calculations, Bioresources | D36: Updated formulas to link to allowances instead of actuals | E36: ='Cost sharing calculations'!$E$502 -> Allowance for CMA excluded items - WWN - real
E37: =Bioresources!$E$71 -> Allowance for CMA excluded items - BIO - real
B38: Refinement | C38: Bioresources | D38: Original formula referred to blank row, this has amended to look at rows above. | E38: =Bioresources!$F$91 -> -1.874182722
E39: =Bioresources!$F$95 -> -0.3890653762
B40: Refinement | C40: Cost sharing calculations, Bioresources | D40: Line originally referred to total variance for the AMP, this has been updated to look up to the annual basis. | E40: =Bioresources!$E$75 -> Variance to allowances for CMA excluded items - BIO
E41: ='Cost sharing calculations'!$E$506 -> Variance to allowances for CMA excluded items - WWN
B42: Refinement | C42: Bioresources | D42: Updated formula in cell F95 to read calculate RCV adjustment on total adjustment * (1 - PAYG rate) | E42: =Bioresources!$F$95 -> -0.3890653762
A44: References: | B44: Totex allowances made in the final determinations
B45: PAYG rates from the final determinations
B46: OBR Forecast wage growth from the final determinations
B47: WACC from the final determinations
B48: Cost sharing rates and ex ante allowances from Final determinations
B49: ASHE Gross Hourly Wage index
B50: Actual CPIH index published by the ONS
A52: Error Checks: | B52: Total error check status
B53: =Check!$F$8 -> 0
A56: END OF SHEET

Sheet Documentation-->

Sheet Style Guide
A1: =RIGHT(CELL("filename", $A$1), LEN(CELL("filename", $A$1)) - SEARCH("]", CELL("filename", $A$1))) -> Style Guide
A3: SHEET TABS
H5: Light Yellow | J5: Input sheets
H7: No colour (default Excel tab colour) | J7: Calculation and documentation sheets
H9: Pale Blue | J9: Key output sheets
H11: Turquoise | J11: Quality control sheets
H13: Yellow | J13: To be completed, temporary, restructured, or deleted
A16: COLOUR
B18: Font colour only
H19: Blue font | J19: Imported from another sheet
H21: Red font | J21: Exported to another sheet (except from Input sheets)
H23: Black font | J23: Within sheet link or calculation
B25: Font + shade combinations
H26: Black font + Light Yellow shade | J26: Inputs
H28: Black font + Light Yellow shade with grey stripe | J28: Inputs that are not expected to be changed
H30: Black font + Light Grey shade on entire row | J30: Within-worksheet counter-flow
H32: Blue font + Light Grey shade on entire row | J32: Between-worksheet counter-flow
H34: Empty Cell with Light Grey shade | J34: Empty cells being deliberately referenced
B36: Other
H37: Black font + Pale Blue shade on entire row | J37: Section separator
H39: Light Turquoise shade | J39: Stored/dead/hard coded outputs
H41: Tan shade | J41: Pre-model time line actuals
H43: Yellow shade | J43: Work in progress / temporary
H45: Lime shade | J45: Values or logic to be reviewed
B47: Error checks
H48: Green shade | J48: OK
H50: Red shade | J50: Error
A52: End of sheet

Sheet ToC
A1: =RIGHT(CELL("filename", $A$1), LEN(CELL("filename", $A$1)) - SEARCH("]", CELL("filename", $A$1))) -> ToC
B3: ASSUMPTIONS | D3: INPUTS | F3: CALCULATIONS | H3: OUTPUTS | J3: Quality Control
B5: =Cover!A1 -> Cover | D5: =InpActive!A1 -> InpActive | F5: =Index!A1 -> Index | H5: =Outputs!A1 -> Outputs | J5: =Check!A1 -> Check
B6: Model documentation sheet | D6: Inputs sheet | F6: All the indexation related calculations are done in this sheet. | H6: Main output sheet showing total cost sharing adjustments | J6: Contains all the model integrity checks and alerts
B8: ='Style Guide'!A1 -> Style Guide | F8: =Time!A1 -> Time
B9: Explanation of different formatting types | F9: The model timeline and flag calculations are done in this sheet.
B11: =A1 -> ToC | F11: ='Cost sharing calculations'!A1 -> Cost sharing calculations
B12: Table of contents | F12: Calculates the cost sharing adjustments to be made at PR24
F14: Abstraction & Rates
F15: Calculates the sharing adjustments for business rates and abstraction charges to be made at PR24
F17: =Bioresources!$A$1 -> Bioresources
F18: Calculates the totex reconciliation adjustments for bioresources to be made at PR24
F20: Thames Tideway Tunnel
F21: Calculates the sharing adjustments for Thames Tideway Tunnel to be made PR24
F23: Green recovery
F24: Calculates the cost sharing adjustments for green recovery to be made at PR24
A26: End of sheet

Sheet Inputs-->

Sheet F_Inputs-APR & PR19
C1: APR/PR19 cost rec inputs | E1: Run on 19 Feb 2024 12:17
A2: Acronym | B2: Reference | C2: Item description | D2: Unit | E2: Model | F2: Cyclical | L2: Price Review 2019
F4: Default for Cyclical base run | L4: Default for Price Review 2019 base run
F5: Latest | L5: Latest
F6: 2020-21 | G6: 2021-22 | H6: 2022-23 | I6: 2023-24 | J6: 2024-25 | K6: 2020-25 | L6: 2020-21 | M6: 2021-22 | N6: 2022-23 | O6: 2023-24 | P6: 2024-25 | Q6: 2020-25
A7: ANH | B7: B0143TAWR | C7: Totex (net of business rates, abstraction licence fees and grants and contributions) - Total actual totex (net of business rates, abstraction licence fees and grants and contributions) - 12 months ended 31 March 2021 - Water resources | D7: £m | E7: Cyclical Foundation | F7: 33.33 | G7: 36.60945457 | H7: 37.1294327
A8: ANH | B8: B0143TAWNP | C8: Totex (net of business rates, abstraction licence fees and grants and contributions) - Total actual totex (net of business rates, abstraction licence fees and grants and contributions) - 12 months ended 31 March 2021 - Water network plus | D8: £m | E8: Cyclical Foundation | F8: 344.248 | G8: 398.6768109 | H8: 502.026001
A9: ANH | B9: B0143TAWWNP | C9: Totex (net of business rates, abstraction licence fees and grants and contributions) - Total actual totex (net of business rates, abstraction licence fees and grants and contributions) - 12 months ended 31 March 2021 - Wastewater network plus | D9: £m | E9: Cyclical Foundation | F9: 403.058 | G9: 442.1774836 | H9: 506.2691223
A10: ANH | B10: B0143TATTTH | C10: Totex (net of business rates, abstraction licence fees and grants and contributions) - Total actual totex (net of business rates, abstraction licence fees and grants and contributions) - 12 months ended 31 March 2021 - Thames Tideway/ Havant Thicket | D10: £m | E10: Cyclical Foundation | F10: 0 | G10: 0 | H10: 0
A11: ANH | B11: B0413TGTE_WR | C11: Total green recovery programme expenditure - Totex - Expenditure in report year - Water resources | D11: £m | E11: Cyclical Foundation | G11: 0 | H11: 0
A12: ANH | B12: B0420TGTE_RW | C12: Total green recovery programme expenditure - Totex - Expenditure in report year - Water network+ Raw water transport | D12: £m | E12: Cyclical Foundation | G12: 0 | H12: 0
A13: ANH | B13: B0427TGTE_SW | C13: Total green recovery programme expenditure - Totex - Expenditure in report year - Water network+ Raw water storage | D13: £m | E13: Cyclical Foundation | G13: 0 | H13: 0
A14: ANH | B14: B0434TGTE_TW | C14: Total green recovery programme expenditure - Totex - Expenditure in report year - Water network+ Water treatment | D14: £m | E14: Cyclical Foundation | G14: 0 | H14: 0
A15: ANH | B15: B0441TGTE_DW | C15: Total green recovery programme expenditure - Totex - Expenditure in report year - Water network+ Treated water distribution | D15: £m | E15: Cyclical Foundation | G15: 0 | H15: 0
A16: ANH | B16: B0513TGTE_FOW | C16: Total green recovery programme expenditure - Totex - Expenditure in report year - Wastewater network+ Foul | D16: £m | E16: Cyclical Foundation | G16: 0 | H16: 0
A17: ANH | B17: B0520TGTE_SUW | C17: Total green recovery programme expenditure - Totex - Expenditure in report year - Wastewater network+ Surface water drainage | D17: £m | E17: Cyclical Foundation | G17: 0 | H17: 0
A18: ANH | B18: B0527TGTE_HDW | C18: Total green recovery programme expenditure - Totex - Expenditure in report year - Wastewater network+ Highway drainage | D18: £m | E18: Cyclical Foundation | G18: 0 | H18: 0
A19: ANH | B19: B0534TGTE_STW | C19: Total green recovery programme expenditure - Totex - Expenditure in report year - Wastewater network+ Sewage treatment and disposal | D19: £m | E19: Cyclical Foundation | G19: 0 | H19: 0
A20: ANH | B20: B0541TGTE_SLW | C20: Total green recovery programme expenditure - Totex - Expenditure in report year - Wastewater network+ Sludge liquor treatment | D20: £m | E20: Cyclical Foundation | G20: 0 | H20: 0
A21: ANH | B21: WS01008WR | C21: Operating expenditure - Local authority and Cumulo rates - Water resources | D21: £m | E21: Cyclical Foundation | F21: 2.545 | G21: 2.886939877 | H21: 2.376
A22: ANH | B22: BM317WN | C22: Local authority and Cumulo rates - Water Network+ | D22: £m | E22: Cyclical Foundation | F22: 37.585 | G22: 37.852372 | H22: 30.828
A23: ANH | B23: BM817WNK | C23: Local authority and Cumulo rates - Wastewater Network+ | D23: £m | E23: Cyclical Foundation | F23: 21.362 | G23: 19.9665633 | H23: 20.75397836
A24: ANH | B24: BM817SG | C24: Local authority and Cumulo rates - Sludge | D24: £m | E24: Cyclical Foundation | F24: 3.287 | G24: 3.12346506 | H24: 3.21163789
A25: ANH | B25: BM817TTT | C25: Local authority rates - TTT | D25: £m | E25: Cyclical Foundation | G25: 0
A26: ANH | B26: C_TBC_WR_PR19CA004_OFWAT | C26: Total base costs exclude enhancemnt opex - Water resources - OFWAT view | D26: £m | E26: Price Review 2019 | Q26: 194.6660001
A27: ANH | B27: C_TBC_WN_PR19CA004_OFWAT | C27: Total base costs exclude enhancemnt opex - Water network plus - OFWAT view | D27: £m | E27: Price Review 2019 | Q27: 1361.701245
A28: ANH | B28: C_TBC_WBR_PR19CA008_OFWAT | C28: Total base costs - Bioresources - OFWAT view | D28: £m | E28: Price Review 2019 | Q28: 383.3802375
A29: ANH | B29: C_TBC_WWN_PR19CA008_OFWAT | C29: Total base costs - Wastewater network plus - OFWAT view | D29: £m | E29: Price Review 2019 | Q29: 1785.812407
A30: ANH | B30: C_UBC_WR_PR19CA004_OFWAT | C30: Unmodelled base costs (Local authority and cumulo rates ) - Water resources - OFWAT view | D30: £m | E30: Price Review 2019 | Q30: 15.01787928
A31: ANH | B31: C_UBC_WN_PR19CA004_OFWAT | C31: Unmodelled base costs (Local authority and cumulo rates ) - Water network plus - OFWAT view | D31: £m | E31: Price Review 2019 | Q31: 173.7364231
A32: ANH | B32: C_UBC_WBR_PR19CA008_OFWAT | C32: Base costs - Unmodelled base costs (Local authority and cumulo rates ) - Bioresources - OFWAT view | D32: £m | E32: Price Review 2019 | Q32: 14.05712194
A33: ANH | B33: C_UBC_WWN_PR19CA008_OFWAT | C33: Base costs - Unmodelled base costs (Local authority and cumulo rates ) - Wastewater network plus - OFWAT view | D33: £m | E33: Price Review 2019 | Q33: 100.3146114
A34: ANH | B34: WS1003_WW4_WR | C34: Unmodelled base costs (Abstraction charges / discharge consent) WR | D34: £m | E34: Price Review 2019 | Q34: 46.10967993
A35: ANH | B35: WS1003_WW4_WN | C35: Unmodelled base costs (Abstraction charges / discharge consent) WN | D35: £m | E35: Price Review 2019 | Q35: 2.274785784
A36: ANH | B36: C_WWN_OUTPERFORM_001 | C36: Cost sharing rate for outperform | D36: % | E36: Price Review 2019 | Q36: 0.3496275683
A37: ANH | B37: C_WWN_UNDERPERFORM_001 | C37: Cost sharing rate for underperform | D37: % | E37: Price Review 2019 | Q37: 0.6503724317
A38: ANH | B38: B0012WR | C38: Abstraction charges/ discharge consents - Water resources | D38: £m | E38: Cyclical Foundation | F38: 9.869 | G38: 10.10863124 | H38: 10.09556575
A39: ANH | B39: B0012WN | C39: Abstraction charges/ discharge consents - Water Network+ | D39: £m | E39: Cyclical Foundation | F39: 0.507 | G39: 0.488752 | H39: 0.48298692
A40: ANH | B40: C_WR_CS_EXANTE_001 | C40: Ex-ante allowance above Ofwat forecast - Active - Water Resources | D40: £m | E40: Price Review 2019 | Q40: 0
A41: ANH | B41: C_WN_CS_EXANTE_001 | C41: Ex-ante allowance above Ofwat forecast - Active - Water Network | D41: £m | E41: Price Review 2019 | Q41: 0
A42: ANH | B42: C_WWN_CS_EXANTE_001 | C42: Ex-ante allowance above Ofwat forecast - Active - Wastewater Network | D42: £m | E42: Price Review 2019 | Q42: 0
A43: ANH | B43: C_WR_WN_OUTPERFORM_001 | C43: Cost sharing rate for outperform | D43: % | E43: Price Review 2019 | Q43: 0.3189391196
A44: ANH | B44: C_WR_WN_UNDERPERFORM_001 | C44: Cost sharing rate for underperform | D44: % | E44: Price Review 2019 | Q44: 0.6810608804
A45: WSH | B45: B0143TAWR | C45: Totex (net of business rates, abstraction licence fees and grants and contributions) - Total actual totex (net of business rates, abstraction licence fees and grants and contributions) - 12 months ended 31 March 2021 - Water resources | D45: £m | E45: Cyclical Foundation | F45: 52.355 | G45: 38.0685 | H45: 50.47
A46: WSH | B46: B0143TAWNP | C46: Totex (net of business rates, abstraction licence fees and grants and contributions) - Total actual totex (net of business rates, abstraction licence fees and grants and contributions) - 12 months ended 31 March 2021 - Water network plus | D46: £m | E46: Cyclical Foundation | F46: 234.892 | G46: 237.884196 | H46: 283.687
A47: WSH | B47: B0143TAWWNP | C47: Totex (net of business rates, abstraction licence fees and grants and contributions) - Total actual totex (net of business rates, abstraction licence fees and grants and contributions) - 12 months ended 31 March 2021 - Wastewater network plus | D47: £m | E47: Cyclical Foundation | F47: 261.916 | G47: 236.082 | H47: 266.781
A48: WSH | B48: B0143TATTTH | C48: Totex (net of business rates, abstraction licence fees and grants and contributions) - Total actual totex (net of business rates, abstraction licence fees and grants and contributions) - 12 months ended 31 March 2021 - Thames Tideway/ Havant Thicket | D48: £m | E48: Cyclical Foundation | F48: 0 | G48: 0 | H48: 0
A49: WSH | B49: B0413TGTE_WR | C49: Total green recovery programme expenditure - Totex - Expenditure in report year - Water resources | D49: £m | E49: Cyclical Foundation | G49: 0 | H49: 0
A50: WSH | B50: B0420TGTE_RW | C50: Total green recovery programme expenditure - Totex - Expenditure in report year - Water network+ Raw water transport | D50: £m | E50: Cyclical Foundation | G50: 0 | H50: 0
A51: WSH | B51: B0427TGTE_SW | C51: Total green recovery programme expenditure - Totex - Expenditure in report year - Water network+ Raw water storage | D51: £m | E51: Cyclical Foundation | G51: 0 | H51: 0
A52: WSH | B52: B0434TGTE_TW | C52: Total green recovery programme expenditure - Totex - Expenditure in report year - Water network+ Water treatment | D52: £m | E52: Cyclical Foundation | G52: 0 | H52: 0
A53: WSH | B53: B0441TGTE_DW | C53: Total green recovery programme expenditure - Totex - Expenditure in report year - Water network+ Treated water distribution | D53: £m | E53: Cyclical Foundation | G53: 0 | H53: 0
A54: WSH | B54: B0513TGTE_FOW | C54: Total green recovery programme expenditure - Totex - Expenditure in report year - Wastewater network+ Foul | D54: £m | E54: Cyclical Foundation | G54: 0 | H54: 0
A55: WSH | B55: B0520TGTE_SUW | C55: Total green recovery programme expenditure - Totex - Expenditure in report year - Wastewater network+ Surface water drainage | D55: £m | E55: Cyclical Foundation | G55: 0 | H55: 0
A56: WSH | B56: B0527TGTE_HDW | C56: Total green recovery programme expenditure - Totex - Expenditure in report year - Wastewater network+ Highway drainage | D56: £m | E56: Cyclical Foundation | G56: 0 | H56: 0
A57: WSH | B57: B0534TGTE_STW | C57: Total green recovery programme expenditure - Totex - Expenditure in report year - Wastewater network+ Sewage treatment and disposal | D57: £m | E57: Cyclical Foundation | G57: 0 | H57: 0
A58: WSH | B58: B0541TGTE_SLW | C58: Total green recovery programme expenditure - Totex - Expenditure in report year - Wastewater network+ Sludge liquor treatment | D58: £m | E58: Cyclical Foundation | G58: 0 | H58: 0
A59: WSH | B59: WS01008WR | C59: Operating expenditure - Local authority and Cumulo rates - Water resources | D59: £m | E59: Cyclical Foundation | F59: 0.764 | G59: 0.788 | H59: 2.232
A60: WSH | B60: BM317WN | C60: Local authority and Cumulo rates - Water Network+ | D60: £m | E60: Cyclical Foundation | F60: 15.228 | G60: 15.504 | H60: 13.913
A61: WSH | B61: BM817WNK | C61: Local authority and Cumulo rates - Wastewater Network+ | D61: £m | E61: Cyclical Foundation | F61: 8.153 | G61: 7.852 | H61: 8.291
A62: WSH | B62: BM817SG | C62: Local authority and Cumulo rates - Sludge | D62: £m | E62: Cyclical Foundation | F62: 0.64 | G62: 0.572 | H62: 0.64
A63: WSH | B63: BM817TTT | C63: Local authority rates - TTT | D63: £m | E63: Cyclical Foundation | G63: 0 | H63: 0
A64: WSH | B64: C_TBC_WR_PR19CA004_OFWAT | C64: Total base costs exclude enhancemnt opex - Water resources - OFWAT view | D64: £m | E64: Price Review 2019 | Q64: 159.4676905
A65: WSH | B65: C_TBC_WN_PR19CA004_OFWAT | C65: Total base costs exclude enhancemnt opex - Water network plus - OFWAT view | D65: £m | E65: Price Review 2019 | Q65: 963.4514527
A66: WSH | B66: C_TBC_WBR_PR19CA008_OFWAT | C66: Total base costs - Bioresources - OFWAT view | D66: £m | E66: Price Review 2019 | Q66: 117.5093943
A67: WSH | B67: C_TBC_WWN_PR19CA008_OFWAT | C67: Total base costs - Wastewater network plus - OFWAT view | D67: £m | E67: Price Review 2019 | Q67: 1047.898597
A68: WSH | B68: C_UBC_WR_PR19CA004_OFWAT | C68: Unmodelled base costs (Local authority and cumulo rates ) - Water resources - OFWAT view | D68: £m | E68: Price Review 2019 | Q68: 2.489537934
A69: WSH | B69: C_UBC_WN_PR19CA004_OFWAT | C69: Unmodelled base costs (Local authority and cumulo rates ) - Water network plus - OFWAT view | D69: £m | E69: Price Review 2019 | Q69: 72.02184428
A70: WSH | B70: C_UBC_WBR_PR19CA008_OFWAT | C70: Base costs - Unmodelled base costs (Local authority and cumulo rates ) - Bioresources - OFWAT view | D70: £m | E70: Price Review 2019 | Q70: 2.491575888
A71: WSH | B71: C_UBC_WWN_PR19CA008_OFWAT | C71: Base costs - Unmodelled base costs (Local authority and cumulo rates ) - Wastewater network plus - OFWAT view | D71: £m | E71: Price Review 2019 | Q71: 43.8044992
A72: WSH | B72: WS1003_WW4_WR | C72: Unmodelled base costs (Abstraction charges / discharge consent) WR | D72: £m | E72: Price Review 2019 | Q72: 39.58265052
A73: WSH | B73: WS1003_WW4_WN | C73: Unmodelled base costs (Abstraction charges / discharge consent) WN | D73: £m | E73: Price Review 2019 | Q73: 1.664895643
A74: WSH | B74: C_WWN_OUTPERFORM_001 | C74: Cost sharing rate for outperform | D74: % | E74: Price Review 2019 | Q74: 0.4150714664
A75: WSH | B75: C_WWN_UNDERPERFORM_001 | C75: Cost sharing rate for underperform | D75: % | E75: Price Review 2019 | Q75: 0.5849285336
A76: WSH | B76: B0012WR | C76: Abstraction charges/ discharge consents - Water resources | D76: £m | E76: Cyclical Foundation | F76: 9.387 | G76: 9.649 | H76: 9.662
A77: WSH | B77: B0012WN | C77: Abstraction charges/ discharge consents - Water Network+ | D77: £m | E77: Cyclical Foundation | F77: 0.259 | G77: 0.265 | H77: 0.24
A78: WSH | B78: C_WR_CS_EXANTE_001 | C78: Ex-ante allowance above Ofwat forecast - Active - Water Resources | D78: £m | E78: Price Review 2019 | Q78: 0
A79: WSH | B79: C_WN_CS_EXANTE_001 | C79: Ex-ante allowance above Ofwat forecast - Active - Water Network | D79: £m | E79: Price Review 2019 | Q79: 0
A80: WSH | B80: C_WWN_CS_EXANTE_001 | C80: Ex-ante allowance above Ofwat forecast - Active - Wastewater Network | D80: £m | E80: Price Review 2019 | Q80: 0
A81: WSH | B81: C_WR_WN_OUTPERFORM_001 | C81: Cost sharing rate for outperform | D81: % | E81: Price Review 2019 | Q81: 0.4265520002
A82: WSH | B82: C_WR_WN_UNDERPERFORM_001 | C82: Cost sharing rate for underperform | D82: % | E82: Price Review 2019 | Q82: 0.5734479998
A83: HDD | B83: B0143TAWR | C83: Totex (net of business rates, abstraction licence fees and grants and contributions) - Total actual totex (net of business rates, abstraction licence fees and grants and contributions) - 12 months ended 31 March 2021 - Water resources | D83: £m | E83: Cyclical Foundation | F83: 9.263 | G83: 3.313 | H83: 4.711251841
A84: HDD | B84: B0143TAWNP | C84: Totex (net of business rates, abstraction licence fees and grants and contributions) - Total actual totex (net of business rates, abstraction licence fees and grants and contributions) - 12 months ended 31 March 2021 - Water network plus | D84: £m | E84: Cyclical Foundation | F84: 22.002 | G84: 23.083 | H84: 29.85229113
A85: HDD | B85: B0143TAWWNP | C85: Totex (net of business rates, abstraction licence fees and grants and contributions) - Total actual totex (net of business rates, abstraction licence fees and grants and contributions) - 12 months ended 31 March 2021 - Wastewater network plus | D85: £m | E85: Cyclical Foundation | F85: 4.849 | G85: 6.257 | H85: 7.166213112
A86: HDD | B86: B0143TATTTH | C86: Totex (net of business rates, abstraction licence fees and grants and contributions) - Total actual totex (net of business rates, abstraction licence fees and grants and contributions) - 12 months ended 31 March 2021 - Thames Tideway/ Havant Thicket | D86: £m | E86: Cyclical Foundation | F86: 0 | G86: 0 | H86: 0
A87: HDD | B87: B0413TGTE_WR | C87: Total green recovery programme expenditure - Totex - Expenditure in report year - Water resources | D87: £m | E87: Cyclical Foundation | G87: 0 | H87: 0
A88: HDD | B88: B0420TGTE_RW | C88: Total green recovery programme expenditure - Totex - Expenditure in report year - Water network+ Raw water transport | D88: £m | E88: Cyclical Foundation | G88: 0 | H88: 0
A89: HDD | B89: B0427TGTE_SW | C89: Total green recovery programme expenditure - Totex - Expenditure in report year - Water network+ Raw water storage | D89: £m | E89: Cyclical Foundation | G89: 0 | H89: 0
A90: HDD | B90: B0434TGTE_TW | C90: Total green recovery programme expenditure - Totex - Expenditure in report year - Water network+ Water treatment | D90: £m | E90: Cyclical Foundation | G90: 0 | H90: 0
A91: HDD | B91: B0441TGTE_DW | C91: Total green recovery programme expenditure - Totex - Expenditure in report year - Water network+ Treated water distribution | D91: £m | E91: Cyclical Foundation | G91: 0 | H91: 0
A92: HDD | B92: B0513TGTE_FOW | C92: Total green recovery programme expenditure - Totex - Expenditure in report year - Wastewater network+ Foul | D92: £m | E92: Cyclical Foundation | G92: 0 | H92: 0
A93: HDD | B93: B0520TGTE_SUW | C93: Total green recovery programme expenditure - Totex - Expenditure in report year - Wastewater network+ Surface water drainage | D93: £m | E93: Cyclical Foundation | G93: 0 | H93: 0
A94: HDD | B94: B0527TGTE_HDW | C94: Total green recovery programme expenditure - Totex - Expenditure in report year - Wastewater network+ Highway drainage | D94: £m | E94: Cyclical Foundation | G94: 0 | H94: 0
A95: HDD | B95: B0534TGTE_STW | C95: Total green recovery programme expenditure - Totex - Expenditure in report year - Wastewater network+ Sewage treatment and disposal | D95: £m | E95: Cyclical Foundation | G95: 0 | H95: 0
A96: HDD | B96: B0541TGTE_SLW | C96: Total green recovery programme expenditure - Totex - Expenditure in report year - Wastewater network+ Sludge liquor treatment | D96: £m | E96: Cyclical Foundation | G96: 0 | H96: 0
A97: HDD | B97: WS01008WR | C97: Operating expenditure - Local authority and Cumulo rates - Water resources | D97: £m | E97: Cyclical Foundation | F97: -0.278 | G97: -0.528 | H97: 0
A98: HDD | B98: BM317WN | C98: Local authority and Cumulo rates - Water Network+ | D98: £m | E98: Cyclical Foundation | F98: -0.628 | G98: 1.819 | H98: 1.255239761
A99: HDD | B99: BM817WNK | C99: Local authority and Cumulo rates - Wastewater Network+ | D99: £m | E99: Cyclical Foundation | F99: 0.287 | G99: 0.286 | H99: 0.2645132
A100: HDD | B100: BM817SG | C100: Local authority and Cumulo rates - Sludge | D100: £m | E100: Cyclical Foundation | F100: 0 | G100: 0 | H100: 0.000124347
A101: HDD | B101: BM817TTT | C101: Local authority rates - TTT | D101: £m | E101: Cyclical Foundation | G101: 0 | H101: 0
A102: HDD | B102: C_TBC_WR_PR19CA004_OFWAT | C102: Total base costs exclude enhancemnt opex - Water resources - OFWAT view | D102: £m | E102: Price Review 2019 | Q102: 11.02661511
A103: HDD | B103: C_TBC_WN_PR19CA004_OFWAT | C103: Total base costs exclude enhancemnt opex - Water network plus - OFWAT view | D103: £m | E103: Price Review 2019 | Q103: 99.79320905
A104: HDD | B104: C_TBC_WBR_PR19CA008_OFWAT | C104: Total base costs - Bioresources - OFWAT view | D104: £m | E104: Price Review 2019 | Q104: 3.836412967
A105: HDD | B105: C_TBC_WWN_PR19CA008_OFWAT | C105: Total base costs - Wastewater network plus - OFWAT view | D105: £m | E105: Price Review 2019 | Q105: 21.38093309
A106: HDD | B106: C_UBC_WR_PR19CA004_OFWAT | C106: Unmodelled base costs (Local authority and cumulo rates ) - Water resources - OFWAT view | D106: £m | E106: Price Review 2019 | Q106: 0.7179473558
A107: HDD | B107: C_UBC_WN_PR19CA004_OFWAT | C107: Unmodelled base costs (Local authority and cumulo rates ) - Water network plus - OFWAT view | D107: £m | E107: Price Review 2019 | Q107: 7.044110163
A108: HDD | B108: C_UBC_WBR_PR19CA008_OFWAT | C108: Base costs - Unmodelled base costs (Local authority and cumulo rates ) - Bioresources - OFWAT view | D108: £m | E108: Price Review 2019 | Q108: 0.61938268
A109: HDD | B109: C_UBC_WWN_PR19CA008_OFWAT | C109: Base costs - Unmodelled base costs (Local authority and cumulo rates ) - Wastewater network plus - OFWAT view | D109: £m | E109: Price Review 2019 | Q109: 0.61938268
A110: HDD | B110: WS1003_WW4_WR | C110: Unmodelled base costs (Abstraction charges / discharge consent) WR | D110: £m | E110: Price Review 2019 | Q110: 2.26261144
A111: HDD | B111: WS1003_WW4_WN | C111: Unmodelled base costs (Abstraction charges / discharge consent) WN | D111: £m | E111: Price Review 2019 | Q111: 0
A112: HDD | B112: C_WWN_OUTPERFORM_001 | C112: Cost sharing rate for outperform | D112: % | E112: Price Review 2019 | Q112: 0.5911325572
A113: HDD | B113: C_WWN_UNDERPERFORM_001 | C113: Cost sharing rate for underperform | D113: % | E113: Price Review 2019 | Q113: 0.5
A114: HDD | B114: B0012WR | C114: Abstraction charges/ discharge consents - Water resources | D114: £m | E114: Cyclical Foundation | F114: 0.61 | G114: 0.597 | H114: 0.756071195
A115: HDD | B115: B0012WN | C115: Abstraction charges/ discharge consents - Water Network+ | D115: £m | E115: Cyclical Foundation | F115: 0.025 | G115: 0.027 | H115: 0.013413254
A116: HDD | B116: C_WR_CS_EXANTE_001 | C116: Ex-ante allowance above Ofwat forecast - Active - Water Resources | D116: £m | E116: Price Review 2019 | Q116: -0.09842887849
A117: HDD | B117: C_WN_CS_EXANTE_001 | C117: Ex-ante allowance above Ofwat forecast - Active - Water Network | D117: £m | E117: Price Review 2019 | Q117: -2.158560181
A118: HDD | B118: C_WWN_CS_EXANTE_001 | C118: Ex-ante allowance above Ofwat forecast - Active - Wastewater Network | D118: £m | E118: Price Review 2019 | Q118: -0.8949168715
A119: HDD | B119: C_WR_WN_OUTPERFORM_001 | C119: Cost sharing rate for outperform | D119: % | E119: Price Review 2019 | Q119: 0.5396005513
A120: HDD | B120: C_WR_WN_UNDERPERFORM_001 | C120: Cost sharing rate for underperform | D120: % | E120: Price Review 2019 | Q120: 0.5
A121: NES | B121: B0143TAWR | C121: Totex (net of business rates, abstraction licence fees and grants and contributions) - Total actual totex (net of business rates, abstraction licence fees and grants and contributions) - 12 months ended 31 March 2021 - Water resources | D121: £m | E121: Cyclical Foundation | F121: 32.772 | G121: 42.357 | H121: 55.223
A122: NES | B122: B0143TAWNP | C122: Totex (net of business rates, abstraction licence fees and grants and contributions) - Total actual totex (net of business rates, abstraction licence fees and grants and contributions) - 12 months ended 31 March 2021 - Water network plus | D122: £m | E122: Cyclical Foundation | F122: 229.382 | G122: 246.529 | H122: 296.458
A123: NES | B123: B0143TAWWNP | C123: Totex (net of business rates, abstraction licence fees and grants and contributions) - Total actual totex (net of business rates, abstraction licence fees and grants and contributions) - 12 months ended 31 March 2021 - Wastewater network plus | D123: £m | E123: Cyclical Foundation | F123: 162.878 | G123: 189.146 | H123: 206.304
A124: NES | B124: B0143TATTTH | C124: Totex (net of business rates, abstraction licence fees and grants and contributions) - Total actual totex (net of business rates, abstraction licence fees and grants and contributions) - 12 months ended 31 March 2021 - Thames Tideway/ Havant Thicket | D124: £m | E124: Cyclical Foundation | F124: 0 | G124: 0 | H124: 0
A125: NES | B125: B0413TGTE_WR | C125: Total green recovery programme expenditure - Totex - Expenditure in report year - Water resources | D125: £m | E125: Cyclical Foundation | G125: 0 | H125: 0
A126: NES | B126: B0420TGTE_RW | C126: Total green recovery programme expenditure - Totex - Expenditure in report year - Water network+ Raw water transport | D126: £m | E126: Cyclical Foundation | G126: 0 | H126: 0
A127: NES | B127: B0427TGTE_SW | C127: Total green recovery programme expenditure - Totex - Expenditure in report year - Water network+ Raw water storage | D127: £m | E127: Cyclical Foundation | G127: 0 | H127: 0
A128: NES | B128: B0434TGTE_TW | C128: Total green recovery programme expenditure - Totex - Expenditure in report year - Water network+ Water treatment | D128: £m | E128: Cyclical Foundation | G128: 0 | H128: 0
A129: NES | B129: B0441TGTE_DW | C129: Total green recovery programme expenditure - Totex - Expenditure in report year - Water network+ Treated water distribution | D129: £m | E129: Cyclical Foundation | G129: 0 | H129: 0
A130: NES | B130: B0513TGTE_FOW | C130: Total green recovery programme expenditure - Totex - Expenditure in report year - Wastewater network+ Foul | D130: £m | E130: Cyclical Foundation | G130: 0 | H130: 0
A131: NES | B131: B0520TGTE_SUW | C131: Total green recovery programme expenditure - Totex - Expenditure in report year - Wastewater network+ Surface water drainage | D131: £m | E131: Cyclical Foundation | G131: 0 | H131: 0
A132: NES | B132: B0527TGTE_HDW | C132: Total green recovery programme expenditure - Totex - Expenditure in report year - Wastewater network+ Highway drainage | D132: £m | E132: Cyclical Foundation | G132: 0 | H132: 0
A133: NES | B133: B0534TGTE_STW | C133: Total green recovery programme expenditure - Totex - Expenditure in report year - Wastewater network+ Sewage treatment and disposal | D133: £m | E133: Cyclical Foundation | G133: 0 | H133: 0
A134: NES | B134: B0541TGTE_SLW | C134: Total green recovery programme expenditure - Totex - Expenditure in report year - Wastewater network+ Sludge liquor treatment | D134: £m | E134: Cyclical Foundation | G134: 0 | H134: 0
A135: NES | B135: WS01008WR | C135: Operating expenditure - Local authority and Cumulo rates - Water resources | D135: £m | E135: Cyclical Foundation | F135: 4.234 | G135: 4.235 | H135: 4.222
A136: NES | B136: BM317WN | C136: Local authority and Cumulo rates - Water Network+ | D136: £m | E136: Cyclical Foundation | F136: 26.68 | G136: 26.664 | H136: 26.941
A137: NES | B137: BM817WNK | C137: Local authority and Cumulo rates - Wastewater Network+ | D137: £m | E137: Cyclical Foundation | F137: 6.95 | G137: 4.705 | H137: 7.717
A138: NES | B138: BM817SG | C138: Local authority and Cumulo rates - Sludge | D138: £m | E138: Cyclical Foundation | F138: 1.432 | G138: 0.955 | H138: 1.615
A139: NES | B139: BM817TTT | C139: Local authority rates - TTT | D139: £m | E139: Cyclical Foundation | G139: 0 | H139: 0
A140: NES | B140: C_TBC_WR_PR19CA004_OFWAT | C140: Total base costs exclude enhancemnt opex - Water resources - OFWAT view | D140: £m | E140: Price Review 2019 | Q140: 246.326124
A141: NES | B141: C_TBC_WN_PR19CA004_OFWAT | C141: Total base costs exclude enhancemnt opex - Water network plus - OFWAT view | D141: £m | E141: Price Review 2019 | Q141: 1212.857611
A142: NES | B142: C_TBC_WBR_PR19CA008_OFWAT | C142: Total base costs - Bioresources - OFWAT view | D142: £m | E142: Price Review 2019 | Q142: 71.76767616
A143: NES | B143: C_TBC_WWN_PR19CA008_OFWAT | C143: Total base costs - Wastewater network plus - OFWAT view | D143: £m | E143: Price Review 2019 | Q143: 799.9599121
A144: NES | B144: C_UBC_WR_PR19CA004_OFWAT | C144: Unmodelled base costs (Local authority and cumulo rates ) - Water resources - OFWAT view | D144: £m | E144: Price Review 2019 | Q144: 27.14724687
A145: NES | B145: C_UBC_WN_PR19CA004_OFWAT | C145: Unmodelled base costs (Local authority and cumulo rates ) - Water network plus - OFWAT view | D145: £m | E145: Price Review 2019 | Q145: 171.0580927
A146: NES | B146: C_UBC_WBR_PR19CA008_OFWAT | C146: Base costs - Unmodelled base costs (Local authority and cumulo rates ) - Bioresources - OFWAT view | D146: £m | E146: Price Review 2019 | Q146: 6.624110078
A147: NES | B147: C_UBC_WWN_PR19CA008_OFWAT | C147: Base costs - Unmodelled base costs (Local authority and cumulo rates ) - Wastewater network plus - OFWAT view | D147: £m | E147: Price Review 2019 | Q147: 32.26610937
A148: NES | B148: WS1003_WW4_WR | C148: Unmodelled base costs (Abstraction charges / discharge consent) WR | D148: £m | E148: Price Review 2019 | Q148: 131.3320312
A149: NES | B149: WS1003_WW4_WN | C149: Unmodelled base costs (Abstraction charges / discharge consent) WN | D149: £m | E149: Price Review 2019 | Q149: 1.285182602
A150: NES | B150: C_WWN_OUTPERFORM_001 | C150: Cost sharing rate for outperform | D150: % | E150: Price Review 2019 | Q150: 0.3440448377
A151: NES | B151: C_WWN_UNDERPERFORM_001 | C151: Cost sharing rate for underperform | D151: % | E151: Price Review 2019 | Q151: 0.6559551623
A152: NES | B152: B0012WR | C152: Abstraction charges/ discharge consents - Water resources | D152: £m | E152: Cyclical Foundation | F152: 43.473 | G152: 43.449 | H152: 39.565
A153: NES | B153: B0012WN | C153: Abstraction charges/ discharge consents - Water Network+ | D153: £m | E153: Cyclical Foundation | F153: 0.337 | G153: 0.334 | H153: 0.318
A154: NES | B154: C_WR_CS_EXANTE_001 | C154: Ex-ante allowance above Ofwat forecast - Active - Water Resources | D154: £m | E154: Price Review 2019 | Q154: 0
A155: NES | B155: C_WN_CS_EXANTE_001 | C155: Ex-ante allowance above Ofwat forecast - Active - Water Network | D155: £m | E155: Price Review 2019 | Q155: 0
A156: NES | B156: C_WWN_CS_EXANTE_001 | C156: Ex-ante allowance above Ofwat forecast - Active - Wastewater Network | D156: £m | E156: Price Review 2019 | Q156: 0
A157: NES | B157: C_WR_WN_OUTPERFORM_001 | C157: Cost sharing rate for outperform | D157: % | E157: Price Review 2019 | Q157: 0.4619024717
A158: NES | B158: C_WR_WN_UNDERPERFORM_001 | C158: Cost sharing rate for underperform | D158: % | E158: Price Review 2019 | Q158: 0.5380975283
A159: SVE | B159: B0143TAWR | C159: Totex (net of business rates, abstraction licence fees and grants and contributions) - Total actual totex (net of business rates, abstraction licence fees and grants and contributions) - 12 months ended 31 March 2021 - Water resources | D159: £m | E159: Cyclical Foundation | F159: 76.907 | G159: 73.455 | H159: 74.44
A160: SVE | B160: B0143TAWNP | C160: Totex (net of business rates, abstraction licence fees and grants and contributions) - Total actual totex (net of business rates, abstraction licence fees and grants and contributions) - 12 months ended 31 March 2021 - Water network plus | D160: £m | E160: Cyclical Foundation | F160: 480.9051174 | G160: 524.014 | H160: 622.941
A161: SVE | B161: B0143TAWWNP | C161: Totex (net of business rates, abstraction licence fees and grants and contributions) - Total actual totex (net of business rates, abstraction licence fees and grants and contributions) - 12 months ended 31 March 2021 - Wastewater network plus | D161: £m | E161: Cyclical Foundation | F161: 452.6289815 | G161: 506.173 | H161: 586.486
A162: SVE | B162: B0143TATTTH | C162: Totex (net of business rates, abstraction licence fees and grants and contributions) - Total actual totex (net of business rates, abstraction licence fees and grants and contributions) - 12 months ended 31 March 2021 - Thames Tideway/ Havant Thicket | D162: £m | E162: Cyclical Foundation | F162: 0 | G162: 0 | H162: 0
A163: SVE | B163: B0413TGTE_WR | C163: Total green recovery programme expenditure - Totex - Expenditure in report year - Water resources | D163: £m | E163: Cyclical Foundation | G163: 0.363 | H163: 2.227
A164: SVE | B164: B0420TGTE_RW | C164: Total green recovery programme expenditure - Totex - Expenditure in report year - Water network+ Raw water transport | D164: £m | E164: Cyclical Foundation | G164: 0 | H164: 0
A165: SVE | B165: B0427TGTE_SW | C165: Total green recovery programme expenditure - Totex - Expenditure in report year - Water network+ Raw water storage | D165: £m | E165: Cyclical Foundation | G165: 0 | H165: 0
A166: SVE | B166: B0434TGTE_TW | C166: Total green recovery programme expenditure - Totex - Expenditure in report year - Water network+ Water treatment | D166: £m | E166: Cyclical Foundation | G166: 4.134 | H166: 35.165
A167: SVE | B167: B0441TGTE_DW | C167: Total green recovery programme expenditure - Totex - Expenditure in report year - Water network+ Treated water distribution | D167: £m | E167: Cyclical Foundation | G167: 3.709 | H167: 23.029
A168: SVE | B168: B0513TGTE_FOW | C168: Total green recovery programme expenditure - Totex - Expenditure in report year - Wastewater network+ Foul | D168: £m | E168: Cyclical Foundation | G168: 0 | H168: 0.001
A169: SVE | B169: B0520TGTE_SUW | C169: Total green recovery programme expenditure - Totex - Expenditure in report year - Wastewater network+ Surface water drainage | D169: £m | E169: Cyclical Foundation | G169: 0.312 | H169: 3.796
A170: SVE | B170: B0527TGTE_HDW | C170: Total green recovery programme expenditure - Totex - Expenditure in report year - Wastewater network+ Highway drainage | D170: £m | E170: Cyclical Foundation | G170: 1.25 | H170: 5.006
A171: SVE | B171: B0534TGTE_STW | C171: Total green recovery programme expenditure - Totex - Expenditure in report year - Wastewater network+ Sewage treatment and disposal | D171: £m | E171: Cyclical Foundation | G171: 4.172 | H171: 9.973
A172: SVE | B172: B0541TGTE_SLW | C172: Total green recovery programme expenditure - Totex - Expenditure in report year - Wastewater network+ Sludge liquor treatment | D172: £m | E172: Cyclical Foundation | G172: 0 | H172: 0
A173: SVE | B173: WS01008WR | C173: Operating expenditure - Local authority and Cumulo rates - Water resources | D173: £m | E173: Cyclical Foundation | F173: 4.51 | G173: 4.971 | H173: 4.473
A174: SVE | B174: BM317WN | C174: Local authority and Cumulo rates - Water Network+ | D174: £m | E174: Cyclical Foundation | F174: 47.712 | G174: 48.098 | H174: 47.804
A175: SVE | B175: BM817WNK | C175: Local authority and Cumulo rates - Wastewater Network+ | D175: £m | E175: Cyclical Foundation | F175: 23.118 | G175: 22.84 | H175: 22.368
A176: SVE | B176: BM817SG | C176: Local authority and Cumulo rates - Sludge | D176: £m | E176: Cyclical Foundation | F176: 3.287 | G176: 2.973 | H176: 3.035
A177: SVE | B177: BM817TTT | C177: Local authority rates - TTT | D177: £m | E177: Cyclical Foundation | G177: 0 | H177: 0
A178: SVE | B178: C_TBC_WR_PR19CA004_OFWAT | C178: Total base costs exclude enhancemnt opex - Water resources - OFWAT view | D178: £m | E178: Price Review 2019 | Q178: 280.2328184
A179: SVE | B179: C_TBC_WN_PR19CA004_OFWAT | C179: Total base costs exclude enhancemnt opex - Water network plus - OFWAT view | D179: £m | E179: Price Review 2019 | Q179: 2183.109318
A180: SVE | B180: C_TBC_WBR_PR19CA008_OFWAT | C180: Total base costs - Bioresources - OFWAT view | D180: £m | E180: Price Review 2019 | Q180: 310.9508971
A181: SVE | B181: C_TBC_WWN_PR19CA008_OFWAT | C181: Total base costs - Wastewater network plus - OFWAT view | D181: £m | E181: Price Review 2019 | Q181: 2332.621571
A182: SVE | B182: C_UBC_WR_PR19CA004_OFWAT | C182: Unmodelled base costs (Local authority and cumulo rates ) - Water resources - OFWAT view | D182: £m | E182: Price Review 2019 | Q182: 21.95271565
A183: SVE | B183: C_UBC_WN_PR19CA004_OFWAT | C183: Unmodelled base costs (Local authority and cumulo rates ) - Water network plus - OFWAT view | D183: £m | E183: Price Review 2019 | Q183: 207.8768688
A184: SVE | B184: C_UBC_WBR_PR19CA008_OFWAT | C184: Base costs - Unmodelled base costs (Local authority and cumulo rates ) - Bioresources - OFWAT view | D184: £m | E184: Price Review 2019 | Q184: 21.11886329
A185: SVE | B185: C_UBC_WWN_PR19CA008_OFWAT | C185: Base costs - Unmodelled base costs (Local authority and cumulo rates ) - Wastewater network plus - OFWAT view | D185: £m | E185: Price Review 2019 | Q185: 106.8094036
A186: SVE | B186: WS1003_WW4_WR | C186: Unmodelled base costs (Abstraction charges / discharge consent) WR | D186: £m | E186: Price Review 2019 | Q186: 54.32246252
A187: SVE | B187: WS1003_WW4_WN | C187: Unmodelled base costs (Abstraction charges / discharge consent) WN | D187: £m | E187: Price Review 2019 | Q187: 0
A188: SVE | B188: C_WWN_OUTPERFORM_001 | C188: Cost sharing rate for outperform | D188: % | E188: Price Review 2019 | Q188: 0.5
A189: SVE | B189: C_WWN_UNDERPERFORM_001 | C189: Cost sharing rate for underperform | D189: % | E189: Price Review 2019 | Q189: 0.5
A190: SVE | B190: B0012WR | C190: Abstraction charges/ discharge consents - Water resources | D190: £m | E190: Cyclical Foundation | F190: 11.549 | G190: 11.569 | H190: 15.236
A191: SVE | B191: B0012WN | C191: Abstraction charges/ discharge consents - Water Network+ | D191: £m | E191: Cyclical Foundation | F191: 0.398 | G191: 0.43 | H191: 0.532
A192: SVE | B192: C_WR_CS_EXANTE_001 | C192: Ex-ante allowance above Ofwat forecast - Active - Water Resources | D192: £m | E192: Price Review 2019 | Q192: 0
A193: SVE | B193: C_WN_CS_EXANTE_001 | C193: Ex-ante allowance above Ofwat forecast - Active - Water Network | D193: £m | E193: Price Review 2019 | Q193: 0
A194: SVE | B194: C_WWN_CS_EXANTE_001 | C194: Ex-ante allowance above Ofwat forecast - Active - Wastewater Network | D194: £m | E194: Price Review 2019 | Q194: 0
A195: SVE | B195: C_WR_WN_OUTPERFORM_001 | C195: Cost sharing rate for outperform | D195: % | E195: Price Review 2019 | Q195: 0.5
A196: SVE | B196: C_WR_WN_UNDERPERFORM_001 | C196: Cost sharing rate for underperform | D196: % | E196: Price Review 2019 | Q196: 0.5
A197: SWB | B197: B0143TAWR | C197: Totex (net of business rates, abstraction licence fees and grants and contributions) - Total actual totex (net of business rates, abstraction licence fees and grants and contributions) - 12 months ended 31 March 2021 - Water resources | D197: £m | E197: Cyclical Foundation | F197: 12.06 | G197: 16.814 | H197: 45.32
A198: SWB | B198: B0143TAWNP | C198: Totex (net of business rates, abstraction licence fees and grants and contributions) - Total actual totex (net of business rates, abstraction licence fees and grants and contributions) - 12 months ended 31 March 2021 - Water network plus | D198: £m | E198: Cyclical Foundation | F198: 136.47 | G198: 151.892 | H198: 218.817
A199: SWB | B199: B0143TAWWNP | C199: Totex (net of business rates, abstraction licence fees and grants and contributions) - Total actual totex (net of business rates, abstraction licence fees and grants and contributions) - 12 months ended 31 March 2021 - Wastewater network plus | D199: £m | E199: Cyclical Foundation | F199: 145.571 | G199: 170.847 | H199: 238.239
A200: SWB | B200: B0143TATTTH | C200: Totex (net of business rates, abstraction licence fees and grants and contributions) - Total actual totex (net of business rates, abstraction licence fees and grants and contributions) - 12 months ended 31 March 2021 - Thames Tideway/ Havant Thicket | D200: £m | E200: Cyclical Foundation | F200: 0 | G200: 0 | H200: 0
A201: SWB | B201: B0413TGTE_WR | C201: Total green recovery programme expenditure - Totex - Expenditure in report year - Water resources | D201: £m | E201: Cyclical Foundation | G201: 0.926 | H201: 3.591
... 451 more rows

Sheet F_Inputs
C1: PR24 inputs for cost rec | E1: Run on 25 Oct 2024 15:07
A2: Acronym | B2: Reference | C2: Item description | D2: Unit | E2: Model | F2: 2020-21 | G2: 2021-22 | H2: 2022-23 | I2: 2023-24 | J2: 2024-25 | K2: 2025-26 | L2: 2020-25
F4: Price Review 2024 | G4: Price Review 2024 | H4: Price Review 2024 | I4: Price Review 2024 | J4: Price Review 2024 | K4: Price Review 2024 | L4: Price Review 2024
F5: Run 11 - PR24 FD Data | G5: Run 11 - PR24 FD Data | H5: Run 11 - PR24 FD Data | I5: Run 11 - PR24 FD Data | J5: Run 11 - PR24 FD Data | K5: Run 11 - PR24 FD Data | L5: Run 11 - PR24 FD Data
F6: Latest | G6: Latest | H6: Latest | I6: Latest | J6: Latest | K6: Latest | L6: Latest
A7: ANH | B7: B0143TAWR_PR24 | C7: Totex (net of business rates, abstraction licence fees and grants and contributions) - Total actual totex (net of business rates, abstraction licence fees and grants and contributions) - Water resources | D7: £m | E7: Price Review 2024 | H7: 37.326 | I7: 49.17574206 | J7: 39.87045566
A8: ANH | B8: B0143TAWNP_PR24 | C8: Totex (net of business rates, abstraction licence fees and grants and contributions) - Total actual totex (net of business rates, abstraction licence fees and grants and contributions) - Water network plus | D8: £m | E8: Price Review 2024 | H8: 507.066 | I8: 684.522046 | J8: 589.7425964
A9: ANH | B9: B0143TAWWNP_PR24 | C9: Totex (net of business rates, abstraction licence fees and grants and contributions) - Total actual totex (net of business rates, abstraction licence fees and grants and contributions) - Wastewater network plus | D9: £m | E9: Price Review 2024 | H9: 510.316 | I9: 540.2084302 | J9: 652.2928565
A10: ANH | B10: B0143TABIO_PR24 | C10: Totex (net of business rates, abstraction licence fees and grants and contributions) - Total actual totex (net of business rates, abstraction licence fees and grants and contributions) - Bioresources | D10: £m | E10: Price Review 2024 | H10: 92.07 | I10: 101.145373 | J10: 98.90504149
A11: ANH | B11: B0143TATTTH_PR24 | C11: Totex (net of business rates, abstraction licence fees and grants and contributions) - Total actual totex (net of business rates, abstraction licence fees and grants and contributions) - Additional Control | D11: £m | E11: Price Review 2024 | H11: 0 | I11: 0 | J11: 0
A12: ANH | B12: PD9_08WR_PR24 | C12: Totex - business rates and abstraction licence fees - Actual totex - business rates - Water resources | D12: £m | E12: Price Review 2024 | H12: 2.376 | I12: 2.447727942 | J12: 2.507
A13: ANH | B13: PD9_08WNP_PR24 | C13: Totex - business rates and abstraction licence fees - Actual totex - business rates - Water network plus | D13: £m | E13: Price Review 2024 | H13: 30.828 | I13: 32.28943234 | J13: 33.693
A14: ANH | B14: PD9_08WWNP_PR24 | C14: Totex - business rates and abstraction licence fees - Actual totex - business rates - Wastewater network plus | D14: £m | E14: Price Review 2024 | H14: 20.754 | I14: 23.84118418 | J14: 27.575
A15: ANH | B15: PD9_08BIO_PR24 | C15: Totex - business rates and abstraction licence fees - Actual totex - business rates - Bioresources | D15: £m | E15: Price Review 2024 | H15: 3.212 | I15: 3.66731892 | J15: 4.384
A16: ANH | B16: PD9_08ADDN1_PR24 | C16: Totex - business rates and abstraction licence fees - Actual totex - business rates - Additional Control | D16: £m | E16: Price Review 2024 | H16: 0 | I16: 0 | J16: 0
A17: ANH | B17: PD9_10WR_PR24 | C17: Totex - business rates and abstraction licence fees - Actual totex - abstraction licence fees - Water resources | D17: £m | E17: Price Review 2024 | H17: 10.096 | I17: 8.665151369 | J17: 10.38689775
A18: ANH | B18: PD9_10WNP_PR24 | C18: Totex - business rates and abstraction licence fees - Actual totex - abstraction licence fees - Water network plus | D18: £m | E18: Price Review 2024 | H18: 0.483 | I18: 0.4576300222 | J18: 0.498
A19: ANH | B19: PD9_10WWNP_PR24 | C19: Totex - business rates and abstraction licence fees - Actual totex - abstraction licence fees - Wastewater network plus | D19: £m | E19: Price Review 2024 | H19: 0 | I19: 0 | J19: 0
A20: ANH | B20: PD9_10BIO_PR24 | C20: Totex - business rates and abstraction licence fees - Actual totex - abstraction licence fees - Bioresources | D20: £m | E20: Price Review 2024 | H20: 0 | I20: 0 | J20: 0
A21: ANH | B21: PD9_10ADDN1_PR24 | C21: Totex - business rates and abstraction licence fees - Actual totex - abstraction licence fees - Additional Control | D21: £m | E21: Price Review 2024 | H21: 0 | I21: 0 | J21: 0
A22: ANH | B22: PD9_13WR_PR24 | C22: CMA companies only – items excluded from general cost sharing with bespoke sharing rates - Company cost sharing rates - Water resources | D22: % | E22: Price Review 2024 | H22: 0 | I22: 0 | J22: 0
A23: ANH | B23: PD9_13WNP_PR24 | C23: CMA companies only – items excluded from general cost sharing with bespoke sharing rates - Company cost sharing rates - Water network plus | D23: % | E23: Price Review 2024 | H23: 0 | I23: 0 | J23: 0
A24: ANH | B24: PD9_13WWNP_PR24 | C24: CMA companies only – items excluded from general cost sharing with bespoke sharing rates - Company cost sharing rates - Wastewater network plus | D24: % | E24: Price Review 2024 | H24: 0 | I24: 0 | J24: 0
A25: ANH | B25: PD9_13BIO_PR24 | C25: CMA companies only – items excluded from general cost sharing with bespoke sharing rates - Company cost sharing rates - Bioresources | D25: % | E25: Price Review 2024 | H25: 0 | I25: 0 | J25: 0
A26: ANH | B26: PD9_13ADDN1_PR24 | C26: CMA companies only – items excluded from general cost sharing with bespoke sharing rates - Company cost sharing rates - Additional Control | D26: % | E26: Price Review 2024 | H26: 0 | I26: 0 | J26: 0
A27: ANH | B27: B0413TGTE_WR_PR24 | C27: Green recovery programme - Total green recovery programme expenditure - Totex - Water resources - Expenditure in report year | D27: £m | E27: Price Review 2024 | H27: 0 | I27: 0 | J27: 0 | K27: 0
A28: ANH | B28: B0420TGTE_RW_PR24 | C28: Green recovery programme - Total green recovery programme expenditure - Totex - Raw water transport - Water network+ - Expenditure in report year | D28: £m | E28: Price Review 2024 | H28: 0 | I28: 0 | J28: 0 | K28: 0
A29: ANH | B29: B0427TGTE_SW_PR24 | C29: Green recovery programme - Total green recovery programme expenditure - Totex - Raw water storage - Water network+ - Expenditure in report year | D29: £m | E29: Price Review 2024 | H29: 0 | I29: 0 | J29: 0 | K29: 0
A30: ANH | B30: B0434TGTE_TW_PR24 | C30: Green recovery programme - Total green recovery programme expenditure - Totex - Water treatment - Water network+ - Expenditure in report year | D30: £m | E30: Price Review 2024 | H30: 0 | I30: 0 | J30: 0 | K30: 0
A31: ANH | B31: B0441TGTE_DW_PR24 | C31: Green recovery programme - Total green recovery programme expenditure - Totex - Treated water distribution - Water network+ - Expenditure in report year | D31: £m | E31: Price Review 2024 | H31: 0 | I31: 0 | J31: 0 | K31: 0
A32: ANH | B32: B0513TGTE_FOW_PR24 | C32: Green recovery programme - Total green recovery programme expenditure - Totex - Foul - Wastewater network+ - Expenditure in report year | D32: £m | E32: Price Review 2024 | H32: 0 | I32: 0 | J32: 0 | K32: 0
A33: ANH | B33: B0520TGTE_SUW_PR24 | C33: Green recovery programme - Total green recovery programme expenditure - Totex - Surface water drainage - Wastewater network+ - Expenditure in report year | D33: £m | E33: Price Review 2024 | H33: 0 | I33: 0 | J33: 0 | K33: 0
A34: ANH | B34: B0527TGTE_HDW_PR24 | C34: Green recovery programme - Total green recovery programme expenditure - Totex - Highway drainage - Wastewater network+ - Expenditure in report year | D34: £m | E34: Price Review 2024 | H34: 0 | I34: 0 | J34: 0 | K34: 0
A35: ANH | B35: B0534TGTE_STW_PR24 | C35: Green recovery programme - Total green recovery programme expenditure - Totex - Sewage treatment and disposal - Wastewater network+ - Expenditure in report year | D35: £m | E35: Price Review 2024 | H35: 0 | I35: 0 | J35: 0 | K35: 0
A36: ANH | B36: B0541TGTE_SLW_PR24 | C36: Green recovery programme - Total green recovery programme expenditure - Totex - Sludge liquor treatment - Wastewater network+ - Expenditure in report year | D36: £m | E36: Price Review 2024 | H36: 0 | I36: 0 | J36: 0 | K36: 0
A37: ANH | B37: B0547TGTE_SAB_PR24 | C37: Green recovery programme - Total green recovery programme expenditure - Totex - Sludge transport - Bioresources - Expenditure in report year | D37: £m | E37: Price Review 2024 | H37: 0 | I37: 0 | J37: 0 | K37: 0
A38: ANH | B38: B0554TGTE_SEB_PR24 | C38: Green recovery programme - Total green recovery programme expenditure - Totex - Sludge treatment - Bioresources - Expenditure in report year | D38: £m | E38: Price Review 2024 | H38: 0 | I38: 0 | J38: 0 | K38: 0
A39: ANH | B39: B0561TGTE_SDB_PR24 | C39: Green recovery programme - Total green recovery programme expenditure - Totex - Sludge disposal - Bioresources - Expenditure in report year | D39: £m | E39: Price Review 2024 | H39: 0 | I39: 0 | J39: 0 | K39: 0
A40: ANH | B40: BB3905AL_PR24 | C40: Consumer price index (including housing costs) - Consumer Price Index (with housing) for April | D40: nr | E40: Price Review 2024 | F40: 108.6 | G40: 110.4 | H40: 119 | I40: 128.3 | J40: 131.8 | K40: 134.4
A41: ANH | B41: BB3905MY_PR24 | C41: Consumer price index (including housing costs) - Consumer Price Index (with housing) for May | D41: nr | E41: Price Review 2024 | F41: 108.6 | G41: 111 | H41: 119.7 | I41: 129.1 | J41: 132.1 | K41: 134.8
A42: ANH | B42: BB3905JN_PR24 | C42: Consumer price index (including housing costs) - Consumer Price Index (with housing) for June | D42: nr | E42: Price Review 2024 | F42: 108.8 | G42: 111.4 | H42: 120.5 | I42: 129.4 | J42: 132.5 | K42: 135.2
A43: ANH | B43: BB3905JL_PR24 | C43: Consumer price index (including housing costs) - Consumer Price Index (with housing) for July | D43: nr | E43: Price Review 2024 | F43: 109.2 | G43: 111.4 | H43: 121.2 | I43: 129 | J43: 132.3 | K43: 134.9
A44: ANH | B44: BB3905AT_PR24 | C44: Consumer price index (including housing costs) - Consumer Price Index (with housing) for August | D44: nr | E44: Price Review 2024 | F44: 108.8 | G44: 112.1 | H44: 121.8 | I44: 129.4 | J44: 132.6 | K44: 135.3
A45: ANH | B45: BB3905SR_PR24 | C45: Consumer price index (including housing costs) - Consumer Price Index (with housing) for September | D45: nr | E45: Price Review 2024 | F45: 109.2 | G45: 112.4 | H45: 122.3 | I45: 130.1 | J45: 133.1 | K45: 135.8
A46: ANH | B46: BB3905OR_PR24 | C46: Consumer price index (including housing costs) - Consumer Price Index (with housing) for October | D46: nr | E46: Price Review 2024 | F46: 109.2 | G46: 113.4 | H46: 124.3 | I46: 130.2 | J46: 133.4 | K46: 136.1
A47: ANH | B47: BB3905NR_PR24 | C47: Consumer price index (including housing costs) - Consumer Price Index (with housing) for November | D47: nr | E47: Price Review 2024 | F47: 109.1 | G47: 114.1 | H47: 124.8 | I47: 130 | J47: 133.5 | K47: 136.2
A48: ANH | B48: BB3905DR_PR24 | C48: Consumer price index (including housing costs) - Consumer Price Index (with housing) for December | D48: nr | E48: Price Review 2024 | F48: 109.4 | G48: 114.7 | H48: 125.3 | I48: 130.5 | J48: 133.8 | K48: 136.5
A49: ANH | B49: BB3905JY_PR24 | C49: Consumer price index (including housing costs) - Consumer Price Index (with housing) for January | D49: nr | E49: Price Review 2024 | F49: 109.3 | G49: 114.6 | H49: 124.8 | I49: 130 | J49: 133.3 | K49: 135.9
A50: ANH | B50: BB3905FY_PR24 | C50: Consumer price index (including housing costs) - Consumer Price Index (with housing) for February | D50: nr | E50: Price Review 2024 | F50: 109.4 | G50: 115.4 | H50: 126 | I50: 130.8 | J50: 133.8 | K50: 136.5
A51: ANH | B51: BB3905MH_PR24 | C51: Consumer price index (including housing costs) - Consumer Price Index (with housing) for March | D51: nr | E51: Price Review 2024 | F51: 109.7 | G51: 116.5 | H51: 126.8 | I51: 131.6 | J51: 134.2 | K51: 136.9
A52: ANH | B52: C_OPEX_SPLIT_BASE_WR_PR19CA091 | C52: PR19 Opex split profile - Base costs - WR | D52: % | E52: Price Review 2024 | F52: 0.1717482627 | G52: 0.1583178567 | H52: 0.1627204606 | I52: 0.163583549 | J52: 0.1884341573
A53: ANH | B53: C_OPEX_SPLIT_BASE_WN_PR19CA091 | C53: PR19 Opex split profile - Base costs - WN | D53: % | E53: Price Review 2024 | F53: 0.12299948 | G53: 0.1312034828 | H53: 0.1308078093 | I53: 0.1277370935 | J53: 0.1280738532
A54: ANH | B54: C_OPEX_SPLIT_BASE_WWN_PR19CA091 | C54: PR19 Opex split profile - Base costs - WWN | D54: % | E54: Price Review 2024 | F54: 0.09823168973 | G54: 0.09849385079 | H54: 0.0973309125 | I54: 0.09491477817 | J54: 0.09541213508
A55: ANH | B55: C_OPEX_SPLIT_BASE_BR_PR19CA091 | C55: PR19 Opex split profile - Base costs - BR | D55: % | E55: Price Review 2024 | F55: 0.1738067227 | G55: 0.1702313183 | H55: 0.1689562725 | I55: 0.1684578893 | J55: 0.1678949164
A56: ANH | B56: C_OPEX_SPLIT_BASE_DMMY_PR19CA091 | C56: PR19 Opex split profile - Base costs - DMMY | D56: % | E56: Price Review 2024 | F56: 0 | G56: 0 | H56: 0 | I56: 0 | J56: 0
A57: ANH | B57: C_CAPEX_SPLIT_BASE_WR_PR19CA091 | C57: PR19 Capex Split Profile - Base costs - WR | D57: % | E57: Price Review 2024 | F57: 0.02872826611 | G57: 0.03349662718 | H57: 0.03776704677 | I57: 0.02901795251 | J57: 0.02618582108
A58: ANH | B58: C_CAPEX_SPLIT_BASE_WN_PR19CA091 | C58: PR19 Capex Split Profile - Base costs - WN | D58: % | E58: Price Review 2024 | F58: 0.07208937717 | G58: 0.07715123384 | H58: 0.07708015576 | I58: 0.07049726904 | J58: 0.06236024546
A59: ANH | B59: C_CAPEX_SPLIT_BASE_WWN_PR19CA091 | C59: PR19 Capex Split Profile - Base costs - WWN | D59: % | E59: Price Review 2024 | F59: 0.08892080953 | G59: 0.1179487763 | H59: 0.09894053896 | I59: 0.1081502515 | J59: 0.1016562574
A60: ANH | B60: C_CAPEX_SPLIT_BASE_BR_PR19CA091 | C60: PR19 Capex Split Profile - Base costs - BR | D60: % | E60: Price Review 2024 | F60: 0.03251893947 | G60: 0.03648233641 | H60: 0.02897410798 | I60: 0.02475701414 | J60: 0.02792048278
A61: ANH | B61: C_CAPEX_SPLIT_BASE_DMMY_PR19CA091 | C61: PR19 Capex Split Profile - Base costs - DMMY | D61: % | E61: Price Review 2024 | F61: 0 | G61: 0 | H61: 0 | I61: 0 | J61: 0
A62: ANH | B62: C_PR19_E_WW_WINEP_WWN | C62: PR19 - WINEP in the round for cost reconciliation - WWN | D62: £m | E62: Price Review 2024 | L62: 688.3674463
A63: ANH | B63: C_PR19_E_W_METERING_WN | C63: PR19 - metering for cost reconciliation - WN | D63: £m | E63: Price Review 2024 | L63: 126.2901506
A64: ANH | B64: C__PR24PD11_PD11_12WR_PRETVM_PR24 | C64: PR19 WINEP / NEP RCV adjustment in 2017-18 FYA (CPIH deflated) prices (WR) - Pre time value of money adjustment | D64: £m | E64: Price Review 2024 | H64: -0.03633333333 | I64: -0.03633333333 | J64: -0.03633333333 | L64: -0.109
A65: ANH | B65: C__PR24PD11_PD11_12WN_PRETVM_PR24 | C65: PR19 WINEP / NEP RCV adjustment in 2017-18 FYA (CPIH deflated) prices (WN) - Pre time value of money adjustment | D65: £m | E65: Price Review 2024 | H65: 0 | I65: 0 | J65: 0 | L65: 0
A66: ANH | B66: C__PR24PD11_PD11_12WWN_PRETVM_PR24 | C66: PR19 WINEP / NEP RCV adjustment in 2017-18 FYA (CPIH deflated) prices (WWN) - Pre time value of money adjustment | D66: £m | E66: Price Review 2024 | H66: -2.846 | I66: -2.846 | J66: -2.846 | L66: -8.538
A67: ANH | B67: C__PR24PD11_PD11_12BIO_PRETVM_PR24 | C67: PR19 WINEP / NEP RCV adjustment in 2017-18 FYA (CPIH deflated) prices (BR) - Pre time value of money adjustment | D67: £m | E67: Price Review 2024 | H67: 0 | I67: 0 | J67: 0 | L67: 0
A68: ANH | B68: C__PR24PD11_PD11_12ADDN1_PRETVM_PR24 | C68: PR19 WINEP / NEP RCV adjustment in 2017-18 FYA (CPIH deflated) prices (ADDN1) - Pre time value of money adjustment | D68: £m | E68: Price Review 2024 | H68: 0 | I68: 0 | J68: 0 | L68: 0
A69: ANH | B69: C_PR24PD11_PD11_12ADDN2_PR24 | C69: PR19 WINEP / NEP RCV adjustment in 2017-18 FYA (CPIH deflated) prices (ADDN2) | D69: £m | E69: Price Review 2024
A70: ANH | B70: C_PR24PD21_01WR_PR24 | C70: Total adjusted cost allowance - WR - real | D70: £m | E70: Price Review 2024
A71: ANH | B71: C_PR24PD21_01WN_PR24 | C71: Total adjusted cost allowance - WN+ - real | D71: £m | E71: Price Review 2024
A72: ANH | B72: C_PR24PD21_01WWN_PR24 | C72: Total adjusted cost allowance - WWN+ - real | D72: £m | E72: Price Review 2024
A73: ANH | B73: C_PR24PD21_01BIO_PR24 | C73: Total adjusted cost allowance - BR - real | D73: £m | E73: Price Review 2024
A74: ANH | B74: PD9_11WR_PR24 | C74: CMA companies only – items excluded from general cost sharing with bespoke sharing rates - CMA final determination allowed totex – items with bespoke sharing rates - Water resources | D74: £m | E74: Price Review 2024 | H74: 0 | I74: 0 | J74: 0
A75: ANH | B75: PD9_11WNP_PR24 | C75: CMA companies only – items excluded from general cost sharing with bespoke sharing rates - CMA final determination allowed totex – items with bespoke sharing rates - Water network plus | D75: £m | E75: Price Review 2024 | H75: 0 | I75: 0 | J75: 0
A76: ANH | B76: PD9_11WWNP_PR24 | C76: CMA companies only – items excluded from general cost sharing with bespoke sharing rates - CMA final determination allowed totex – items with bespoke sharing rates - Wastewater network plus | D76: £m | E76: Price Review 2024 | H76: 0 | I76: 0 | J76: 0
A77: ANH | B77: PD9_11BIO_PR24 | C77: CMA companies only – items excluded from general cost sharing with bespoke sharing rates - CMA final determination allowed totex – items with bespoke sharing rates - Bioresources | D77: £m | E77: Price Review 2024 | H77: 0 | I77: 0 | J77: 0
A78: ANH | B78: PD9_11ADDN1_PR24 | C78: CMA companies only – items excluded from general cost sharing with bespoke sharing rates - CMA final determination allowed totex – items with bespoke sharing rates - Additional Control | D78: £m | E78: Price Review 2024 | H78: 0 | I78: 0 | J78: 0
A79: ANH | B79: PD9_12WR_PR24 | C79: CMA companies only – items excluded from general cost sharing with bespoke sharing rates - Actual totex – items with bespoke sharing rates - Water resources | D79: £m | E79: Price Review 2024 | H79: 0 | I79: 0 | J79: 0
A80: ANH | B80: PD9_12WNP_PR24 | C80: CMA companies only – items excluded from general cost sharing with bespoke sharing rates - Actual totex – items with bespoke sharing rates - Water network plus | D80: £m | E80: Price Review 2024 | H80: 0 | I80: 0 | J80: 0
A81: ANH | B81: PD9_12WWNP_PR24 | C81: CMA companies only – items excluded from general cost sharing with bespoke sharing rates - Actual totex – items with bespoke sharing rates - Wastewater network plus | D81: £m | E81: Price Review 2024 | H81: 0 | I81: 0 | J81: 0
A82: ANH | B82: PD9_12BIO_PR24 | C82: CMA companies only – items excluded from general cost sharing with bespoke sharing rates - Actual totex – items with bespoke sharing rates - Bioresources | D82: £m | E82: Price Review 2024 | H82: 0 | I82: 0 | J82: 0
A83: ANH | B83: PD9_12ADDN1_PR24 | C83: CMA companies only – items excluded from general cost sharing with bespoke sharing rates - Actual totex – items with bespoke sharing rates - Additional Control | D83: £m | E83: Price Review 2024 | H83: 0 | I83: 0 | J83: 0
A84: ANH | B84: C_PR19_E_WW_WINEP_BIO | C84: PR19 - WINEP in the round for cost reconciliation - BIO | D84: £m | E84: Price Review 2024 | L84: 0

Sheet Consolidated actual totex inp
A1: Company acronym | E1: ANH | G1: ='F_Inputs-APR & PR19'!F6 -> 2020-21 | H1: ='F_Inputs-APR & PR19'!G6 -> 2021-22 | I1: ='F_Inputs-APR & PR19'!H6 -> 2022-23 | J1: ='F_Inputs-APR & PR19'!I6 -> 2023-24 | K1: ='F_Inputs-APR & PR19'!J6 -> 2024-25
F2: CPIH fin year ave | G2: =AVERAGE(F_Inputs!F40:F51) -> 109.1083333 | H2: =AVERAGE(F_Inputs!G40:G51) -> 113.1166667 | I2: =AVERAGE(F_Inputs!H40:H51) -> 123.0416667 | J2: =AVERAGE(F_Inputs!I40:I51) -> 129.8666667 | K2: =AVERAGE(F_Inputs!J40:J51) -> 133.0333333
F3: Conversion factor for business plan totex from 22-23 real to nominal | I3: =I2/$I$2 -> 1 | J3: =J2/$I$2 -> 1.055469015 | K3: 1.081205554
D4: Data before override
B5: B0143TAWR | C5: B0143TAWR_PR24 | F5: Totex (net of business rates, abstraction licence fees and grants and contributions) - Total actual totex (net of business rates, abstraction licence fees and grants and contributions) - Water resources | G5: =SUMIFS('F_Inputs-APR & PR19'!F:F, 'F_Inputs-APR & PR19'!$A:$A, 'Consolidated actual totex inp'!$E$1, 'F_Inputs-APR & PR19'!$B:$B, 'Consolidated actual totex inp'!$B5) -> 33.33 | H5: =SUMIFS('F_Inputs-APR & PR19'!G:G, 'F_Inputs-APR & PR19'!$A:$A, 'Consolidated actual totex inp'!$E$1, 'F_Inputs-APR & PR19'!$B:$B, 'Consolidated actual totex inp'!$B5) -> 36.60945457 | I5: =SUMIFS(F_Inputs!H:H, F_Inputs!$A:$A, 'Consolidated actual totex inp'!$E$1, F_Inputs!$B:$B, 'Consolidated actual totex inp'!$C5)*'Consolidated actual totex inp'!I$3 -> 37.326 | J5: =SUMIFS(F_Inputs!I:I, F_Inputs!$A:$A, 'Consolidated actual totex inp'!$E$1, F_Inputs!$B:$B, 'Consolidated actual totex inp'!$C5)*'Consolidated actual totex inp'!J$3 -> 51.90347201 | K5: =SUMIFS(F_Inputs!J:J, F_Inputs!$A:$A, 'Consolidated actual totex inp'!$E$1, F_Inputs!$B:$B, 'Consolidated actual totex inp'!$C5)*'Consolidated actual totex inp'!K$3 -> 43.10815809
B6: B0143TAWNP | C6: B0143TAWNP_PR24 | F6: Totex (net of business rates, abstraction licence fees and grants and contributions) - Total actual totex (net of business rates, abstraction licence fees and grants and contributions) - Water network plus | G6: =SUMIFS('F_Inputs-APR & PR19'!F:F, 'F_Inputs-APR & PR19'!$A:$A, 'Consolidated actual totex inp'!$E$1, 'F_Inputs-APR & PR19'!$B:$B, 'Consolidated actual totex inp'!$B6) -> 344.248 | H6: =SUMIFS('F_Inputs-APR & PR19'!G:G, 'F_Inputs-APR & PR19'!$A:$A, 'Consolidated actual totex inp'!$E$1, 'F_Inputs-APR & PR19'!$B:$B, 'Consolidated actual totex inp'!$B6) -> 398.6768109 | I6: =SUMIFS(F_Inputs!H:H, F_Inputs!$A:$A, 'Consolidated actual totex inp'!$E$1, F_Inputs!$B:$B, 'Consolidated actual totex inp'!$C6)*'Consolidated actual totex inp'!I$3 -> 507.066 | J6: =SUMIFS(F_Inputs!I:I, F_Inputs!$A:$A, 'Consolidated actual totex inp'!$E$1, F_Inputs!$B:$B, 'Consolidated actual totex inp'!$C6)*'Consolidated actual totex inp'!J$3 -> 722.4918093 | K6: =SUMIFS(F_Inputs!J:J, F_Inputs!$A:$A, 'Consolidated actual totex inp'!$E$1, F_Inputs!$B:$B, 'Consolidated actual totex inp'!$C6)*'Consolidated actual totex inp'!K$3 -> 637.6329705
B7: B0143TAWWNP | C7: B0143TAWWNP_PR24 | F7: Totex (net of business rates, abstraction licence fees and grants and contributions) - Total actual totex (net of business rates, abstraction licence fees and grants and contributions) - Wastewater network plus | G7: =SUMIFS('F_Inputs-APR & PR19'!F:F, 'F_Inputs-APR & PR19'!$A:$A, 'Consolidated actual totex inp'!$E$1, 'F_Inputs-APR & PR19'!$B:$B, 'Consolidated actual totex inp'!$B7) -> 403.058 | H7: =SUMIFS('F_Inputs-APR & PR19'!G:G, 'F_Inputs-APR & PR19'!$A:$A, 'Consolidated actual totex inp'!$E$1, 'F_Inputs-APR & PR19'!$B:$B, 'Consolidated actual totex inp'!$B7) -> 442.1774836 | I7: =SUMIFS(F_Inputs!H:H, F_Inputs!$A:$A, 'Consolidated actual totex inp'!$E$1, F_Inputs!$B:$B, 'Consolidated actual totex inp'!$C7)*'Consolidated actual totex inp'!I$3 -> 510.316 | J7: =SUMIFS(F_Inputs!I:I, F_Inputs!$A:$A, 'Consolidated actual totex inp'!$E$1, F_Inputs!$B:$B, 'Consolidated actual totex inp'!$C7)*'Consolidated actual totex inp'!J$3 -> 570.1732595 | K7: =SUMIFS(F_Inputs!J:J, F_Inputs!$A:$A, 'Consolidated actual totex inp'!$E$1, F_Inputs!$B:$B, 'Consolidated actual totex inp'!$C7)*'Consolidated actual totex inp'!K$3 -> 705.2626591
B8: B0143TATTTH | C8: B0143TATTTH_PR24 | F8: Totex (net of business rates, abstraction licence fees and grants and contributions) - Total actual totex (net of business rates, abstraction licence fees and grants and contributions) - Additional Control | G8: =SUMIFS('F_Inputs-APR & PR19'!F:F, 'F_Inputs-APR & PR19'!$A:$A, 'Consolidated actual totex inp'!$E$1, 'F_Inputs-APR & PR19'!$B:$B, 'Consolidated actual totex inp'!$B8) -> 0 | H8: =SUMIFS('F_Inputs-APR & PR19'!G:G, 'F_Inputs-APR & PR19'!$A:$A, 'Consolidated actual totex inp'!$E$1, 'F_Inputs-APR & PR19'!$B:$B, 'Consolidated actual totex inp'!$B8) -> 0 | I8: =SUMIFS(F_Inputs!H:H, F_Inputs!$A:$A, 'Consolidated actual totex inp'!$E$1, F_Inputs!$B:$B, 'Consolidated actual totex inp'!$C8)*'Consolidated actual totex inp'!I$3 -> 0 | J8: =SUMIFS(F_Inputs!I:I, F_Inputs!$A:$A, 'Consolidated actual totex inp'!$E$1, F_Inputs!$B:$B, 'Consolidated actual totex inp'!$C8)*'Consolidated actual totex inp'!J$3 -> 0 | K8: =SUMIFS(F_Inputs!J:J, F_Inputs!$A:$A, 'Consolidated actual totex inp'!$E$1, F_Inputs!$B:$B, 'Consolidated actual totex inp'!$C8)*'Consolidated actual totex inp'!K$3 -> 0
B9: WS01008WR | C9: PD9_08WR_PR24 | F9: Totex - business rates and abstraction licence fees - Actual totex - business rates - Water resources | G9: =SUMIFS('F_Inputs-APR & PR19'!F:F, 'F_Inputs-APR & PR19'!$A:$A, 'Consolidated actual totex inp'!$E$1, 'F_Inputs-APR & PR19'!$B:$B, 'Consolidated actual totex inp'!$B9) -> 2.545 | H9: =SUMIFS('F_Inputs-APR & PR19'!G:G, 'F_Inputs-APR & PR19'!$A:$A, 'Consolidated actual totex inp'!$E$1, 'F_Inputs-APR & PR19'!$B:$B, 'Consolidated actual totex inp'!$B9) -> 2.886939877 | I9: =SUMIFS(F_Inputs!H:H, F_Inputs!$A:$A, 'Consolidated actual totex inp'!$E$1, F_Inputs!$B:$B, 'Consolidated actual totex inp'!$C9)*'Consolidated actual totex inp'!I$3 -> 2.376 | J9: =SUMIFS(F_Inputs!I:I, F_Inputs!$A:$A, 'Consolidated actual totex inp'!$E$1, F_Inputs!$B:$B, 'Consolidated actual totex inp'!$C9)*'Consolidated actual totex inp'!J$3 -> 2.583500999 | K9: =SUMIFS(F_Inputs!J:J, F_Inputs!$A:$A, 'Consolidated actual totex inp'!$E$1, F_Inputs!$B:$B, 'Consolidated actual totex inp'!$C9)*'Consolidated actual totex inp'!K$3 -> 2.710582323
B10: BM317WN | C10: PD9_08WNP_PR24 | F10: Totex - business rates and abstraction licence fees - Actual totex - business rates - Water network plus | G10: =SUMIFS('F_Inputs-APR & PR19'!F:F, 'F_Inputs-APR & PR19'!$A:$A, 'Consolidated actual totex inp'!$E$1, 'F_Inputs-APR & PR19'!$B:$B, 'Consolidated actual totex inp'!$B10) -> 37.585 | H10: =SUMIFS('F_Inputs-APR & PR19'!G:G, 'F_Inputs-APR & PR19'!$A:$A, 'Consolidated actual totex inp'!$E$1, 'F_Inputs-APR & PR19'!$B:$B, 'Consolidated actual totex inp'!$B10) -> 37.852372 | I10: =SUMIFS(F_Inputs!H:H, F_Inputs!$A:$A, 'Consolidated actual totex inp'!$E$1, F_Inputs!$B:$B, 'Consolidated actual totex inp'!$C10)*'Consolidated actual totex inp'!I$3 -> 30.828 | J10: =SUMIFS(F_Inputs!I:I, F_Inputs!$A:$A, 'Consolidated actual totex inp'!$E$1, F_Inputs!$B:$B, 'Consolidated actual totex inp'!$C10)*'Consolidated actual totex inp'!J$3 -> 34.08049533 | K10: =SUMIFS(F_Inputs!J:J, F_Inputs!$A:$A, 'Consolidated actual totex inp'!$E$1, F_Inputs!$B:$B, 'Consolidated actual totex inp'!$C10)*'Consolidated actual totex inp'!K$3 -> 36.42905872
B11: BM817WNK | C11: PD9_08WWNP_PR24 | F11: Totex - business rates and abstraction licence fees - Actual totex - business rates - Wastewater network plus | G11: =SUMIFS('F_Inputs-APR & PR19'!F:F, 'F_Inputs-APR & PR19'!$A:$A, 'Consolidated actual totex inp'!$E$1, 'F_Inputs-APR & PR19'!$B:$B, 'Consolidated actual totex inp'!$B11) -> 21.362 | H11: =SUMIFS('F_Inputs-APR & PR19'!G:G, 'F_Inputs-APR & PR19'!$A:$A, 'Consolidated actual totex inp'!$E$1, 'F_Inputs-APR & PR19'!$B:$B, 'Consolidated actual totex inp'!$B11) -> 19.9665633 | I11: =SUMIFS(F_Inputs!H:H, F_Inputs!$A:$A, 'Consolidated actual totex inp'!$E$1, F_Inputs!$B:$B, 'Consolidated actual totex inp'!$C11)*'Consolidated actual totex inp'!I$3 -> 20.754 | J11: =SUMIFS(F_Inputs!I:I, F_Inputs!$A:$A, 'Consolidated actual totex inp'!$E$1, F_Inputs!$B:$B, 'Consolidated actual totex inp'!$C11)*'Consolidated actual totex inp'!J$3 -> 25.16363117 | K11: =SUMIFS(F_Inputs!J:J, F_Inputs!$A:$A, 'Consolidated actual totex inp'!$E$1, F_Inputs!$B:$B, 'Consolidated actual totex inp'!$C11)*'Consolidated actual totex inp'!K$3 -> 29.81424314
B12: BM817SG | C12: PD9_08BIO_PR24 | F12: Totex - business rates and abstraction licence fees - Actual totex - business rates - Bioresources | G12: =SUMIFS('F_Inputs-APR & PR19'!F:F, 'F_Inputs-APR & PR19'!$A:$A, 'Consolidated actual totex inp'!$E$1, 'F_Inputs-APR & PR19'!$B:$B, 'Consolidated actual totex inp'!$B12) -> 3.287 | H12: =SUMIFS('F_Inputs-APR & PR19'!G:G, 'F_Inputs-APR & PR19'!$A:$A, 'Consolidated actual totex inp'!$E$1, 'F_Inputs-APR & PR19'!$B:$B, 'Consolidated actual totex inp'!$B12) -> 3.12346506 | I12: =SUMIFS(F_Inputs!H:H, F_Inputs!$A:$A, 'Consolidated actual totex inp'!$E$1, F_Inputs!$B:$B, 'Consolidated actual totex inp'!$C12)*'Consolidated actual totex inp'!I$3 -> 3.212 | J12: =SUMIFS(F_Inputs!I:I, F_Inputs!$A:$A, 'Consolidated actual totex inp'!$E$1, F_Inputs!$B:$B, 'Consolidated actual totex inp'!$C12)*'Consolidated actual totex inp'!J$3 -> 3.870741486 | K12: =SUMIFS(F_Inputs!J:J, F_Inputs!$A:$A, 'Consolidated actual totex inp'!$E$1, F_Inputs!$B:$B, 'Consolidated actual totex inp'!$C12)*'Consolidated actual totex inp'!K$3 -> 4.740005147
B13: BM817TTT | C13: PD9_08ADDN1_PR24 | F13: Totex - business rates and abstraction licence fees - Actual totex - business rates - Additional Control | G13: =SUMIFS('F_Inputs-APR & PR19'!F:F, 'F_Inputs-APR & PR19'!$A:$A, 'Consolidated actual totex inp'!$E$1, 'F_Inputs-APR & PR19'!$B:$B, 'Consolidated actual totex inp'!$B13) -> 0 | H13: =SUMIFS('F_Inputs-APR & PR19'!G:G, 'F_Inputs-APR & PR19'!$A:$A, 'Consolidated actual totex inp'!$E$1, 'F_Inputs-APR & PR19'!$B:$B, 'Consolidated actual totex inp'!$B13) -> 0 | I13: =SUMIFS(F_Inputs!H:H, F_Inputs!$A:$A, 'Consolidated actual totex inp'!$E$1, F_Inputs!$B:$B, 'Consolidated actual totex inp'!$C13)*'Consolidated actual totex inp'!I$3 -> 0 | J13: =SUMIFS(F_Inputs!I:I, F_Inputs!$A:$A, 'Consolidated actual totex inp'!$E$1, F_Inputs!$B:$B, 'Consolidated actual totex inp'!$C13)*'Consolidated actual totex inp'!J$3 -> 0 | K13: =SUMIFS(F_Inputs!J:J, F_Inputs!$A:$A, 'Consolidated actual totex inp'!$E$1, F_Inputs!$B:$B, 'Consolidated actual totex inp'!$C13)*'Consolidated actual totex inp'!K$3 -> 0
B14: B0012WR | C14: PD9_10WR_PR24 | F14: Totex - business rates and abstraction licence fees - Actual totex - abstraction licence fees - Water resources | G14: =SUMIFS('F_Inputs-APR & PR19'!F:F, 'F_Inputs-APR & PR19'!$A:$A, 'Consolidated actual totex inp'!$E$1, 'F_Inputs-APR & PR19'!$B:$B, 'Consolidated actual totex inp'!$B14) -> 9.869 | H14: =SUMIFS('F_Inputs-APR & PR19'!G:G, 'F_Inputs-APR & PR19'!$A:$A, 'Consolidated actual totex inp'!$E$1, 'F_Inputs-APR & PR19'!$B:$B, 'Consolidated actual totex inp'!$B14) -> 10.10863124 | I14: =SUMIFS(F_Inputs!H:H, F_Inputs!$A:$A, 'Consolidated actual totex inp'!$E$1, F_Inputs!$B:$B, 'Consolidated actual totex inp'!$C14)*'Consolidated actual totex inp'!I$3 -> 10.096 | J14: =SUMIFS(F_Inputs!I:I, F_Inputs!$A:$A, 'Consolidated actual totex inp'!$E$1, F_Inputs!$B:$B, 'Consolidated actual totex inp'!$C14)*'Consolidated actual totex inp'!J$3 -> 9.145798777 | K14: =SUMIFS(F_Inputs!J:J, F_Inputs!$A:$A, 'Consolidated actual totex inp'!$E$1, F_Inputs!$B:$B, 'Consolidated actual totex inp'!$C14)*'Consolidated actual totex inp'!K$3 -> 11.23037153
B15: B0012WN | C15: PD9_10WNP_PR24 | F15: Totex - business rates and abstraction licence fees - Actual totex - abstraction licence fees - Water network plus | G15: =SUMIFS('F_Inputs-APR & PR19'!F:F, 'F_Inputs-APR & PR19'!$A:$A, 'Consolidated actual totex inp'!$E$1, 'F_Inputs-APR & PR19'!$B:$B, 'Consolidated actual totex inp'!$B15) -> 0.507 | H15: =SUMIFS('F_Inputs-APR & PR19'!G:G, 'F_Inputs-APR & PR19'!$A:$A, 'Consolidated actual totex inp'!$E$1, 'F_Inputs-APR & PR19'!$B:$B, 'Consolidated actual totex inp'!$B15) -> 0.488752 | I15: =SUMIFS(F_Inputs!H:H, F_Inputs!$A:$A, 'Consolidated actual totex inp'!$E$1, F_Inputs!$B:$B, 'Consolidated actual totex inp'!$C15)*'Consolidated actual totex inp'!I$3 -> 0.483 | J15: =SUMIFS(F_Inputs!I:I, F_Inputs!$A:$A, 'Consolidated actual totex inp'!$E$1, F_Inputs!$B:$B, 'Consolidated actual totex inp'!$C15)*'Consolidated actual totex inp'!J$3 -> 0.4830143085 | K15: =SUMIFS(F_Inputs!J:J, F_Inputs!$A:$A, 'Consolidated actual totex inp'!$E$1, F_Inputs!$B:$B, 'Consolidated actual totex inp'!$C15)*'Consolidated actual totex inp'!K$3 -> 0.5384403657
B16: B0413TGTE_WR | C16: B0413TGTE_WR_PR24 | F16: Green recovery programme - Total green recovery programme expenditure - Totex - Water resources - Expenditure in report year | G16: =SUMIFS('F_Inputs-APR & PR19'!F:F, 'F_Inputs-APR & PR19'!$A:$A, 'Consolidated actual totex inp'!$E$1, 'F_Inputs-APR & PR19'!$B:$B, 'Consolidated actual totex inp'!$B16) -> 0 | H16: =SUMIFS('F_Inputs-APR & PR19'!G:G, 'F_Inputs-APR & PR19'!$A:$A, 'Consolidated actual totex inp'!$E$1, 'F_Inputs-APR & PR19'!$B:$B, 'Consolidated actual totex inp'!$B16) -> 0 | I16: =SUMIFS(F_Inputs!H:H, F_Inputs!$A:$A, 'Consolidated actual totex inp'!$E$1, F_Inputs!$B:$B, 'Consolidated actual totex inp'!$C16)*'Consolidated actual totex inp'!I$3 -> 0 | J16: =SUMIFS(F_Inputs!I:I, F_Inputs!$A:$A, 'Consolidated actual totex inp'!$E$1, F_Inputs!$B:$B, 'Consolidated actual totex inp'!$C16)*'Consolidated actual totex inp'!J$3 -> 0 | K16: =SUMIFS(F_Inputs!J:J, F_Inputs!$A:$A, 'Consolidated actual totex inp'!$E$1, F_Inputs!$B:$B, 'Consolidated actual totex inp'!$C16)*'Consolidated actual totex inp'!K$3 -> 0
B17: B0420TGTE_RW | C17: B0420TGTE_RW_PR24 | F17: Green recovery programme - Total green recovery programme expenditure - Totex - Raw water transport - Water network+ - Expenditure in report year | G17: =SUMIFS('F_Inputs-APR & PR19'!F:F, 'F_Inputs-APR & PR19'!$A:$A, 'Consolidated actual totex inp'!$E$1, 'F_Inputs-APR & PR19'!$B:$B, 'Consolidated actual totex inp'!$B17) -> 0 | H17: =SUMIFS('F_Inputs-APR & PR19'!G:G, 'F_Inputs-APR & PR19'!$A:$A, 'Consolidated actual totex inp'!$E$1, 'F_Inputs-APR & PR19'!$B:$B, 'Consolidated actual totex inp'!$B17) -> 0 | I17: =SUMIFS(F_Inputs!H:H, F_Inputs!$A:$A, 'Consolidated actual totex inp'!$E$1, F_Inputs!$B:$B, 'Consolidated actual totex inp'!$C17)*'Consolidated actual totex inp'!I$3 -> 0 | J17: =SUMIFS(F_Inputs!I:I, F_Inputs!$A:$A, 'Consolidated actual totex inp'!$E$1, F_Inputs!$B:$B, 'Consolidated actual totex inp'!$C17)*'Consolidated actual totex inp'!J$3 -> 0 | K17: =SUMIFS(F_Inputs!J:J, F_Inputs!$A:$A, 'Consolidated actual totex inp'!$E$1, F_Inputs!$B:$B, 'Consolidated actual totex inp'!$C17)*'Consolidated actual totex inp'!K$3 -> 0
B18: B0427TGTE_SW | C18: B0427TGTE_SW_PR24 | F18: Green recovery programme - Total green recovery programme expenditure - Totex - Raw water storage - Water network+ - Expenditure in report year | G18: =SUMIFS('F_Inputs-APR & PR19'!F:F, 'F_Inputs-APR & PR19'!$A:$A, 'Consolidated actual totex inp'!$E$1, 'F_Inputs-APR & PR19'!$B:$B, 'Consolidated actual totex inp'!$B18) -> 0 | H18: =SUMIFS('F_Inputs-APR & PR19'!G:G, 'F_Inputs-APR & PR19'!$A:$A, 'Consolidated actual totex inp'!$E$1, 'F_Inputs-APR & PR19'!$B:$B, 'Consolidated actual totex inp'!$B18) -> 0 | I18: =SUMIFS(F_Inputs!H:H, F_Inputs!$A:$A, 'Consolidated actual totex inp'!$E$1, F_Inputs!$B:$B, 'Consolidated actual totex inp'!$C18)*'Consolidated actual totex inp'!I$3 -> 0 | J18: =SUMIFS(F_Inputs!I:I, F_Inputs!$A:$A, 'Consolidated actual totex inp'!$E$1, F_Inputs!$B:$B, 'Consolidated actual totex inp'!$C18)*'Consolidated actual totex inp'!J$3 -> 0 | K18: =SUMIFS(F_Inputs!J:J, F_Inputs!$A:$A, 'Consolidated actual totex inp'!$E$1, F_Inputs!$B:$B, 'Consolidated actual totex inp'!$C18)*'Consolidated actual totex inp'!K$3 -> 0
B19: B0434TGTE_TW | C19: B0434TGTE_TW_PR24 | F19: Green recovery programme - Total green recovery programme expenditure - Totex - Water treatment - Water network+ - Expenditure in report year | G19: =SUMIFS('F_Inputs-APR & PR19'!F:F, 'F_Inputs-APR & PR19'!$A:$A, 'Consolidated actual totex inp'!$E$1, 'F_Inputs-APR & PR19'!$B:$B, 'Consolidated actual totex inp'!$B19) -> 0 | H19: =SUMIFS('F_Inputs-APR & PR19'!G:G, 'F_Inputs-APR & PR19'!$A:$A, 'Consolidated actual totex inp'!$E$1, 'F_Inputs-APR & PR19'!$B:$B, 'Consolidated actual totex inp'!$B19) -> 0 | I19: =SUMIFS(F_Inputs!H:H, F_Inputs!$A:$A, 'Consolidated actual totex inp'!$E$1, F_Inputs!$B:$B, 'Consolidated actual totex inp'!$C19)*'Consolidated actual totex inp'!I$3 -> 0 | J19: =SUMIFS(F_Inputs!I:I, F_Inputs!$A:$A, 'Consolidated actual totex inp'!$E$1, F_Inputs!$B:$B, 'Consolidated actual totex inp'!$C19)*'Consolidated actual totex inp'!J$3 -> 0 | K19: =SUMIFS(F_Inputs!J:J, F_Inputs!$A:$A, 'Consolidated actual totex inp'!$E$1, F_Inputs!$B:$B, 'Consolidated actual totex inp'!$C19)*'Consolidated actual totex inp'!K$3 -> 0
B20: B0441TGTE_DW | C20: B0441TGTE_DW_PR24 | F20: Green recovery programme - Total green recovery programme expenditure - Totex - Treated water distribution - Water network+ - Expenditure in report year | G20: =SUMIFS('F_Inputs-APR & PR19'!F:F, 'F_Inputs-APR & PR19'!$A:$A, 'Consolidated actual totex inp'!$E$1, 'F_Inputs-APR & PR19'!$B:$B, 'Consolidated actual totex inp'!$B20) -> 0 | H20: =SUMIFS('F_Inputs-APR & PR19'!G:G, 'F_Inputs-APR & PR19'!$A:$A, 'Consolidated actual totex inp'!$E$1, 'F_Inputs-APR & PR19'!$B:$B, 'Consolidated actual totex inp'!$B20) -> 0 | I20: =SUMIFS(F_Inputs!H:H, F_Inputs!$A:$A, 'Consolidated actual totex inp'!$E$1, F_Inputs!$B:$B, 'Consolidated actual totex inp'!$C20)*'Consolidated actual totex inp'!I$3 -> 0 | J20: =SUMIFS(F_Inputs!I:I, F_Inputs!$A:$A, 'Consolidated actual totex inp'!$E$1, F_Inputs!$B:$B, 'Consolidated actual totex inp'!$C20)*'Consolidated actual totex inp'!J$3 -> 0 | K20: =SUMIFS(F_Inputs!J:J, F_Inputs!$A:$A, 'Consolidated actual totex inp'!$E$1, F_Inputs!$B:$B, 'Consolidated actual totex inp'!$C20)*'Consolidated actual totex inp'!K$3 -> 0
B21: B0513TGTE_FOW | C21: B0513TGTE_FOW_PR24 | F21: Green recovery programme - Total green recovery programme expenditure - Totex - Foul - Wastewater network+ - Expenditure in report year | G21: =SUMIFS('F_Inputs-APR & PR19'!F:F, 'F_Inputs-APR & PR19'!$A:$A, 'Consolidated actual totex inp'!$E$1, 'F_Inputs-APR & PR19'!$B:$B, 'Consolidated actual totex inp'!$B21) -> 0 | H21: =SUMIFS('F_Inputs-APR & PR19'!G:G, 'F_Inputs-APR & PR19'!$A:$A, 'Consolidated actual totex inp'!$E$1, 'F_Inputs-APR & PR19'!$B:$B, 'Consolidated actual totex inp'!$B21) -> 0 | I21: =SUMIFS(F_Inputs!H:H, F_Inputs!$A:$A, 'Consolidated actual totex inp'!$E$1, F_Inputs!$B:$B, 'Consolidated actual totex inp'!$C21)*'Consolidated actual totex inp'!I$3 -> 0 | J21: =SUMIFS(F_Inputs!I:I, F_Inputs!$A:$A, 'Consolidated actual totex inp'!$E$1, F_Inputs!$B:$B, 'Consolidated actual totex inp'!$C21)*'Consolidated actual totex inp'!J$3 -> 0 | K21: =SUMIFS(F_Inputs!J:J, F_Inputs!$A:$A, 'Consolidated actual totex inp'!$E$1, F_Inputs!$B:$B, 'Consolidated actual totex inp'!$C21)*'Consolidated actual totex inp'!K$3 -> 0
B22: B0520TGTE_SUW | C22: B0520TGTE_SUW_PR24 | F22: Green recovery programme - Total green recovery programme expenditure - Totex - Surface water drainage - Wastewater network+ - Expenditure in report year | G22: =SUMIFS('F_Inputs-APR & PR19'!F:F, 'F_Inputs-APR & PR19'!$A:$A, 'Consolidated actual totex inp'!$E$1, 'F_Inputs-APR & PR19'!$B:$B, 'Consolidated actual totex inp'!$B22) -> 0 | H22: =SUMIFS('F_Inputs-APR & PR19'!G:G, 'F_Inputs-APR & PR19'!$A:$A, 'Consolidated actual totex inp'!$E$1, 'F_Inputs-APR & PR19'!$B:$B, 'Consolidated actual totex inp'!$B22) -> 0 | I22: =SUMIFS(F_Inputs!H:H, F_Inputs!$A:$A, 'Consolidated actual totex inp'!$E$1, F_Inputs!$B:$B, 'Consolidated actual totex inp'!$C22)*'Consolidated actual totex inp'!I$3 -> 0 | J22: =SUMIFS(F_Inputs!I:I, F_Inputs!$A:$A, 'Consolidated actual totex inp'!$E$1, F_Inputs!$B:$B, 'Consolidated actual totex inp'!$C22)*'Consolidated actual totex inp'!J$3 -> 0 | K22: =SUMIFS(F_Inputs!J:J, F_Inputs!$A:$A, 'Consolidated actual totex inp'!$E$1, F_Inputs!$B:$B, 'Consolidated actual totex inp'!$C22)*'Consolidated actual totex inp'!K$3 -> 0
B23: B0527TGTE_HDW | C23: B0527TGTE_HDW_PR24 | F23: Green recovery programme - Total green recovery programme expenditure - Totex - Highway drainage - Wastewater network+ - Expenditure in report year | G23: =SUMIFS('F_Inputs-APR & PR19'!F:F, 'F_Inputs-APR & PR19'!$A:$A, 'Consolidated actual totex inp'!$E$1, 'F_Inputs-APR & PR19'!$B:$B, 'Consolidated actual totex inp'!$B23) -> 0 | H23: =SUMIFS('F_Inputs-APR & PR19'!G:G, 'F_Inputs-APR & PR19'!$A:$A, 'Consolidated actual totex inp'!$E$1, 'F_Inputs-APR & PR19'!$B:$B, 'Consolidated actual totex inp'!$B23) -> 0 | I23: =SUMIFS(F_Inputs!H:H, F_Inputs!$A:$A, 'Consolidated actual totex inp'!$E$1, F_Inputs!$B:$B, 'Consolidated actual totex inp'!$C23)*'Consolidated actual totex inp'!I$3 -> 0 | J23: =SUMIFS(F_Inputs!I:I, F_Inputs!$A:$A, 'Consolidated actual totex inp'!$E$1, F_Inputs!$B:$B, 'Consolidated actual totex inp'!$C23)*'Consolidated actual totex inp'!J$3 -> 0 | K23: =SUMIFS(F_Inputs!J:J, F_Inputs!$A:$A, 'Consolidated actual totex inp'!$E$1, F_Inputs!$B:$B, 'Consolidated actual totex inp'!$C23)*'Consolidated actual totex inp'!K$3 -> 0
B24: B0534TGTE_STW | C24: B0534TGTE_STW_PR24 | F24: Green recovery programme - Total green recovery programme expenditure - Totex - Sewage treatment and disposal - Wastewater network+ - Expenditure in report year | G24: =SUMIFS('F_Inputs-APR & PR19'!F:F, 'F_Inputs-APR & PR19'!$A:$A, 'Consolidated actual totex inp'!$E$1, 'F_Inputs-APR & PR19'!$B:$B, 'Consolidated actual totex inp'!$B24) -> 0 | H24: =SUMIFS('F_Inputs-APR & PR19'!G:G, 'F_Inputs-APR & PR19'!$A:$A, 'Consolidated actual totex inp'!$E$1, 'F_Inputs-APR & PR19'!$B:$B, 'Consolidated actual totex inp'!$B24) -> 0 | I24: =SUMIFS(F_Inputs!H:H, F_Inputs!$A:$A, 'Consolidated actual totex inp'!$E$1, F_Inputs!$B:$B, 'Consolidated actual totex inp'!$C24)*'Consolidated actual totex inp'!I$3 -> 0 | J24: =SUMIFS(F_Inputs!I:I, F_Inputs!$A:$A, 'Consolidated actual totex inp'!$E$1, F_Inputs!$B:$B, 'Consolidated actual totex inp'!$C24)*'Consolidated actual totex inp'!J$3 -> 0 | K24: =SUMIFS(F_Inputs!J:J, F_Inputs!$A:$A, 'Consolidated actual totex inp'!$E$1, F_Inputs!$B:$B, 'Consolidated actual totex inp'!$C24)*'Consolidated actual totex inp'!K$3 -> 0
B25: B0541TGTE_SLW | C25: B0541TGTE_SLW_PR24 | F25: Green recovery programme - Total green recovery programme expenditure - Totex - Sludge liquor treatment - Wastewater network+ - Expenditure in report year | G25: =SUMIFS('F_Inputs-APR & PR19'!F:F, 'F_Inputs-APR & PR19'!$A:$A, 'Consolidated actual totex inp'!$E$1, 'F_Inputs-APR & PR19'!$B:$B, 'Consolidated actual totex inp'!$B25) -> 0 | H25: =SUMIFS('F_Inputs-APR & PR19'!G:G, 'F_Inputs-APR & PR19'!$A:$A, 'Consolidated actual totex inp'!$E$1, 'F_Inputs-APR & PR19'!$B:$B, 'Consolidated actual totex inp'!$B25) -> 0 | I25: =SUMIFS(F_Inputs!H:H, F_Inputs!$A:$A, 'Consolidated actual totex inp'!$E$1, F_Inputs!$B:$B, 'Consolidated actual totex inp'!$C25)*'Consolidated actual totex inp'!I$3 -> 0 | J25: =SUMIFS(F_Inputs!I:I, F_Inputs!$A:$A, 'Consolidated actual totex inp'!$E$1, F_Inputs!$B:$B, 'Consolidated actual totex inp'!$C25)*'Consolidated actual totex inp'!J$3 -> 0 | K25: =SUMIFS(F_Inputs!J:J, F_Inputs!$A:$A, 'Consolidated actual totex inp'!$E$1, F_Inputs!$B:$B, 'Consolidated actual totex inp'!$C25)*'Consolidated actual totex inp'!K$3 -> 0
C26: PD9_12WR_PR24 | F26: CMA companies only – items excluded from general cost sharing with bespoke sharing rates - Actual totex – items with bespoke sharing rates - Water resources | I26: =SUMIF(F_Inputs!$B:$B, 'Consolidated actual totex inp'!$C26, F_Inputs!H:H)*'Consolidated actual totex inp'!I$3 -> 0 | J26: =SUMIF(F_Inputs!$B:$B, 'Consolidated actual totex inp'!$C26, F_Inputs!I:I)*'Consolidated actual totex inp'!J$3 -> 0 | K26: =SUMIF(F_Inputs!$B:$B, 'Consolidated actual totex inp'!$C26, F_Inputs!J:J)*'Consolidated actual totex inp'!K$3 -> 0
C27: PD9_12WNP_PR24 | F27: CMA companies only – items excluded from general cost sharing with bespoke sharing rates - Actual totex – items with bespoke sharing rates - Water network plus | I27: =SUMIF(F_Inputs!$B:$B, 'Consolidated actual totex inp'!$C27, F_Inputs!H:H)*'Consolidated actual totex inp'!I$3 -> 0 | J27: =SUMIF(F_Inputs!$B:$B, 'Consolidated actual totex inp'!$C27, F_Inputs!I:I)*'Consolidated actual totex inp'!J$3 -> 0 | K27: =SUMIF(F_Inputs!$B:$B, 'Consolidated actual totex inp'!$C27, F_Inputs!J:J)*'Consolidated actual totex inp'!K$3 -> 0
C28: PD9_12WWNP_PR24 | F28: CMA companies only – items excluded from general cost sharing with bespoke sharing rates - Actual totex – items with bespoke sharing rates - Wastewater network plus | I28: =SUMIF(F_Inputs!$B:$B, 'Consolidated actual totex inp'!$C28, F_Inputs!H:H)*'Consolidated actual totex inp'!I$3 -> 0 | J28: =SUMIF(F_Inputs!$B:$B, 'Consolidated actual totex inp'!$C28, F_Inputs!I:I)*'Consolidated actual totex inp'!J$3 -> 0 | K28: =SUMIF(F_Inputs!$B:$B, 'Consolidated actual totex inp'!$C28, F_Inputs!J:J)*'Consolidated actual totex inp'!K$3 -> 0
C29: PD9_12BIO_PR24 | F29: CMA companies only – items excluded from general cost sharing with bespoke sharing rates - Actual totex – items with bespoke sharing rates - Bioresources | I29: =SUMIF(F_Inputs!$B:$B, 'Consolidated actual totex inp'!$C29, F_Inputs!H:H)*'Consolidated actual totex inp'!I$3 -> 0 | J29: =SUMIF(F_Inputs!$B:$B, 'Consolidated actual totex inp'!$C29, F_Inputs!I:I)*'Consolidated actual totex inp'!J$3 -> 0 | K29: =SUMIF(F_Inputs!$B:$B, 'Consolidated actual totex inp'!$C29, F_Inputs!J:J)*'Consolidated actual totex inp'!K$3 -> 0
D31: Data override
F32: Totex (net of business rates, abstraction licence fees and grants and contributions) - Total actual totex (net of business rates, abstraction licence fees and grants and contributions) - Water resources | G32: 33.62 | H32: 35.022 | L32: OFW-OBQ-ANH-135
F33: Totex (net of business rates, abstraction licence fees and grants and contributions) - Total actual totex (net of business rates, abstraction licence fees and grants and contributions) - Water network plus | G33: 356.756 | H33: 388.354 | L33: OFW-OBQ-ANH-135
F34: Totex (net of business rates, abstraction licence fees and grants and contributions) - Total actual totex (net of business rates, abstraction licence fees and grants and contributions) - Wastewater network plus | G34: 357.544 | H34: 441.18 | L34: OFW-OBQ-ANH-135
F35: Totex (net of business rates, abstraction licence fees and grants and contributions) - Total actual totex (net of business rates, abstraction licence fees and grants and contributions) - Additional Control
F36: Totex - business rates and abstraction licence fees - Actual totex - business rates - Water resources
F37: Totex - business rates and abstraction licence fees - Actual totex - business rates - Water network plus
F38: Totex - business rates and abstraction licence fees - Actual totex - business rates - Wastewater network plus
F39: Totex - business rates and abstraction licence fees - Actual totex - business rates - Bioresources
F40: Totex - business rates and abstraction licence fees - Actual totex - business rates - Additional Control
F41: Totex - business rates and abstraction licence fees - Actual totex - abstraction licence fees - Water resources
F42: Totex - business rates and abstraction licence fees - Actual totex - abstraction licence fees - Water network plus
F43: Green recovery programme - Total green recovery programme expenditure - Totex - Water resources - Expenditure in report year
F44: Green recovery programme - Total green recovery programme expenditure - Totex - Raw water transport - Water network+ - Expenditure in report year
F45: Green recovery programme - Total green recovery programme expenditure - Totex - Raw water storage - Water network+ - Expenditure in report year
F46: Green recovery programme - Total green recovery programme expenditure - Totex - Water treatment - Water network+ - Expenditure in report year
F47: Green recovery programme - Total green recovery programme expenditure - Totex - Treated water distribution - Water network+ - Expenditure in report year
F48: Green recovery programme - Total green recovery programme expenditure - Totex - Foul - Wastewater network+ - Expenditure in report year
F49: Green recovery programme - Total green recovery programme expenditure - Totex - Surface water drainage - Wastewater network+ - Expenditure in report year
F50: Green recovery programme - Total green recovery programme expenditure - Totex - Highway drainage - Wastewater network+ - Expenditure in report year
F51: Green recovery programme - Total green recovery programme expenditure - Totex - Sewage treatment and disposal - Wastewater network+ - Expenditure in report year
F52: Green recovery programme - Total green recovery programme expenditure - Totex - Sludge liquor treatment - Wastewater network+ - Expenditure in report year
F53: CMA companies only – items excluded from general cost sharing with bespoke sharing rates - Actual totex – items with bespoke sharing rates - Water resources
F54: CMA companies only – items excluded from general cost sharing with bespoke sharing rates - Actual totex – items with bespoke sharing rates - Water network plus
F55: CMA companies only – items excluded from general cost sharing with bespoke sharing rates - Actual totex – items with bespoke sharing rates - Wastewater network plus
F56: CMA companies only – items excluded from general cost sharing with bespoke sharing rates - Actual totex – items with bespoke sharing rates - Bioresources
D58: Data after override
F59: Totex (net of business rates, abstraction licence fees and grants and contributions) - Total actual totex (net of business rates, abstraction licence fees and grants and contributions) - Water resources | G59: =IF(ISBLANK(G32),G5,G32) -> 33.62 | H59: =IF(ISBLANK(H32),H5,H32) -> 35.022 | I59: 37.326 | J59: 51.90347201 | K59: 43.10815809 | L59: Net totex for cost sharing reconciliation - WR - Nominal
F60: Totex (net of business rates, abstraction licence fees and grants and contributions) - Total actual totex (net of business rates, abstraction licence fees and grants and contributions) - Water network plus | G60: =IF(ISBLANK(G33),G6,G33) -> 356.756 | H60: 388.354 | I60: 507.066 | J60: 722.4918093 | K60: 637.6329705 | L60: Net totex for cost sharing reconciliation - WN - Nominal
F61: Totex (net of business rates, abstraction licence fees and grants and contributions) - Total actual totex (net of business rates, abstraction licence fees and grants and contributions) - Wastewater network plus | G61: =IF(ISBLANK(G34),G7,G34) -> 357.544 | H61: 441.18 | I61: 510.316 | J61: 570.1732595 | K61: 705.2626591 | L61: Net totex for cost sharing reconciliation - WWN - nominal
F62: Totex (net of business rates, abstraction licence fees and grants and contributions) - Total actual totex (net of business rates, abstraction licence fees and grants and contributions) - Additional Control | G62: =IF(ISBLANK(G35),G8,G35) -> 0 | H62: 0 | I62: 0 | J62: 0 | K62: 0 | L62: Net totex for cost sharing reconciliation - TTT - nominal
F63: Totex - business rates and abstraction licence fees - Actual totex - business rates - Water resources | G63: =IF(ISBLANK(G36),G9,G36) -> 2.545 | H63: 2.886939877 | I63: 2.376 | J63: 2.583500999 | K63: 2.710582323 | L63: Business rates - Actual - WR - Nominal
F64: Totex - business rates and abstraction licence fees - Actual totex - business rates - Water network plus | G64: =IF(ISBLANK(G37),G10,G37) -> 37.585 | H64: 37.852372 | I64: 30.828 | J64: 34.08049533 | K64: 36.42905872 | L64: Business rates - Actual - WN - Nominal
F65: Totex - business rates and abstraction licence fees - Actual totex - business rates - Wastewater network plus | G65: =IF(ISBLANK(G38),G11,G38) -> 21.362 | H65: 19.9665633 | I65: 20.754 | J65: 25.16363117 | K65: 29.81424314 | L65: Business rates - Actual - WWN - Nominal
F66: Totex - business rates and abstraction licence fees - Actual totex - business rates - Bioresources | G66: =IF(ISBLANK(G39),G12,G39) -> 3.287 | H66: 3.12346506 | I66: 3.212 | J66: 3.870741486 | K66: 4.740005147 | L66: Business rates - Actual - BIO - Nominal
F67: Totex - business rates and abstraction licence fees - Actual totex - business rates - Additional Control | G67: =IF(ISBLANK(G40),G13,G40) -> 0 | H67: 0 | I67: 0 | J67: 0 | K67: 0
F68: Totex - business rates and abstraction licence fees - Actual totex - abstraction licence fees - Water resources | G68: =IF(ISBLANK(G41),G14,G41) -> 9.869 | H68: 10.10863124 | I68: 10.096 | J68: 9.145798777 | K68: 11.23037153 | L68: Abstraction charges - Actual - WR - Nominal
F69: Totex - business rates and abstraction licence fees - Actual totex - abstraction licence fees - Water network plus | G69: =IF(ISBLANK(G42),G15,G42) -> 0.507 | H69: 0.488752 | I69: 0.483 | J69: 0.4830143085 | K69: 0.5384403657 | L69: Abstraction charges - Actual - WN - Nominal
F70: Green recovery programme - Total green recovery programme expenditure - Totex - Water resources - Expenditure in report year | G70: =IF(ISBLANK(G43),G16,G43) -> 0 | H70: 0 | I70: 0 | J70: 0 | K70: 0 | L70: Actual Green Recovery Expenditure - WR - nominal
F71: Green recovery programme - Total green recovery programme expenditure - Totex - Raw water transport - Water network+ - Expenditure in report year | G71: =IF(ISBLANK(G44),G17,G44) -> 0 | H71: 0 | I71: 0 | J71: 0 | K71: 0 | L71: Actual Green Recovery Expenditure - WN - nominal
F72: Green recovery programme - Total green recovery programme expenditure - Totex - Raw water storage - Water network+ - Expenditure in report year | G72: =IF(ISBLANK(G45),G18,G45) -> 0 | H72: 0 | I72: 0 | J72: 0 | K72: 0 | L72: Actual Green Recovery Expenditure - WN - nominal
F73: Green recovery programme - Total green recovery programme expenditure - Totex - Water treatment - Water network+ - Expenditure in report year | G73: =IF(ISBLANK(G46),G19,G46) -> 0 | H73: 0 | I73: 0 | J73: 0 | K73: 0 | L73: Actual Green Recovery Expenditure - WN - nominal
F74: Green recovery programme - Total green recovery programme expenditure - Totex - Treated water distribution - Water network+ - Expenditure in report year | G74: =IF(ISBLANK(G47),G20,G47) -> 0 | H74: 0 | I74: 0 | J74: 0 | K74: 0 | L74: Actual Green Recovery Expenditure - WN - nominal
F75: Green recovery programme - Total green recovery programme expenditure - Totex - Foul - Wastewater network+ - Expenditure in report year | G75: =IF(ISBLANK(G48),G21,G48) -> 0 | H75: 0 | I75: 0 | J75: 0 | K75: 0 | L75: Actual Green Recovery Expenditure - WWN - nominal
F76: Green recovery programme - Total green recovery programme expenditure - Totex - Surface water drainage - Wastewater network+ - Expenditure in report year | G76: =IF(ISBLANK(G49),G22,G49) -> 0 | H76: 0 | I76: 0 | J76: 0 | K76: 0 | L76: Actual Green Recovery Expenditure - WWN - nominal
F77: Green recovery programme - Total green recovery programme expenditure - Totex - Highway drainage - Wastewater network+ - Expenditure in report year | G77: =IF(ISBLANK(G50),G23,G50) -> 0 | H77: 0 | I77: 0 | J77: 0 | K77: 0 | L77: Actual Green Recovery Expenditure - WWN - nominal
F78: Green recovery programme - Total green recovery programme expenditure - Totex - Sewage treatment and disposal - Wastewater network+ - Expenditure in report year | G78: =IF(ISBLANK(G51),G24,G51) -> 0 | H78: 0 | I78: 0 | J78: 0 | K78: 0 | L78: Actual Green Recovery Expenditure - WWN - nominal
F79: Green recovery programme - Total green recovery programme expenditure - Totex - Sludge liquor treatment - Wastewater network+ - Expenditure in report year | G79: =IF(ISBLANK(G52),G25,G52) -> 0 | H79: 0 | I79: 0 | J79: 0 | K79: 0 | L79: Actual Green Recovery Expenditure - WWN - nominal
F80: CMA companies only – items excluded from general cost sharing with bespoke sharing rates - Actual totex – items with bespoke sharing rates - Water resources | G80: =IF(ISBLANK(G53),G26,G53) -> 0 | H80: 0 | I80: 0 | J80: 0 | K80: 0 | L80: Actuals for CMA excluded items - WR - nominal
F81: CMA companies only – items excluded from general cost sharing with bespoke sharing rates - Actual totex – items with bespoke sharing rates - Water network plus | G81: =IF(ISBLANK(G54),G27,G54) -> 0 | H81: 0 | I81: 0 | J81: 0 | K81: 0 | L81: Actuals for CMA excluded items - WN - nominal
F82: CMA companies only – items excluded from general cost sharing with bespoke sharing rates - Actual totex – items with bespoke sharing rates - Wastewater network plus | G82: =IF(ISBLANK(G55),G28,G55) -> 0 | H82: 0 | I82: 0 | J82: 0 | K82: 0 | L82: Actuals for CMA excluded items - WWN - nominal
F83: CMA companies only – items excluded from general cost sharing with bespoke sharing rates - Actual totex – items with bespoke sharing rates - Bioresources | G83: =IF(ISBLANK(G56),G29,G56) -> 0 | H83: 0 | I83: 0 | J83: 0 | K83: 0 | L83: Actuals for CMA excluded items - BIO - nominal

Sheet Non-fountain inputs
A1: =RIGHT(CELL("filename", $A$1), LEN(CELL("filename", $A$1)) - SEARCH("]", CELL("filename", $A$1))) -> Non-fountain inputs
A3: ANH IDoK (to be added to costs for wage adjustment) | B3: ANH_Interim_Determination_Final_Determination.pdf (ofwat.gov.uk)
B4: 2020-25
A5: WN+ | B5: 83.334
A8: ASHE - Mean hourly pay, all manufacturing £/h nominal | B8: Earnings and hours worked, industry by two-digit SIC: ASHE Table 4 - Office for National Statistics (ons.gov.uk)
B9: 2019-20 | C9: 2020-21 | D9: 2021-22 | E9: 22-23 | F9: 23-24
B10: 17.06 | C10: 17.54 | D10: 18.14 | E10: 19.68 | F10: 20.81
B11: Final | C11: Final | D11: Final | E11: Final (29/10/24) | F11: Provisional
A13: Wage rate adjustment for CMA companies - base and enhancement costs (from CMA opex capex split model, row 54) | C13: WR | D13: WN+ | E13: WWN+ | F13: Bio
A14: ANH | B14: Base | C14: 196.5135876 | D14: 1409.855537 | E14: 1801.63205 | F14: 388.9567013
A15: ANH | B15: Enhancement | C15: 38.74883958 | D15: 680.0027888 | E15: 734.2778888 | F15: 12.56406756
A16: NES | B16: Base | C16: 310.5063595 | D16: 1220.08081 | E16: 804.2932287 | F16: 83.44829426
A17: NES | B17: Enhancement | C17: 14.22499588 | D17: 164.8539481 | E17: 184.2442552 | F17: 0
A18: YKY | B18: Base | C18: 189.51608 | D18: 1468.528665 | E18: 1405.181054 | F18: 271.9563528
A19: YKY | B19: Enhancement | C19: 33.14050984 | D19: 129.8267195 | E19: 745.2851295 | F19: 34.89812405
A20: BRL | B20: Base | C20: 76.76377359 | D20: 333.0313126 | E20: 0 | F20: 0
A21: BRL | B21: Enhancement | C21: 6.349125442 | D21: 23.26137966 | E21: 0 | F21: 0
A23: Allowance for CMA excluded items - 2017-18 prices (and TMS conditional allowance reconciliation) | C23: 2020-21 | D23: 2021-22 | E23: 2022-23 | F23: 2023-24 | G23: 2024-25
A24: ANH | B24: Allowance for CMA excluded items - WR - real | C24: 0 | D24: 0 | E24: 0 | F24: 0 | G24: 0
A25: ANH | B25: Allowance for CMA excluded items - WN - real | C25: 0 | D25: 0 | E25: 0 | F25: 0 | G25: 0
A26: ANH | B26: Allowance for CMA excluded items - WWN - real | C26: 0 | D26: 0 | E26: 0 | F26: 0 | G26: 0
A27: ANH | B27: Allowance for CMA excluded items - BIO - real | C27: 0 | D27: 0 | E27: 0 | F27: 0 | G27: 0
A28: NES | B28: Allowance for CMA excluded items - WR - real | C28: 0 | D28: 0 | E28: 0 | F28: 0 | G28: 0
A29: NES | B29: Allowance for CMA excluded items - WN - real | C29: 0 | D29: 0 | E29: 0 | F29: 0 | G29: 0
A30: NES | B30: Allowance for CMA excluded items - WWN - real | C30: 0 | D30: 0 | E30: 0 | F30: 0 | G30: 0
A31: NES | B31: Allowance for CMA excluded items - BIO - real | C31: 2.4 | D31: 2.4 | E31: 2.4 | F31: 2.4 | G31: 2.4
A32: YKY | B32: Allowance for CMA excluded items - WR - real | C32: 0 | D32: 0 | E32: 0 | F32: 0 | G32: 0
A33: YKY | B33: Allowance for CMA excluded items - WN - real | C33: 0 | D33: 0 | E33: 0 | F33: 0 | G33: 0
A34: YKY | B34: Allowance for CMA excluded items - WWN - real | C34: 0 | D34: 0 | E34: 0 | F34: 0 | G34: 0
A35: YKY | B35: Allowance for CMA excluded items - BIO - real | C35: 0 | D35: 0 | E35: 0 | F35: 0 | G35: 0
A36: BRL | B36: Allowance for CMA excluded items - WR - real | C36: 0 | D36: 0 | E36: 0 | F36: 0 | G36: 0 | H36: BRL incl CMA redetermination costs as excluded but since these were included in the
A37: BRL | B37: Allowance for CMA excluded items - WN - real | C37: 0 | D37: 0 | E37: 0 | F37: 0 | G37: 0 | H37: CMA's redetermination allowance there is no reconciliation required.
A38: BRL | B38: Allowance for CMA excluded items - WWN - real | C38: 0 | D38: 0 | E38: 0 | F38: 0 | G38: 0
A39: BRL | B39: Allowance for CMA excluded items - BIO - real | C39: 0 | D39: 0 | E39: 0 | F39: 0 | G39: 0
A40: TMS | B40: Allowance for CMA excluded items - WR - real | C40: 0 | D40: 0 | E40: 0 | F40: 0 | G40: 0
A41: TMS | B41: Allowance for CMA excluded items - WN - real | C41: 28.20314628 | D41: 37.33113936 | E41: 40.95097815 | F41: 38.771684 | G41: 40.54305221 | H41: OFW-OBQ-TMS-131
A42: TMS | B42: Allowance for CMA excluded items - WWN - real | C42: 0 | D42: 0 | E42: 0 | F42: 0 | G42: 0
A43: TMS | B43: Allowance for CMA excluded items - BIO - real | C43: 0 | D43: 0 | E43: 0 | F43: 0 | G43: 0
A45: CMA allowance for business rates | B45: WR | C45: WN+ | D45: WWN+ | E45: BIO
A46: ANH | B46: 15.42473468 | C46: 178.4431863 | D46: 103.0322748 | E46: 14.43794908
A47: NES | B47: 19.37308753 | C47: 125.0919125 | D47: 33.14024349 | E47: 6.803566505
A48: YKY | B48: 38.55443028 | C48: 153.0455697 | D48: 82.37574646 | E48: 5.680512016
A49: BRL | B49: 6.33676683 | C49: 17.29709317
A51: CMA allowance for abstraction charges | B51: WR | C51: WN+
A52: ANH | B52: 47.35885579 | C52: 2.336412919
A53: NES | B53: 198.0618163 | C53: 1.938183687
A54: YKY | B54: 26.353 | C54: 0.125
A55: BRL | B55: 14.512 | C55: 0.518
A57: Bespoke cost sharing rates
B58: PR19 | C58: CMA
A59: Cost sharing rates totex - overperformance | C59: 0.45
A60: Cost sharing rates totex - Underperformance | C60: 0.55
A61: Cost sharing rates Business rates - Overperformance | B61: 0.25 | C61: 0.1
A62: Cost sharing rates Business rates - Underperformance | B62: 0.25 | C62: 0.1
A63: Cost sharing rates Abstraction - Overperformance | B63: 0.25 | C63: 0.25
A64: Cost sharing rates Abstraction - Underperformance | B64: 0.25 | C64: 0.25
A65: Green Recovery Outperformance Rate | B65: 0.1
A66: Green Recovery Underperformance Rate | B66: 0.5
A68: Weighted average PAYG rates, % | B68: From chapter 4 of companies' PR19 FD or as revised by the CMA
B69: WR | C69: WN+ | D69: WWN+ | E69: BIO | F69: TTT
A70: ANH | B70: 0.7957895305 | C70: 0.5193503583 | D70: 0.4186012921 | E70: 0.8280942436
A71: WSH | B71: 0.574 | C71: 0.551 | D71: 0.554 | E71: 0.629
A72: HDD | B72: 0.705 | C72: 0.713 | D72: 0.472 | E72: 1
A73: NES | B73: 0.9138050499 | C73: 0.5638708227 | D73: 0.3747586099 | E73: 0.4071399239
A74: SVE | B74: 0.71 | C74: 0.612 | D74: 0.568 | E74: 0.388
A75: SWB | B75: 0.783 | C75: 0.588 | D75: 0.519 | E75: 0.757
A76: SRN | B76: 0.528 | C76: 0.482 | D76: 0.413 | E76: 0.522
A77: TMS | B77: 0.548 | C77: 0.438 | D77: 0.473 | E77: 0.385
A78: NWT | B78: 0.762 | C78: 0.716 | D78: 0.473 | E78: 0.542
A79: WSX | B79: 0.641 | C79: 0.722 | D79: 0.403 | E79: 0.73
A80: YKY | B80: 0.8212960663 | C80: 0.755471858 | D80: 0.4542361687 | E80: 0.5821258187
A81: AFW | B81: 0.364 | C81: 0.615
A82: BRL | B82: 0.7897658354 | C82: 0.7393650268
A83: PRT | B83: 0.818 | C83: 0.688
A84: SEW | B84: 0.591 | C84: 0.671
A85: SSC | B85: 0.638 | C85: 0.635
A86: SES | B86: 0.815 | C86: 0.49
A88: Wholesale WACC (Real CPIH)
A89: ANH | B89: 0.0312
A90: NES | B90: 0.0312
A91: YKY | B91: 0.0312
A92: BRL | B92: 0.0329
A93: PRT | B93: 0.0311
A94: SSC | B94: 0.0311
A95: HDD | B95: 0.0292
A96: SRN | B96: 0.0292
A97: SVE | B97: 0.0292
A98: SWB | B98: 0.0292
A99: TMS | B99: 0.0292
A100: UUW | B100: 0.0292
A101: WSH | B101: 0.0292
A102: WSX | B102: 0.0292
A103: AFW | B103: 0.0292
A104: SES | B104: 0.0292
A105: SEW | B105: 0.0292
A107: Financial flows dataset | B107: https://www.ofwat.gov.uk/wp-content/uploads/2023/05/Financial-Flows-Data-Source-new-2022-23v8.xlsx
D108: 2020-21 | E108: 2021-22 | F108: 2022-23 | G108: 2023-24 | H108: 2024-25 | I108: 2020-25
A109: AFW | B109: Totex WR - Allowed totex net of Grants & contributions, abstraction charges & business rates | C109: £m | D109: 33.53656991 | E109: 41.6422875 | F109: 39.31800838 | G109: 44.10503386 | H109: 27.91507909 | I109: =SUM(D109:H109) -> 186.5169787
A110: AFW | B110: Totex WN - Allowed totex net of Grants & contributions, abstraction charges & business rates | C110: £m | D110: 206.8903153 | E110: 204.191971 | F110: 197.8031579 | G110: 181.4462739 | H110: 176.7546259 | I110: =SUM(D110:H110) -> 967.0863439
A111: AFW | B111: Totex WWN - Allowed totex net of Grants & contributions, abstraction charges & business rates | C111: £m | D111: 0 | E111: 0 | F111: 0 | G111: 0 | H111: 0 | I111: 0
A112: AFW | B112: Totex BR - Allowed totex net of Grants & contributions, abstraction charges & business rates | C112: £m | D112: 0 | E112: 0 | F112: 0 | G112: 0 | H112: 0 | I112: 0
A113: AFW | B113: Totex DMMY - Allowed totex net of Grants & contributions, abstraction charges & business rates | C113: £m | D113: 0 | E113: 0 | F113: 0 | G113: 0 | H113: 0 | I113: 0
A114: AFW | B114: WR opex for cost sharing | D114: 0.0516520245 | E114: 0.05454526422 | F114: 0.05546059998 | G114: 0.05305099218 | H114: 0.04383555323
A115: AFW | B115: WR Capex for cost sharing | D115: 0.1281523565 | E115: 0.1687174531 | F115: 0.1553406292 | G115: 0.1834155974 | H115: 0.1058295297
A116: AFW | B116: WN opex for cost sharing | D116: 0.103039817 | E116: 0.1012746145 | F116: 0.09949861299 | G116: 0.1051378718 | H116: 0.1030322278
A117: AFW | B117: WN Capex for cost sharing | D117: 0.1108917689 | E117: 0.1098667922 | F117: 0.1050365447 | G117: 0.08248371453 | H117: 0.07973803564
A118: AFW | B118: WWN opex for cost sharing
A119: AFW | B119: WWN Capex for cost sharing
A120: BRL | B120: Totex WR - Allowed totex net of Grants & contributions, abstraction charges & business rates | C120: £m | D120: 12.13863463 | E120: 11.8120384 | F120: 15.21749071 | G120: 11.56798803 | H120: 11.52774726 | I120: 62.26389903
A121: BRL | B121: Totex WN - Allowed totex net of Grants & contributions, abstraction charges & business rates | C121: £m | D121: 62.61321735 | E121: 61.17227598 | F121: 57.97079528 | G121: 60.34266132 | H121: 60.578193 | I121: 302.6771429
A122: BRL | B122: Totex WWN - Allowed totex net of Grants & contributions, abstraction charges & business rates | C122: £m | D122: 0 | E122: 0 | F122: 0 | G122: 0 | H122: 0 | I122: 0
A123: BRL | B123: Totex BR - Allowed totex net of Grants & contributions, abstraction charges & business rates | C123: £m | D123: 0 | E123: 0 | F123: 0 | G123: 0 | H123: 0 | I123: 0
A124: BRL | B124: Totex DMMY - Allowed totex net of Grants & contributions, abstraction charges & business rates | C124: £m | D124: 0 | E124: 0 | F124: 0 | G124: 0 | H124: 0 | I124: 0
A125: BRL | B125: WR opex for cost sharing | D125: 0.1330032388 | E125: 0.1323003468 | F125: 0.1320897519 | G125: 0.1319641007 | H125: 0.132160543
A126: BRL | B126: WR Capex for cost sharing | D126: 0.06195137891 | E126: 0.05740891632 | F126: 0.1123133605 | G126: 0.0538255497 | H126: 0.05298281352
A127: BRL | B127: WN opex for cost sharing | D127: 0.1179892716 | E127: 0.1163657147 | F127: 0.1157877167 | G127: 0.1152554196 | H127: 0.1153056953
A128: BRL | B128: WN Capex for cost sharing | D128: 0.08887543163 | E128: 0.08573833377 | F128: 0.07573911852 | G128: 0.08410770617 | H128: 0.08483559195
A129: BRL | B129: WWN opex for cost sharing
A130: BRL | B130: WWN Capex for cost sharing
A131: PRT | B131: Totex WR - Allowed totex net of Grants & contributions, abstraction charges & business rates | C131: £m | D131: 5.827219985 | E131: 4.103151819 | F131: 3.778336854 | G131: 5.270445246 | H131: 4.955577784 | I131: 23.93473169
A132: PRT | B132: Totex WN - Allowed totex net of Grants & contributions, abstraction charges & business rates | C132: £m | D132: 27.26519257 | E132: 27.6131638 | F132: 28.04924909 | G132: 26.89996618 | H132: 26.89446684 | I132: 136.7220385
A133: PRT | B133: Totex WWN - Allowed totex net of Grants & contributions, abstraction charges & business rates | C133: £m | D133: 0 | E133: 0 | F133: 0 | G133: 0 | H133: 0 | I133: 0
A134: PRT | B134: Totex BR - Allowed totex net of Grants & contributions, abstraction charges & business rates | C134: £m | D134: 0 | E134: 0 | F134: 0 | G134: 0 | H134: 0 | I134: 0
A135: PRT | B135: Totex DMMY - Allowed totex net of Grants & contributions, abstraction charges & business rates | C135: £m | D135: 10.10622301 | E135: 6.10532867 | F135: 7.099616914 | G135: 17.65027822 | H135: 20.46505411 | I135: 61.42650092
A136: PRT | B136: WR opex for cost sharing | D136: 0.1447697591 | E136: 0.1489334524 | F136: 0.1503320582 | G136: 0.1471597204 | H136: 0.1425003494
A137: PRT | B137: WR Capex for cost sharing | D137: 0.09869317423 | E137: 0.02249741519 | F137: 0.007527946399 | G137: 0.07304100354 | H137: 0.06454512115
A138: PRT | B138: WN opex for cost sharing | D138: 0.1271318548 | E138: 0.1282538318 | F138: 0.1280608558 | G138: 0.1271249996 | H138: 0.1259143554
A139: PRT | B139: WN Capex for cost sharing | D139: 0.07228875704 | E139: 0.07371187986 | F139: 0.07709443154 | G139: 0.06962430634 | H139: 0.07079472778
A140: PRT | B140: WWN opex for cost sharing
A141: PRT | B141: WWN Capex for cost sharing
A142: SES | B142: Totex WR - Allowed totex net of Grants & contributions, abstraction charges & business rates | C142: £m | D142: 4.15773111 | E142: 4.219880855 | F142: 3.950231879 | G142: 3.715232769 | H142: 3.631433077 | I142: 19.67450969
A143: SES | B143: Totex WN - Allowed totex net of Grants & contributions, abstraction charges & business rates | C143: £m | D143: 39.20619665 | E143: 42.47971309 | F143: 38.19867127 | G143: 32.74675933 | H143: 31.5427491 | I143: 184.1740895
A144: SES | B144: Totex WWN - Allowed totex net of Grants & contributions, abstraction charges & business rates | C144: £m | D144: 0 | E144: 0 | F144: 0 | G144: 0 | H144: 0 | I144: 0
A145: SES | B145: Totex BR - Allowed totex net of Grants & contributions, abstraction charges & business rates | C145: £m | D145: 0 | E145: 0 | F145: 0 | G145: 0 | H145: 0 | I145: 0
A146: SES | B146: Totex DMMY - Allowed totex net of Grants & contributions, abstraction charges & business rates | C146: £m | D146: 0 | E146: 0 | F146: 0 | G146: 0 | H146: 0 | I146: 0
A147: SES | B147: WR opex for cost sharing | D147: 0.1620134326 | E147: 0.1579142349 | F147: 0.1539751423 | G147: 0.143845322 | H147: 0.1383051791
A148: SES | B148: WR Capex for cost sharing | D148: 0.04931234755 | E148: 0.056570442 | F148: 0.0468040355 | G148: 0.04498951189 | H148: 0.04627035209
A149: SES | B149: WN opex for cost sharing | D149: 0.09072383237 | E149: 0.08772263773 | F149: 0.08411334324 | G149: 0.07942812894 | H149: 0.07576446717
A150: SES | B150: WN Capex for cost sharing | D150: 0.1221519135 | E150: 0.1429271416 | F150: 0.123291897 | G150: 0.09837516267 | H150: 0.09550147582
A151: SES | B151: WWN opex for cost sharing
A152: SES | B152: WWN Capex for cost sharing
A153: SEW | B153: Totex WR - Allowed totex net of Grants & contributions, abstraction charges & business rates | C153: £m | D153: 21.75915448 | E153: 20.12864769 | F153: 19.70467307 | G153: 17.80877802 | H153: 17.74279041 | I153: 97.14404367
A154: SEW | B154: Totex WN - Allowed totex net of Grants & contributions, abstraction charges & business rates | C154: £m | D154: 107.1249048 | E154: 123.6584245 | F154: 128.2036503 | G154: 116.3251822 | H154: 120.320543 | I154: 595.6327048
A155: SEW | B155: Totex WWN - Allowed totex net of Grants & contributions, abstraction charges & business rates | C155: £m | D155: 0 | E155: 0 | F155: 0 | G155: 0 | H155: 0 | I155: 0
A156: SEW | B156: Totex BR - Allowed totex net of Grants & contributions, abstraction charges & business rates | C156: £m | D156: 0 | E156: 0 | F156: 0 | G156: 0 | H156: 0 | I156: 0
A157: SEW | B157: Totex DMMY - Allowed totex net of Grants & contributions, abstraction charges & business rates | C157: £m | D157: 0 | E157: 0 | F157: 0 | G157: 0 | H157: 0 | I157: 0
A158: SEW | B158: WR opex for cost sharing | D158: 0.08629260787 | E158: 0.08735309998 | F158: 0.08833060255 | G158: 0.09083468744 | H158: 0.09200421113
A159: SEW | B159: WR Capex for cost sharing | D159: 0.1376959524 | E159: 0.1198510365 | F159: 0.1145091427 | G159: 0.09248872951 | H159: 0.09063992989
A160: SEW | B160: WN opex for cost sharing | D160: 0.1010457742 | E160: 0.1045339882 | F160: 0.1054268342 | G160: 0.1070040781 | H160: 0.1087151089
A161: SEW | B161: WN Capex for cost sharing | D161: 0.07880483496 | E161: 0.1030745321 | F161: 0.1098126066 | G161: 0.08829275705 | H161: 0.09328948573
A162: SEW | B162: WWN opex for cost sharing
A163: SEW | B163: WWN Capex for cost sharing
A164: SSC | B164: Totex WR - Allowed totex net of Grants & contributions, abstraction charges & business rates | C164: £m | D164: 8.879069106 | E164: 7.196855004 | F164: 6.723757127 | G164: 6.799839496 | H164: 7.240202152 | I164: 36.83972288
A165: SSC | B165: Totex WN - Allowed totex net of Grants & contributions, abstraction charges & business rates | C165: £m | D165: 88.6437101 | E165: 92.73295883 | F165: 92.8989794 | G165: 72.5948569 | H165: 74.47117965 | I165: 421.3416849
A166: SSC | B166: Totex WWN - Allowed totex net of Grants & contributions, abstraction charges & business rates | C166: £m | D166: 0 | E166: 0 | F166: 0 | G166: 0 | H166: 0 | I166: 0
A167: SSC | B167: Totex BR - Allowed totex net of Grants & contributions, abstraction charges & business rates | C167: £m | D167: 0 | E167: 0 | F167: 0 | G167: 0 | H167: 0 | I167: 0
A168: SSC | B168: Totex DMMY - Allowed totex net of Grants & contributions, abstraction charges & business rates | C168: £m | D168: 0 | E168: 0 | F168: 0 | G168: 0 | H168: 0 | I168: 0
A169: SSC | B169: WR opex for cost sharing | D169: 0.09065106259 | E169: 0.09071003061 | F169: 0.09948167255 | G169: 0.09943937729 | H169: 0.09944747559
A170: SSC | B170: WR Capex for cost sharing | D170: 0.1503678271 | E170: 0.1046458092 | F170: 0.08303210879 | G170: 0.08513963046 | H170: 0.09708500578
A171: SSC | B171: WN opex for cost sharing | D171: 0.1313179821 | E171: 0.1282580072 | F171: 0.1229046311 | G171: 0.1155929317 | H171: 0.115530141
A172: SSC | B172: WN Capex for cost sharing | D172: 0.07906640014 | E172: 0.09183167814 | F172: 0.09757908253 | G172: 0.05670157296 | H172: 0.06121757311
A173: SSC | B173: WWN opex for cost sharing
A174: SSC | B174: WWN Capex for cost sharing
A175: ANH | B175: Totex WR - Allowed totex net of Grants & contributions, abstraction charges & business rates | C175: £m | D175: 32.47822784 | E175: 34.58569906 | F175: 39.27776055 | G175: 33.8201014 | H175: 31.87857754 | I175: =SUM(D175:H175) -> 172.0403664
A176: ANH | B176: Totex WN - Allowed totex net of Grants & contributions, abstraction charges & business rates | C176: £m | D176: 299.0344185 | E176: 372.2010098 | F176: 416.5564823 | G176: 401.8742918 | H176: 302.786616 | I176: 1792.452818
A177: ANH | B177: Totex WWN - Allowed totex net of Grants & contributions, abstraction charges & business rates | C177: £m | D177: 347.8543422 | E177: 497.6977874 | F177: 480.3497888 | G177: 503.203492 | H177: 411.5004906 | I177: 2240.605901
A178: ANH | B178: Totex BR - Allowed totex net of Grants & contributions, abstraction charges & business rates | C178: £m | D178: 77.75180967 | E178: 82.60308252 | F178: 77.76841666 | G178: 72.7435209 | H178: 73.6181628 | I178: 384.4849925
A179: ANH | B179: Totex DMMY - Allowed totex net of Grants & contributions, abstraction charges & business rates | C179: £m | D179: 0 | E179: 0 | F179: 0 | G179: 0 | H179: 0 | I179: 0
A180: ANH | B180: WR opex for cost sharing | D180: 0.1416841268 | E180: 0.1353075737 | F180: 0.1374504954 | G180: 0.1342023332 | H180: 0.150834837
A181: ANH | B181: WR Capex for cost sharing | D181: 0.04709847411 | E181: 0.065724892 | F181: 0.09085499697 | G181: 0.06238002774 | H181: 0.034462243
A182: ANH | B182: WN opex for cost sharing | D182: 0.0971177914 | E182: 0.09629371909 | F182: 0.0991211364 | G182: 0.09846898273 | H182: 0.09812663915
A183: ANH | B183: WN Capex for cost sharing | D183: 0.0697119379 | E183: 0.1113552667 | F183: 0.1332735342 | G183: 0.125734571 | H183: 0.07079642141
A184: ANH | B184: WWN opex for cost sharing | D184: 0.0782422055 | E184: 0.07947787923 | F184: 0.08027119318 | G184: 0.080328904 | H184: 0.08152777721
A185: ANH | B185: WWN Capex for cost sharing | D185: 0.0770079177 | E185: 0.1426485497 | F185: 0.1341126878 | G185: 0.1442547641 | H185: 0.1021281216
A186: NES | B186: Totex WR - Allowed totex net of Grants & contributions, abstraction charges & business rates | C186: £m | D186: 23.46962216 | E186: 23.16554176 | F186: 21.32549105 | G186: 19.70072384 | H186: 19.46445978 | I186: 107.1258386
A187: NES | B187: Totex WN - Allowed totex net of Grants & contributions, abstraction charges & business rates | C187: £m | D187: 238.272045 | E187: 249.2329851 | F187: 241.1901989 | G187: 223.3646824 | H187: 209.0124498 | I187: 1161.072361
A188: NES | B188: Totex WWN - Allowed totex net of Grants & contributions, abstraction charges & business rates | C188: £m | D188: 146.3595049 | E188: 164.3292491 | F188: 186.3341076 | G188: 243.2157559 | H188: 194.6663941 | I188: 934.9050115
A189: NES | B189: Totex BR - Allowed totex net of Grants & contributions, abstraction charges & business rates | C189: £m | D189: 15.45481268 | E189: 15.40838376 | F189: 15.30971184 | G189: 15.21440601 | H189: 15.12134105 | I189: 76.50865534
A190: NES | B190: Totex DMMY - Allowed totex net of Grants & contributions, abstraction charges & business rates | C190: £m | D190: 0 | E190: 0 | F190: 0 | G190: 0 | H190: 0 | I190: 0
A191: NES | B191: WR opex for cost sharing | D191: 0.147928517 | E191: 0.1455906131 | F191: 0.1434381113 | G191: 0.1413077427 | H191: 0.1392852179
A192: NES | B192: WR Capex for cost sharing | D192: 0.07115608925 | E192: 0.07065545846 | F192: 0.05563142532 | G192: 0.04259489088 | H192: 0.04241193407
A193: NES | B193: WN opex for cost sharing | D193: 0.1043069068 | E193: 0.1028680565 | F193: 0.101993498 | G193: 0.1007408923 | H193: 0.09975769663
A194: NES | B194: WN Capex for cost sharing | D194: 0.1009103156 | E194: 0.111789525 | F194: 0.1057370509 | G194: 0.0916370247 | H194: 0.08025903339
A195: NES | B195: WWN opex for cost sharing | D195: 0.07208846592 | E195: 0.07122084863 | F195: 0.07042065124 | G195: 0.06960599396 | H195: 0.06894719462
A196: NES | B196: WWN Capex for cost sharing | D196: 0.08446166812 | E196: 0.1045502159 | F196: 0.1288874125 | G196: 0.1905442383 | H196: 0.1392733108
A197: NWT | B197: Totex WR - Allowed totex net of Grants & contributions, abstraction charges & business rates | C197: £m | D197: 37.22548768 | E197: 38.01719102 | F197: 41.95433282 | G197: 48.24781242 | H197: 54.66489313 | I197: 220.1097171
A198: NWT | B198: Totex WN - Allowed totex net of Grants & contributions, abstraction charges & business rates | C198: £m | D198: 370.3403925 | E198: 356.3826614 | F198: 357.1064691 | G198: 337.5329806 | H198: 312.6145275 | I198: 1733.977031
A199: NWT | B199: Totex WWN - Allowed totex net of Grants & contributions, abstraction charges & business rates | C199: £m | D199: 412.2609676 | E199: 432.9816281 | F199: 398.2004988 | G199: 582.7181711 | H199: 514.8060919 | I199: 2340.967357
A200: NWT | B200: Totex BR - Allowed totex net of Grants & contributions, abstraction charges & business rates | C200: £m | D200: 67.99974053 | E200: 70.3473362 | F200: 65.74756948 | G200: 60.94640644 | H200: 63.09124696 | I200: 328.1322996
A201: NWT | B201: Totex DMMY - Allowed totex net of Grants & contributions, abstraction charges & business rates | C201: £m | D201: 0 | E201: 0 | F201: 0 | G201: 0 | H201: 0 | I201: 0
A202: NWT | B202: WR opex for cost sharing | D202: 0.1272796465 | E202: 0.1309315821 | F202: 0.1371102288 | G202: 0.155477591 | H202: 0.1854618498
A203: NWT | B203: WR Capex for cost sharing | D203: 0.04184277193 | E203: 0.04178769417 | F203: 0.05349622593 | G203: 0.06372132975 | H203: 0.06289108008
A204: NWT | B204: WN opex for cost sharing | D204: 0.1382865642 | E204: 0.1410386839 | F204: 0.1404839854 | G204: 0.1445756437 | H204: 0.1404899726
A205: NWT | B205: WN Capex for cost sharing | D205: 0.07529203916 | E205: 0.06449037155 | F205: 0.06546249641 | G205: 0.05008263295 | H205: 0.03979761011
A206: NWT | B206: WWN opex for cost sharing | D206: 0.08603210581 | E206: 0.087210111 | F206: 0.08784260477 | G206: 0.09257752092 | H206: 0.0962917901
A207: NWT | B207: WWN Capex for cost sharing | D207: 0.09007499207 | E207: 0.0977483109 | F207: 0.08225822875 | G207: 0.156344434 | H207: 0.1236199016
A208: SRN | B208: Totex WR - Allowed totex net of Grants & contributions, abstraction charges & business rates | C208: £m | D208: 15.79885757 | E208: 15.48261584 | F208: 15.37689472 | G208: 16.76416463 | H208: 19.15225873 | I208: 82.57479151
A209: SRN | B209: Totex WN - Allowed totex net of Grants & contributions, abstraction charges & business rates | C209: £m | D209: 166.4916785 | E209: 165.9949926 | F209: 149.2050652 | G209: 136.2941015 | H209: 151.5270377 | I209: 769.5128755
A210: SRN | B210: Totex WWN - Allowed totex net of Grants & contributions, abstraction charges & business rates | C210: £m | D210: 317.5178396 | E210: 411.2439414 | F210: 422.7621596 | G210: 360.0247325 | H210: 298.2483794 | I210: 1809.797052
A211: SRN | B211: Totex BR - Allowed totex net of Grants & contributions, abstraction charges & business rates | C211: £m | D211: 34.16832906 | E211: 38.45999653 | F211: 55.64577797 | G211: 34.51820225 | H211: 28.81977233 | I211: 191.6120781
... 118 more rows

Sheet InpActive
A1: =RIGHT(CELL("filename", $A$1), LEN(CELL("filename", $A$1)) - SEARCH("]", CELL("filename", $A$1))) -> InpActive | P1: ANH
E2: =Time!E$22 -> Model Period BEG | J2: =Time!J$22 -> 2019-04-01 | K2: =Time!K$22 -> 2020-04-01 | L2: =Time!L$22 -> 2021-04-01 | M2: =Time!M$22 -> 2022-04-01 | N2: =Time!N$22 -> 2023-04-01 | O2: =Time!O$22 -> 2024-04-01 | P2: =Time!P$22 -> 2025-04-01
E3: =Time!E$23 -> Model Period END | F3: =Check!F$8 -> 0 | G3: Error chks | J3: =Time!J$23 -> 2020-03-31 | K3: =Time!K$23 -> 2021-03-31 | L3: =Time!L$23 -> 2022-03-31 | M3: =Time!M$23 -> 2023-03-31 | N3: =Time!N$23 -> 2024-03-31 | O3: =Time!O$23 -> 2025-03-31 | P3: =Time!P$23 -> 2026-03-31
E4: =Time!E$59 -> Pre Forecast vs Forecast | J4: =Time!J$59 -> Pre Fcst | K4: =Time!K$59 -> Forecast | L4: =Time!L$59 -> Forecast | M4: =Time!M$59 -> Forecast | N4: =Time!N$59 -> Forecast | O4: =Time!O$59 -> Forecast | P4: =Time!P$59 -> Post-Fcst
E5: =Time!E$101 -> Financial Year Ending | J5: =Time!J$101 -> 2020 | K5: =Time!K$101 -> 2021 | L5: =Time!L$101 -> 2022 | M5: =Time!M$101 -> 2023 | N5: =Time!N$101 -> 2024 | O5: =Time!O$101 -> 2025 | P5: =Time!P$101 -> 2026
E6: =Time!E$11 -> Model column counter | F6: Constant | G6: Unit | H6: Total | J6: =Time!J$11 -> 1 | K6: =Time!K$11 -> 2 | L6: =Time!L$11 -> 3 | M6: =Time!M$11 -> 4 | N6: =Time!N$11 -> 5 | O6: =Time!O$11 -> 6 | P6: =Time!P$11 -> 7
A8: TIME
E10: First date of time ruler | F10: 2019-04-01 | G10: date
E12: Last Pre Forecast Date | F12: 2020-03-31 | G12: date
E14: Acquisition date (midnight) | F14: 2020-03-31 | G14: date
E15: Length of forecast period | F15: 5 | G15: years
E16: Last forecast date | F16: =DATE(YEAR(F14)+F15,MONTH(F14),DAY(F14)) -> 2025-03-31 | G16: date
E19: Operation Start Date (midnight) | F19: 2021-03-31 | G19: date
E20: Operation Finish Date (midnight) | F20: 2025-03-31 | G20: date
E21: First Modelling Column Financial Year Number | F21: 2020 | G21: year
E22: Financial Year End Month Number | F22: 3 | G22: month #
A25: TOTEX INPUTS
B27: Water Resources
C28: Wage adjustment
D29: 2017/18 CPIH | E29: Base Costs - WR - Real | F29: =SUMIF('Non-fountain inputs'!A14:A21, InpActive!P1, 'Non-fountain inputs'!C14:C21) -> 235.2624271 | G29: £m
D30: 2017/18 CPIH | E30: Metering (excluding new connections) for meters requested by optants, customers and businesses - WR - Real | G30: £m
E32: Opex split profile - Base costs - WR | G32: % | K32: =SUMIFS('Non-fountain inputs'!C$299:C$330, 'Non-fountain inputs'!$A$299:$A$330, InpActive!$P$1,'Non-fountain inputs'!$B$299:$B$330, InpActive!$E32) -> 0.1574491386 | L32: =SUMIFS('Non-fountain inputs'!D$299:D$330, 'Non-fountain inputs'!$A$299:$A$330, InpActive!$P$1,'Non-fountain inputs'!$B$299:$B$330, InpActive!$E32) -> 0.1527481059 | M32: =SUMIFS('Non-fountain inputs'!E$299:E$330, 'Non-fountain inputs'!$A$299:$A$330, InpActive!$P$1,'Non-fountain inputs'!$B$299:$B$330, InpActive!$E32) -> 0.1542599866 | N32: =SUMIFS('Non-fountain inputs'!F$299:F$330, 'Non-fountain inputs'!$A$299:$A$330, InpActive!$P$1,'Non-fountain inputs'!$B$299:$B$330, InpActive!$E32) -> 0.1518208351 | O32: =SUMIFS('Non-fountain inputs'!G$299:G$330, 'Non-fountain inputs'!$A$299:$A$330, InpActive!$P$1,'Non-fountain inputs'!$B$299:$B$330, InpActive!$E32) -> 0.1639601954
E33: Capex Split Profile - Base costs - WR | G33: % | K33: =SUMIFS('Non-fountain inputs'!C$299:C$330, 'Non-fountain inputs'!$A$299:$A$330, InpActive!$P$1,'Non-fountain inputs'!$B$299:$B$330, InpActive!$E33) -> 0.03444170343 | L33: =SUMIFS('Non-fountain inputs'!D$299:D$330, 'Non-fountain inputs'!$A$299:$A$330, InpActive!$P$1,'Non-fountain inputs'!$B$299:$B$330, InpActive!$E33) -> 0.04806264493 | M33: =SUMIFS('Non-fountain inputs'!E$299:E$330, 'Non-fountain inputs'!$A$299:$A$330, InpActive!$P$1,'Non-fountain inputs'!$B$299:$B$330, InpActive!$E33) -> 0.066439538 | N33: =SUMIFS('Non-fountain inputs'!F$299:F$330, 'Non-fountain inputs'!$A$299:$A$330, InpActive!$P$1,'Non-fountain inputs'!$B$299:$B$330, InpActive!$E33) -> 0.04561664588 | O33: =SUMIFS('Non-fountain inputs'!G$299:G$330, 'Non-fountain inputs'!$A$299:$A$330, InpActive!$P$1,'Non-fountain inputs'!$B$299:$B$330, InpActive!$E33) -> 0.02520120609
A35: WR opex for cost sharing | E35: Opex split profile - Cost sharing - WR | G35: % | K35: =SUMIFS('Non-fountain inputs'!D:D, 'Non-fountain inputs'!$A:$A, InpActive!$P$1, 'Non-fountain inputs'!$B:$B, InpActive!$A35) -> 0.1416841268 | L35: =SUMIFS('Non-fountain inputs'!E:E, 'Non-fountain inputs'!$A:$A, InpActive!$P$1, 'Non-fountain inputs'!$B:$B, InpActive!$A35) -> 0.1353075737 | M35: =SUMIFS('Non-fountain inputs'!F:F, 'Non-fountain inputs'!$A:$A, InpActive!$P$1, 'Non-fountain inputs'!$B:$B, InpActive!$A35) -> 0.1374504954 | N35: =SUMIFS('Non-fountain inputs'!G:G, 'Non-fountain inputs'!$A:$A, InpActive!$P$1, 'Non-fountain inputs'!$B:$B, InpActive!$A35) -> 0.1342023332 | O35: 0.150834837
A36: WR Capex for cost sharing | E36: Capex split profile - Cost sharing - WR | G36: % | K36: =SUMIFS('Non-fountain inputs'!D:D, 'Non-fountain inputs'!$A:$A, InpActive!$P$1, 'Non-fountain inputs'!$B:$B, InpActive!$A36) -> 0.04709847411 | L36: =SUMIFS('Non-fountain inputs'!E:E, 'Non-fountain inputs'!$A:$A, InpActive!$P$1, 'Non-fountain inputs'!$B:$B, InpActive!$A36) -> 0.065724892 | M36: =SUMIFS('Non-fountain inputs'!F:F, 'Non-fountain inputs'!$A:$A, InpActive!$P$1, 'Non-fountain inputs'!$B:$B, InpActive!$A36) -> 0.09085499697 | N36: =SUMIFS('Non-fountain inputs'!G:G, 'Non-fountain inputs'!$A:$A, InpActive!$P$1, 'Non-fountain inputs'!$B:$B, InpActive!$A36) -> 0.06238002774 | O36: 0.034462243
E38: Business Rates forecast profile - WR | G38: % | K38: 0.2 | L38: 0.2 | M38: 0.2 | N38: 0.2 | O38: 0.2
E39: Abstraction Charges forecast profile - WR | G39: % | K39: 0.2 | L39: 0.2 | M39: 0.2 | N39: 0.2 | O39: 0.2
C41: Net totex for cost sharing reconciliation
D42: nominal | E42: Net totex for cost sharing reconciliation - WR - Nominal | G42: £m | K42: =SUMIF('Consolidated actual totex inp'!$L:$L, InpActive!$E$42, 'Consolidated actual totex inp'!G:G) -> 33.62 | L42: =SUMIF('Consolidated actual totex inp'!$L:$L, InpActive!$E$42, 'Consolidated actual totex inp'!H:H) -> 35.022 | M42: =SUMIF('Consolidated actual totex inp'!$L:$L, InpActive!$E$42, 'Consolidated actual totex inp'!I:I) -> 37.326 | N42: =SUMIF('Consolidated actual totex inp'!$L:$L, InpActive!$E$42, 'Consolidated actual totex inp'!J:J) -> 51.90347201 | O42: 55.50542692
A43: Totex WR - Allowed totex net of Grants & contributions, abstraction charges & business rates | D43: 2017/18 CPIH | E43: Net totex available for cost sharing - WR - Real | F43: 172.0403664 | G43: £m
D44: nominal | E44: Performance related pay recovery mechanism adjustment - WR - Nominal (Neg) | G44: £m
A46: C__PR24PD11_PD11_12WR_PRETVM_PR24 | D46: 2017/18 CPIH | E46: Total final WINEP reconciliation - WR - real | G46: £m | K46: =SUMIF(F_Inputs!$B:$B, InpActive!$A46, F_Inputs!F:F) -> 0 | L46: =SUMIF(F_Inputs!$B:$B, InpActive!$A46, F_Inputs!G:G) -> 0 | M46: =SUMIF(F_Inputs!$B:$B, InpActive!$A46, F_Inputs!H:H) -> -0.03633333333 | N46: =SUMIF(F_Inputs!$B:$B, InpActive!$A46, F_Inputs!I:I) -> -0.03633333333 | O46: =SUMIF(F_Inputs!$B:$B, InpActive!$A46, F_Inputs!J:J) -> -0.03633333333
C48: Business Rates and Abstraction
A49: C_UBC_WR_PR19CA004_OFWAT | D49: 2017/18 CPIH | E49: Business rates - Forecast - WR - Real | F49: 15.425 | G49: £m
A50: WS1003_WW4_WR | D50: 2017/18 CPIH | E50: Abstraction charges - Forecast - WR - Real | F50: 47.359 | G50: £m
D52: nominal | E52: Business rates - Actual - WR - Nominal | G52: £m | K52: =SUMIF('Consolidated actual totex inp'!$L:$L, InpActive!$E52, 'Consolidated actual totex inp'!G:G) -> 2.545 | L52: =SUMIF('Consolidated actual totex inp'!$L:$L, InpActive!$E52, 'Consolidated actual totex inp'!H:H) -> 2.886939877 | M52: =SUMIF('Consolidated actual totex inp'!$L:$L, InpActive!$E52, 'Consolidated actual totex inp'!I:I) -> 2.376 | N52: =SUMIF('Consolidated actual totex inp'!$L:$L, InpActive!$E52, 'Consolidated actual totex inp'!J:J) -> 2.583500999 | O52: 2.584576393
D53: nominal | E53: Abstraction charges - Actual - WR - Nominal | G53: £m | K53: =SUMIF('Consolidated actual totex inp'!$L:$L, InpActive!$E53, 'Consolidated actual totex inp'!G:G) -> 9.869 | L53: =SUMIF('Consolidated actual totex inp'!$L:$L, InpActive!$E53, 'Consolidated actual totex inp'!H:H) -> 10.10863124 | M53: =SUMIF('Consolidated actual totex inp'!$L:$L, InpActive!$E53, 'Consolidated actual totex inp'!I:I) -> 10.096 | N53: =SUMIF('Consolidated actual totex inp'!$L:$L, InpActive!$E53, 'Consolidated actual totex inp'!J:J) -> 9.145798777 | O53: 9.575
E55: Weighted average PAYG rate - WR | F55: =SUMIF('Non-fountain inputs'!$A$70:$A$86, InpActive!$P$1, 'Non-fountain inputs'!$B$70:$B$86) -> 0.7957895305 | G55: %
A57: C_WR_CS_EXANTE_001 | D57: 2017/18 CPIH | E57: Ex ante allowance above Ofwat forecast - Water Resources - Real | F57: =SUMIFS('F_Inputs-APR & PR19'!Q:Q, 'F_Inputs-APR & PR19'!A:A, InpActive!$P$1, 'F_Inputs-APR & PR19'!B:B, InpActive!A57) -> 0 | G57: £m
C59: Bad Debt
D60: 2017/18 CPIH | E60: Business retail bad debt liability due to covid liquidity measures - WR - real | G60: £m
D61: 2017/18 CPIH | E61: Total Wholesaler Liability - WR - real | G61: £m
... 50 more rows

Sheet Calc-->

Sheet Time
A1: =RIGHT(CELL("filename", $A$1), LEN(CELL("filename", $A$1)) - SEARCH("]", CELL("filename", $A$1))) -> Time
E2: =Time!E$22 -> Model Period BEG | J2: =Time!J$22 -> 2019-04-01 | K2: =Time!K$22 -> 2020-04-01 | L2: =Time!L$22 -> 2021-04-01 | M2: =Time!M$22 -> 2022-04-01 | N2: =Time!N$22 -> 2023-04-01 | O2: =Time!O$22 -> 2024-04-01 | P2: =Time!P$22 -> 2025-04-01
E3: =Time!E$23 -> Model Period END | F3: =Check!F$8 -> 0 | G3: Error chks | J3: =Time!J$23 -> 2020-03-31 | K3: =Time!K$23 -> 2021-03-31 | L3: =Time!L$23 -> 2022-03-31 | M3: =Time!M$23 -> 2023-03-31 | N3: =Time!N$23 -> 2024-03-31 | O3: =Time!O$23 -> 2025-03-31 | P3: =Time!P$23 -> 2026-03-31
E4: =Time!E$59 -> Pre Forecast vs Forecast | J4: =Time!J$59 -> Pre Fcst | K4: =Time!K$59 -> Forecast | L4: =Time!L$59 -> Forecast | M4: =Time!M$59 -> Forecast | N4: =Time!N$59 -> Forecast | O4: =Time!O$59 -> Forecast | P4: =Time!P$59 -> Post-Fcst
E5: =Time!E$101 -> Financial Year Ending | J5: =Time!J$101 -> 2020 | K5: =Time!K$101 -> 2021 | L5: =Time!L$101 -> 2022 | M5: =Time!M$101 -> 2023 | N5: =Time!N$101 -> 2024 | O5: =Time!O$101 -> 2025 | P5: =Time!P$101 -> 2026
E6: =Time!E$11 -> Model column counter | F6: Constant | G6: Unit | H6: Total | J6: =Time!J$11 -> 1 | K6: =Time!K$11 -> 2 | L6: =Time!L$11 -> 3 | M6: =Time!M$11 -> 4 | N6: =Time!N$11 -> 5 | O6: =Time!O$11 -> 6 | P6: =Time!P$11 -> 7
A8: MODEL PERIOD
B10: Model Column Counter
E11: Model column counter | G11: counter | J11: =I11 + 1 -> 1 | K11: =J11 + 1 -> 2 | L11: =K11 + 1 -> 3 | M11: 4 | N11: 5 | O11: 6 | P11: =O11 + 1 -> 7
E12: Model Column Total | F12: =MAX(J11:P11) -> 7 | G12: column
E14: =E$11 -> Model column counter | F14: 0 | G14: counter | H14: 0 | I14: 0 | J14: 1 | K14: 2 | L14: 3 | M14: 4 | N14: 5 | O14: 6 | P14: 7
E15: First model column flag | G15: flag | H15: =SUM(J15:P15) -> 1 | J15: =IF( J14 = 1, 1, 0) -> 1 | K15: =IF( K14 = 1, 1, 0) -> 0 | L15: 0 | M15: 0 | N15: 0 | O15: 0 | P15: 0
E17: =InpActive!E$10 -> First date of time ruler | F17: =InpActive!F$10 -> 2019-04-01 | G17: =InpActive!G$10 -> date
E18: First model period BEG | F18: =DATE(YEAR(F17), MONTH(F17), 1) -> 2019-04-01 | G18: month
E20: =E$18 -> First model period BEG | F20: =F$18 -> 2019-04-01 | G20: =G$18 -> month
E21: =E$15 -> First model column flag | F21: 0 | G21: flag | H21: 1 | I21: 0 | J21: 1 | K21: 0 | L21: 0 | M21: 0 | N21: 0 | O21: 0 | P21: 0
E22: Model Period BEG | G22: date | J22: =IF( J21 = 1, $F20, I23 + 1) -> 2019-04-01 | K22: =IF( K21 = 1, $F20, J23 + 1) -> 2020-04-01 | L22: 2021-04-01 | M22: 2022-04-01 | N22: 2023-04-01 | O22: 2024-04-01 | P22: =IF( P21 = 1, $F20, O23 + 1) -> 2025-04-01
E23: Model Period END | G23: date | J23: =DATE(YEAR(J22), MONTH(J22) + 12, DAY(1) - 1) -> 2020-03-31 | K23: 2021-03-31 | L23: 2022-03-31 | M23: 2023-03-31 | N23: 2024-03-31 | O23: 2025-03-31 | P23: 2026-03-31
E25: =E$23 -> Model Period END | F25: 00:00:00 | G25: date | H25: 00:00:00 | I25: 00:00:00 | J25: 2020-03-31 | K25: 2021-03-31 | L25: 2022-03-31 | M25: 2023-03-31 | N25: 2024-03-31 | O25: 2025-03-31 | P25: 2026-03-31
D26: less | E26: =E$22 -> Model Period BEG | F26: 00:00:00 | G26: date | H26: 00:00:00 | I26: 00:00:00 | J26: 2019-04-01 | K26: 2020-04-01 | L26: 2021-04-01 | M26: 2022-04-01 | N26: 2023-04-01 | O26: 2024-04-01 | P26: 2025-04-01
E27: Days in Model Period | G27: days | H27: =SUM(J27:P27) -> 2557 | J27: =J25 - J26 + 1 -> 366 | K27: 365 | L27: 365 | M27: 365 | N27: 366 | O27: 365 | P27: 365
A30: PRE FORECAST PERIOD
E32: =InpActive!E$12 -> Last Pre Forecast Date | F32: =InpActive!F$12 -> 2020-03-31 | G32: =InpActive!G$12 -> date
E33: =E$23 -> Model Period END | F33: 00:00:00 | G33: date | H33: 00:00:00 | I33: 00:00:00 | J33: 2020-03-31 | K33: 2021-03-31 | L33: 2022-03-31 | M33: 2023-03-31 | N33: 2024-03-31 | O33: 2025-03-31 | P33: 2026-03-31
E34: Last Pre Forecast Flag | G34: flag | H34: =SUM(J34:P34) -> 1 | J34: =IF(J33 = $F32, 1, 0) -> 1 | K34: 0 | L34: 0 | M34: 0 | N34: 0 | O34: 0 | P34: 0
E35: Pre Forecast Period Flag | G35: flag | H35: =SUM(J35:P35) -> 1 | J35: =IF($F32 >= J33, 1, 0) -> 1 | K35: =IF($F32 >= K33, 1, 0) -> 0 | L35: 0 | M35: 0 | N35: 0 | O35: 0 | P35: 0
E36: Pre Forecast Period Total | F36: =SUM(J35:P35) -> 1 | G36: columns
E38: =InpActive!E$14 -> Acquisition date (midnight) | F38: =InpActive!F$14 -> 2020-03-31 | G38: =InpActive!G$14 -> date
E39: =E$23 -> Model Period END | F39: 00:00:00 | G39: date | H39: 00:00:00 | I39: 00:00:00 | J39: 2020-03-31 | K39: 2021-03-31 | L39: 2022-03-31 | M39: 2023-03-31 | N39: 2024-03-31 | O39: 2025-03-31 | P39: 2026-03-31
E40: Acquisition / initial balance date flag | G40: flag | H40: =SUM(J40:P40) -> 1 | J40: =IF(J39 = $F38, 1, 0) -> 1 | K40: 0 | L40: 0 | M40: 0 | N40: 0 | O40: 0 | P40: 0
A43: FORECAST PERIOD
E45: =E$34 -> Last Pre Forecast Flag | F45: 0 | G45: flag | H45: 1 | I45: 0 | J45: 1 | K45: 0 | L45: 0 | M45: 0 | N45: 0 | O45: 0 | P45: 0
E46: 1st Forecast Period Flag | G46: flag | H46: =SUM(J46:P46) -> 1 | J46: =I45 -> 0 | K46: =J45 -> 1 | L46: 0 | M46: 0 | N46: 0 | O46: 0 | P46: =O45 -> 0
E48: =InpActive!E$16 -> Last forecast date | F48: =InpActive!F$16 -> 2025-03-31 | G48: =InpActive!G$16 -> date
E49: =E$23 -> Model Period END | F49: 00:00:00 | G49: date | H49: 00:00:00 | I49: 00:00:00 | J49: 2020-03-31 | K49: 2021-03-31 | L49: 2022-03-31 | M49: 2023-03-31 | N49: 2024-03-31 | O49: 2025-03-31 | P49: 2026-03-31
E50: Last Forecast Period Flag | G50: flag | H50: =SUM(J50:P50) -> 1 | J50: =IF(AND($F48 > I49, $F48 <= J49), 1, 0) -> 0 | K50: =IF(AND($F48 > J49, $F48 <= K49), 1, 0) -> 0 | L50: 0 | M50: 0 | N50: 0 | O50: 1 | P50: =IF(AND($F48 > O49, $F48 <= P49), 1, 0) -> 0
E52: =E$46 -> 1st Forecast Period Flag | F52: 0 | G52: flag | H52: 1 | I52: 0 | J52: 0 | K52: 1 | L52: 0 | M52: 0 | N52: 0 | O52: 0 | P52: 0
E53: =E$50 -> Last Forecast Period Flag | F53: 0 | G53: flag | H53: 1 | I53: 0 | J53: 0 | K53: 0 | L53: 0 | M53: 0 | N53: 0 | O53: 1 | P53: 0
E54: Forecast Period Flag | G54: flag | H54: =SUM(J54:P54) -> 5 | J54: =J52 - I53 + I54 -> 0 | K54: =K52 - J53 + J54 -> 1 | L54: 1 | M54: 1 | N54: 1 | O54: 1 | P54: =P52 - O53 + O54 -> 0
E55: Forecast Period Total | F55: =SUM(J54:P54) -> 5 | G55: columns
E57: =E$35 -> Pre Forecast Period Flag | F57: 0 | G57: flag | H57: 1 | I57: 0 | J57: 1 | K57: 0 | L57: 0 | M57: 0 | N57: 0 | O57: 0 | P57: 0
E58: =E$54 -> Forecast Period Flag | F58: 0 | G58: flag | H58: 5 | I58: 0 | J58: 0 | K58: 1 | L58: 1 | M58: 1 | N58: 1 | O58: 1 | P58: 0
E59: Pre Forecast vs Forecast | G59: flag | J59: =IF(J57 = 1, "Pre Fcst", IF(J58 = 1, "Forecast", "Post-Fcst")) -> Pre Fcst | K59: Forecast | L59: Forecast | M59: Forecast | N59: Forecast | O59: Forecast | P59: Post-Fcst
A62: POST FORECAST PERIOD
E64: =E$50 -> Last Forecast Period Flag | F64: 0 | G64: flag | H64: 1 | I64: 0 | J64: 0 | K64: 0 | L64: 0 | M64: 0 | N64: 0 | O64: 1 | P64: 0
E65: 1st Post Last Forecast Period Flag | G65: flag | H65: =SUM(J65:P65) -> 1 | J65: =I64 -> 0 | K65: =J64 -> 0 | L65: 0 | M65: 0 | N65: 0 | O65: 0 | P65: =O64 -> 1
E67: =E$65 -> 1st Post Last Forecast Period Flag | F67: 0 | G67: flag | H67: 1 | I67: 0 | J67: 0 | K67: 0 | L67: 0 | M67: 0 | N67: 0 | O67: 0 | P67: 1
E68: Post Forecast Period Flag | G68: flag | H68: =SUM(J68:P68) -> 1 | J68: =I68 + J67 -> 0 | K68: =J68 + K67 -> 0 | L68: 0 | M68: 0 | N68: 0 | O68: 0 | P68: =O68 + P67 -> 1
E69: Post Forecast Period Total | F69: =SUM(J68:P68) -> 1 | G69: columns
A72: MODELLING PERIOD CHECK
E74: =E$12 -> Model Column Total | F74: =F$12 -> 7 | G74: =G$12 -> column
D75: less | E75: =E$36 -> Pre Forecast Period Total | F75: =F$36 -> 1 | G75: =G$36 -> columns
D76: less | E76: =E$55 -> Forecast Period Total | F76: =F$55 -> 5 | G76: =G$55 -> columns
D77: less | E77: =E$69 -> Post Forecast Period Total | F77: =F$69 -> 1 | G77: =G$69 -> columns
E78: Modelling Period Check | F78: =IF(F74 - SUM(F75:F77) <> 0, 1, 0) -> 0 | G78: check
A81: PARTIAL PERIOD FLAG (PPF)
C82: This is an example of a part period flag. It is not currently used.
B83: Operation Partial Period Flag (PPF)
E84: =E$18 -> First model period BEG | F84: =F$18 -> 2019-04-01 | G84: =G$18 -> month
E85: =InpActive!E$20 -> Operation Finish Date (midnight) | F85: =InpActive!F$20 -> 2025-03-31 | G85: =InpActive!G$20 -> date
E86: =E$22 -> Model Period BEG | F86: 00:00:00 | G86: date | H86: 00:00:00 | I86: 00:00:00 | J86: 2019-04-01 | K86: 2020-04-01 | L86: 2021-04-01 | M86: 2022-04-01 | N86: 2023-04-01 | O86: 2024-04-01 | P86: 2025-04-01
E87: =E$23 -> Model Period END | F87: 00:00:00 | G87: date | H87: 00:00:00 | I87: 00:00:00 | J87: 2020-03-31 | K87: 2021-03-31 | L87: 2022-03-31 | M87: 2023-03-31 | N87: 2024-03-31 | O87: 2025-03-31 | P87: 2026-03-31
E88: Days in Operation Period | G88: days | H88: =SUM(J88:P88) -> 2192 | J88: =MAX(0, (MIN($F85, J87) - MAX($F84, J86) + 1)) -> 366 | K88: 365 | L88: 365 | M88: 365 | N88: 366 | O88: 365 | P88: 0
E90: =E$88 -> Days in Operation Period | F90: 0 | G90: days | H90: 2192 | I90: 0 | J90: 366 | K90: 365 | L90: 365 | M90: 365 | N90: 366 | O90: 365 | P90: 0
E91: =E$27 -> Days in Model Period | F91: 0 | G91: days | H91: 2557 | I91: 0 | J91: 366 | K91: 365 | L91: 365 | M91: 365 | N91: 366 | O91: 365 | P91: 365
E92: Operation Period PPF | G92: factor | H92: =SUM(J92:P92) -> 6 | J92: =J90 / J91 -> 1 | K92: 1 | L92: 1 | M92: 1 | N92: 1 | O92: 1 | P92: 0
A95: FINANCIAL YEAR
E97: =InpActive!E21 -> First Modelling Column Financial Year Number | F97: =InpActive!F21 -> 2020 | G97: =InpActive!G21 -> year
E98: =InpActive!E22 -> Financial Year End Month Number | F98: =InpActive!F22 -> 3 | G98: =InpActive!G22 -> month #
E99: =E$23 -> Model Period END | F99: 00:00:00 | G99: date | H99: 00:00:00 | I99: 00:00:00 | J99: 2020-03-31 | K99: 2021-03-31 | L99: 2022-03-31 | M99: 2023-03-31 | N99: 2024-03-31 | O99: 2025-03-31 | P99: 2026-03-31
E100: =E$15 -> First model column flag | F100: 0 | G100: flag | H100: 1 | I100: 0 | J100: 1 | K100: 0 | L100: 0 | M100: 0 | N100: 0 | O100: 0 | P100: 0
E101: Financial Year Ending | G101: year # | J101: =IF(J100 = 1, $F97, IF(J99 > (DATE(I101, $F98 + 1, 1) - 1), I101 + 1, I101)) -> 2020 | K101: =IF(K100 = 1, $F97, IF(K99 > (DATE(J101, $F98 + 1, 1) - 1), J101 + 1, J101)) -> 2021 | L101: 2022 | M101: 2023 | N101: 2024 | O101: 2025 | P101: =IF(P100 = 1, $F97, IF(P99 > (DATE(O101, $F98 + 1, 1) - 1), O101 + 1, O101)) -> 2026
A104: END OF SHEET

Sheet Index
A1: =RIGHT(CELL("filename", $A$1), LEN(CELL("filename", $A$1)) - SEARCH("]", CELL("filename", $A$1))) -> Index
E2: =Time!E$22 -> Model Period BEG | J2: =Time!J$22 -> 2019-04-01 | K2: =Time!K$22 -> 2020-04-01 | L2: =Time!L$22 -> 2021-04-01 | M2: =Time!M$22 -> 2022-04-01 | N2: =Time!N$22 -> 2023-04-01 | O2: =Time!O$22 -> 2024-04-01 | P2: =Time!P$22 -> 2025-04-01
E3: =Time!E$23 -> Model Period END | F3: =Check!F$8 -> 0 | G3: Error chks | J3: =Time!J$23 -> 2020-03-31 | K3: =Time!K$23 -> 2021-03-31 | L3: =Time!L$23 -> 2022-03-31 | M3: =Time!M$23 -> 2023-03-31 | N3: =Time!N$23 -> 2024-03-31 | O3: =Time!O$23 -> 2025-03-31 | P3: =Time!P$23 -> 2026-03-31
E4: =Time!E$59 -> Pre Forecast vs Forecast | J4: =Time!J$59 -> Pre Fcst | K4: =Time!K$59 -> Forecast | L4: =Time!L$59 -> Forecast | M4: =Time!M$59 -> Forecast | N4: =Time!N$59 -> Forecast | O4: =Time!O$59 -> Forecast | P4: =Time!P$59 -> Post-Fcst
E5: =Time!E$101 -> Financial Year Ending | J5: =Time!J$101 -> 2020 | K5: =Time!K$101 -> 2021 | L5: =Time!L$101 -> 2022 | M5: =Time!M$101 -> 2023 | N5: =Time!N$101 -> 2024 | O5: =Time!O$101 -> 2025 | P5: =Time!P$101 -> 2026
E6: =Time!E$11 -> Model column counter | F6: Constant | G6: Unit | H6: Total | J6: =Time!J$11 -> 1 | K6: =Time!K$11 -> 2 | L6: =Time!L$11 -> 3 | M6: =Time!M$11 -> 4 | N6: =Time!N$11 -> 5 | O6: =Time!O$11 -> 6 | P6: =Time!P$11 -> 7
A8: CPI(H) INDEXATION
C10: Average CPI(H) - base index
E11: =InpActive!E218 -> Consumer Price Index (with housing) for April | F11: =InpActive!F218 -> 103.2 | G11: =InpActive!G218 -> Index
E12: =InpActive!E219 -> Consumer Price Index (with housing) for May | F12: =InpActive!F219 -> 103.5 | G12: =InpActive!G219 -> Index
E13: =InpActive!E220 -> Consumer Price Index (with housing) for June | F13: =InpActive!F220 -> 103.5 | G13: =InpActive!G220 -> Index
E14: =InpActive!E221 -> Consumer Price Index (with housing) for July | F14: =InpActive!F221 -> 103.5 | G14: =InpActive!G221 -> Index
E15: =InpActive!E222 -> Consumer Price Index (with housing) for August | F15: =InpActive!F222 -> 104 | G15: =InpActive!G222 -> Index
E16: =InpActive!E223 -> Consumer Price Index (with housing) for September | F16: =InpActive!F223 -> 104.3 | G16: =InpActive!G223 -> Index
E17: =InpActive!E224 -> Consumer Price Index (with housing) for October | F17: =InpActive!F224 -> 104.4 | G17: =InpActive!G224 -> Index
E18: =InpActive!E225 -> Consumer Price Index (with housing) for November | F18: =InpActive!F225 -> 104.7 | G18: =InpActive!G225 -> Index
E19: =InpActive!E226 -> Consumer Price Index (with housing) for December | F19: =InpActive!F226 -> 105 | G19: =InpActive!G226 -> Index
E20: =InpActive!E227 -> Consumer Price Index (with housing) for January | F20: =InpActive!F227 -> 104.5 | G20: =InpActive!G227 -> Index
E21: =InpActive!E228 -> Consumer Price Index (with housing) for February | F21: =InpActive!F228 -> 104.9 | G21: =InpActive!G228 -> Index
E22: =InpActive!E229 -> Consumer Price Index (with housing) for March | F22: =InpActive!F229 -> 105.1 | G22: =InpActive!G229 -> Index
E23: CPIH 2017/18 FYA - Base Year | F23: =AVERAGE(F11:F22) -> 104.2166667 | G23: Index
C25: CPI(H): Financial year average - index
E26: =InpActive!E232 -> Consumer Price Index (with housing) for April | F26: =InpActive!F232 -> 0 | G26: =InpActive!G232 -> Index | H26: =InpActive!H232 -> 0 | I26: =InpActive!I232 -> 0 | J26: =InpActive!J232 -> 107.6 | K26: =InpActive!K232 -> 108.6 | L26: =InpActive!L232 -> 110.4 | M26: =InpActive!M232 -> 119 | N26: =InpActive!N232 -> 128.3 | O26: =InpActive!O232 -> 132.2 | P26: =InpActive!P232 -> 134.4
E27: =InpActive!E233 -> Consumer Price Index (with housing) for May | F27: =InpActive!F233 -> 0 | G27: =InpActive!G233 -> Index | H27: =InpActive!H233 -> 0 | I27: =InpActive!I233 -> 0 | J27: =InpActive!J233 -> 107.9 | K27: =InpActive!K233 -> 108.6 | L27: =InpActive!L233 -> 111 | M27: =InpActive!M233 -> 119.7 | N27: =InpActive!N233 -> 129.1 | O27: =InpActive!O233 -> 132.7 | P27: =InpActive!P233 -> 134.8
E28: =InpActive!E234 -> Consumer Price Index (with housing) for June | F28: =InpActive!F234 -> 0 | G28: =InpActive!G234 -> Index | H28: =InpActive!H234 -> 0 | I28: =InpActive!I234 -> 0 | J28: =InpActive!J234 -> 107.9 | K28: =InpActive!K234 -> 108.8 | L28: =InpActive!L234 -> 111.4 | M28: =InpActive!M234 -> 120.5 | N28: =InpActive!N234 -> 129.4 | O28: =InpActive!O234 -> 133 | P28: =InpActive!P234 -> 135.2
E29: =InpActive!E235 -> Consumer Price Index (with housing) for July | F29: =InpActive!F235 -> 0 | G29: =InpActive!G235 -> Index | H29: =InpActive!H235 -> 0 | I29: =InpActive!I235 -> 0 | J29: =InpActive!J235 -> 108 | K29: =InpActive!K235 -> 109.2 | L29: =InpActive!L235 -> 111.4 | M29: =InpActive!M235 -> 121.2 | N29: =InpActive!N235 -> 129 | O29: =InpActive!O235 -> 132.9 | P29: =InpActive!P235 -> 134.9
E30: =InpActive!E236 -> Consumer Price Index (with housing) for August | F30: =InpActive!F236 -> 0 | G30: =InpActive!G236 -> Index | H30: =InpActive!H236 -> 0 | I30: =InpActive!I236 -> 0 | J30: =InpActive!J236 -> 108.3 | K30: =InpActive!K236 -> 108.8 | L30: =InpActive!L236 -> 112.1 | M30: =InpActive!M236 -> 121.8 | N30: =InpActive!N236 -> 129.4 | O30: =InpActive!O236 -> 133.4 | P30: =InpActive!P236 -> 135.3
E31: =InpActive!E237 -> Consumer Price Index (with housing) for September | F31: =InpActive!F237 -> 0 | G31: =InpActive!G237 -> Index | H31: =InpActive!H237 -> 0 | I31: =InpActive!I237 -> 0 | J31: =InpActive!J237 -> 108.4 | K31: =InpActive!K237 -> 109.2 | L31: =InpActive!L237 -> 112.4 | M31: =InpActive!M237 -> 122.3 | N31: =InpActive!N237 -> 130.1 | O31: =InpActive!O237 -> 133.5 | P31: =InpActive!P237 -> 135.8
E32: =InpActive!E238 -> Consumer Price Index (with housing) for October | F32: =InpActive!F238 -> 0 | G32: =InpActive!G238 -> Index | H32: =InpActive!H238 -> 0 | I32: =InpActive!I238 -> 0 | J32: =InpActive!J238 -> 108.3 | K32: =InpActive!K238 -> 109.2 | L32: =InpActive!L238 -> 113.4 | M32: =InpActive!M238 -> 124.3 | N32: =InpActive!N238 -> 130.2 | O32: =InpActive!O238 -> 134.3 | P32: =InpActive!P238 -> 136.1
E33: =InpActive!E239 -> Consumer Price Index (with housing) for November | F33: =InpActive!F239 -> 0 | G33: =InpActive!G239 -> Index | H33: =InpActive!H239 -> 0 | I33: =InpActive!I239 -> 0 | J33: =InpActive!J239 -> 108.5 | K33: =InpActive!K239 -> 109.1 | L33: =InpActive!L239 -> 114.1 | M33: =InpActive!M239 -> 124.8 | N33: =InpActive!N239 -> 130 | O33: =InpActive!O239 -> 134.6 | P33: =InpActive!P239 -> 136.2
E34: =InpActive!E240 -> Consumer Price Index (with housing) for December | F34: =InpActive!F240 -> 0 | G34: =InpActive!G240 -> Index | H34: =InpActive!H240 -> 0 | I34: =InpActive!I240 -> 0 | J34: =InpActive!J240 -> 108.5 | K34: =InpActive!K240 -> 109.4 | L34: =InpActive!L240 -> 114.7 | M34: =InpActive!M240 -> 125.3 | N34: =InpActive!N240 -> 130.5 | O34: =InpActive!O240 -> 135.1 | P34: =InpActive!P240 -> 136.5
E35: =InpActive!E241 -> Consumer Price Index (with housing) for January | F35: =InpActive!F241 -> 0 | G35: =InpActive!G241 -> Index | H35: =InpActive!H241 -> 0 | I35: =InpActive!I241 -> 0 | J35: =InpActive!J241 -> 108.3 | K35: =InpActive!K241 -> 109.3 | L35: =InpActive!L241 -> 114.6 | M35: =InpActive!M241 -> 124.8 | N35: =InpActive!N241 -> 130 | O35: =InpActive!O241 -> 135.1 | P35: =InpActive!P241 -> 135.9
E36: =InpActive!E242 -> Consumer Price Index (with housing) for February | F36: =InpActive!F242 -> 0 | G36: =InpActive!G242 -> Index | H36: =InpActive!H242 -> 0 | I36: =InpActive!I242 -> 0 | J36: =InpActive!J242 -> 108.6 | K36: =InpActive!K242 -> 109.4 | L36: =InpActive!L242 -> 115.4 | M36: =InpActive!M242 -> 126 | N36: =InpActive!N242 -> 130.8 | O36: =InpActive!O242 -> 135.6 | P36: =InpActive!P242 -> 136.5
E37: =InpActive!E243 -> Consumer Price Index (with housing) for March | F37: =InpActive!F243 -> 0 | G37: =InpActive!G243 -> Index | H37: =InpActive!H243 -> 0 | I37: =InpActive!I243 -> 0 | J37: =InpActive!J243 -> 108.6 | K37: =InpActive!K243 -> 109.7 | L37: =InpActive!L243 -> 116.5 | M37: =InpActive!M243 -> 126.8 | N37: =InpActive!N243 -> 131.6 | O37: =InpActive!O243 -> 136.1 | P37: =InpActive!P243 -> 136.9
E38: CPIH 2017/18 FYA - Period | G38: Index | J38: =AVERAGE(J26:J37) -> 108.2416667 | K38: =AVERAGE(K26:K37) -> 109.1083333 | L38: 113.1166667 | M38: 123.0416667 | N38: 129.8666667 | O38: 134.0416667 | P38: 135.7083333
D40: CPI(H): Fin year average - inflate from base year average
E41: =E$23 -> CPIH 2017/18 FYA - Base Year | F41: =F$23 -> 104.2166667 | G41: Index
E42: =E$38 -> CPIH 2017/18 FYA - Period | F42: =F$38 -> 0 | G42: Index | H42: 0 | I42: 0 | J42: 108.2416667 | K42: 109.1083333 | L42: 113.1166667 | M42: 123.0416667 | N42: 129.8666667 | O42: 134.0416667 | P42: 135.7083333
E43: CPI(H): Fin year average - inflate from base year 2017-18 average - CALC | G43: % | J43: =IF($F41 = 0, 0, J42 / $F41) -> 1.038621462 | K43: =IF($F41 = 0, 0, K42 / $F41) -> 1.04693747 | L43: =IF($F41 = 0, 0, L42 / $F41) -> 1.085399008 | M43: 1.180633296 | N43: 1.246121862 | O43: 1.286182632 | P43: 1.302174956
A45: END OF SHEET

Sheet Cost sharing calculations
A1: =RIGHT(CELL("filename", $A$1), LEN(CELL("filename", $A$1)) - SEARCH("]", CELL("filename", $A$1))) -> Cost sharing calculations
E2: =Time!E$22 -> Model Period BEG | J2: =Time!J$22 -> 2019-04-01 | K2: =Time!K$22 -> 2020-04-01 | L2: =Time!L$22 -> 2021-04-01 | M2: =Time!M$22 -> 2022-04-01 | N2: =Time!N$22 -> 2023-04-01 | O2: =Time!O$22 -> 2024-04-01 | P2: =Time!P$22 -> 2025-04-01
E3: =Time!E$23 -> Model Period END | F3: =Check!F$8 -> 0 | G3: Error chks | J3: =Time!J$23 -> 2020-03-31 | K3: =Time!K$23 -> 2021-03-31 | L3: =Time!L$23 -> 2022-03-31 | M3: =Time!M$23 -> 2023-03-31 | N3: =Time!N$23 -> 2024-03-31 | O3: =Time!O$23 -> 2025-03-31 | P3: =Time!P$23 -> 2026-03-31
E4: =Time!E$59 -> Pre Forecast vs Forecast | J4: =Time!J$59 -> Pre Fcst | K4: =Time!K$59 -> Forecast | L4: =Time!L$59 -> Forecast | M4: =Time!M$59 -> Forecast | N4: =Time!N$59 -> Forecast | O4: =Time!O$59 -> Forecast | P4: =Time!P$59 -> Post-Fcst
E5: =Time!E$101 -> Financial Year Ending | J5: =Time!J$101 -> 2020 | K5: =Time!K$101 -> 2021 | L5: =Time!L$101 -> 2022 | M5: =Time!M$101 -> 2023 | N5: =Time!N$101 -> 2024 | O5: =Time!O$101 -> 2025 | P5: =Time!P$101 -> 2026
E6: =Time!E$11 -> Model column counter | F6: Constant | G6: Unit | H6: Total | J6: =Time!J$11 -> 1 | K6: =Time!K$11 -> 2 | L6: =Time!L$11 -> 3 | M6: =Time!M$11 -> 4 | N6: =Time!N$11 -> 5 | O6: =Time!O$11 -> 6 | P6: =Time!P$11 -> 7
A8: WAGE GROWTH ADJUSTER
C10: Cumulative actual real wage growth
E11: =InpActive!E250 -> ASHE Gross Hourly Wage All - Nominal | F11: =InpActive!F250 -> 0 | G11: =InpActive!G250 -> £ / hour | H11: =InpActive!H250 -> 0 | I11: =InpActive!I250 -> 0 | J11: =InpActive!J250 -> 17.06 | K11: =InpActive!K250 -> 17.54 | L11: =InpActive!L250 -> 18.14 | M11: =InpActive!M250 -> 19.68 | N11: =InpActive!N250 -> 20.81 | O11: =InpActive!O250 -> 21.77971342 | P11: =InpActive!P250 -> 0
E12: =Index!E$43 -> CPI(H): Fin year average - inflate from base year 2017-18 average - CALC | F12: =Index!F$43 -> 0 | G12: =Index!G$43 -> % | H12: =Index!H$43 -> 0 | I12: =Index!I$43 -> 0 | J12: =Index!J$43 -> 1.038621462 | K12: =Index!K$43 -> 1.04693747 | L12: =Index!L$43 -> 1.085399008 | M12: =Index!M$43 -> 1.180633296 | N12: =Index!N$43 -> 1.246121862 | O12: =Index!O$43 -> 1.286182632 | P12: =Index!P$43 -> 1.302174956
E13: ASHE GROSS HOURLY WAGE ALL - Real | G13: £ / hour | J13: =IF( J11 = 0, 0, J11 / J12) -> 16.4256186 | K13: 16.75362713 | L13: 16.7127479 | M13: 16.66901998 | N13: 16.69981134 | O13: 16.9336087 | P13: 0
E15: =E$13 -> ASHE GROSS HOURLY WAGE ALL - Real | F15: 0 | G15: £ / hour | H15: 0 | I15: 0 | J15: 16.4256186 | K15: 16.75362713 | L15: 16.7127479 | M15: 16.66901998 | N15: 16.69981134 | O15: 16.9336087 | P15: 0
E16: ASHE GROSS HOURLY WAGE ALL - Cumulative growth - Real | G16: % | J16: =IF( J15 = 0, 0, J15 / $J$15) -> 1 | K16: =IF( K15 = 0, 0, K15 / $J$15) -> 1.019969326 | L16: 1.017480578 | M16: 1.0148184 | N16: 1.016692994 | O16: 1.030926695 | P16: 0
C18: Real adjustment factor for wage growth
E19: =InpActive!E249 -> OBR Forecast wage growth for PR19 FD | F19: =InpActive!F249 -> 0 | G19: =InpActive!G249 -> % | H19: =InpActive!H249 -> 0 | I19: =InpActive!I249 -> 0 | J19: =InpActive!J249 -> 0.01 | K19: =InpActive!K249 -> 0.011 | L19: =InpActive!L249 -> 0.011 | M19: =InpActive!M249 -> 0.012 | N19: =InpActive!N249 -> 0.013 | O19: =InpActive!O249 -> 0.014 | P19: =InpActive!P249 -> 0
E20: =Time!E45 -> Last Pre Forecast Flag | F20: =Time!F45 -> 0 | G20: =Time!G45 -> flag | H20: =Time!H45 -> 1 | I20: =Time!I45 -> 0 | J20: =Time!J45 -> 1 | K20: =Time!K45 -> 0 | L20: =Time!L45 -> 0 | M20: =Time!M45 -> 0 | N20: =Time!N45 -> 0 | O20: =Time!O45 -> 0 | P20: =Time!P45 -> 0
E21: Forecast wage growth for adjuster | G21: % | J21: =IF(J20 = 1, 1, I21 * (J19 + 1)) -> 1 | K21: =IF(K20 = 1, 1, J21 * (K19 + 1)) -> 1.011 | L21: 1.022121 | M21: 1.034386452 | N21: 1.047833476 | O21: 1.062503145 | P21: 1.062503145
E23: =E$16 -> ASHE GROSS HOURLY WAGE ALL - Cumulative growth - Real | F23: 0 | G23: % | H23: 0 | I23: 0 | J23: 1 | K23: 1.019969326 | L23: 1.017480578 | M23: 1.0148184 | N23: 1.016692994 | O23: 1.030926695 | P23: 0
E24: =E$21 -> Forecast wage growth for adjuster | F24: 0 | G24: % | H24: 0 | I24: 0 | J24: 1 | K24: 1.011 | L24: 1.022121 | M24: 1.034386452 | N24: 1.047833476 | O24: 1.062503145 | P24: 1.062503145
E25: =Time!E$54 -> Forecast Period Flag | F25: =Time!F$54 -> 0 | G25: =Time!G$54 -> flag | H25: =Time!H$54 -> 5 | I25: =Time!I$54 -> 0 | J25: =Time!J$54 -> 0 | K25: =Time!K$54 -> 1 | L25: =Time!L$54 -> 1 | M25: =Time!M$54 -> 1 | N25: =Time!N$54 -> 1 | O25: =Time!O$54 -> 1 | P25: =Time!P$54 -> 0
E26: Real adjustment factor for wages | G26: % | J26: =IF( J25 = 1, J23/J24, 0) -> 0 | K26: 1.008871737 | L26: 0.9954600068 | M26: 0.9810824548 | N26: 0.970281077 | O26: 0.970281077 | P26: 0
A28: WATER SERVICES COMBINED
C30: Active Sharing Rates -WR/WN
E32: =E$142 -> Total variance to forecast net totex for cost sharing - WR | F32: =F$142 -> 9.739825716 | G32: =G$142 -> £m
E33: =E$308 -> Total variance to forecast net totex for cost sharing - WN | F33: =F$308 -> 433.8150587 | G33: =G$308 -> £m
E34: Total variance to forecast net totex for cost sharing - WATER | F34: =SUM(F32:F33) -> 443.5548844 | G34: £m
E36: =E$34 -> Total variance to forecast net totex for cost sharing - WATER | F36: =F$34 -> 443.5548844 | G36: =G$34 -> £m
E37: =InpActive!E$267 -> Outperformance Rate - WR | F37: =InpActive!F$267 -> 0.45 | G37: =InpActive!G$267 -> %
E38: =InpActive!E$268 -> Underperformance Rate - WR | F38: =InpActive!F$268 -> 0.55 | G38: =InpActive!G$268 -> %
E39: ="Active Sharing Rate - "& INDEX(E37:E38,MATCH(F39,F37:F38,0)) -> Active Sharing Rate - Underperformance Rate - WR | F39: =IF(F36<0,F37,F38) -> 0.55 | G39: %
E42: =E$34 -> Total variance to forecast net totex for cost sharing - WATER | F42: =F$34 -> 443.5548844 | G42: =G$34 -> £m
E43: =InpActive!E$270 -> Outperformance Rate - WN | F43: =InpActive!F$270 -> 0.45 | G43: =InpActive!G$270 -> %
E44: =InpActive!E$271 -> Underperformance Rate - WN | F44: =InpActive!F$271 -> 0.55 | G44: =InpActive!G$271 -> %
E45: ="Active Sharing Rate - "& INDEX(E43:E44,MATCH(F45,F43:F44,0)) -> Active Sharing Rate - Underperformance Rate - WN | F45: =IF(F42<0,F43,F44) -> 0.55 | G45: %
A47: WATER RESOURCES
C49: Adjustment For Wage Growth
D51: Totex for wage adjustment
E52: =InpActive!E$29 -> Base Costs - WR - Real | F52: =InpActive!F$29 -> 235.2624271 | G52: =InpActive!G$29 -> £m
E53: =InpActive!E$30 -> Metering (excluding new connections) for meters requested by optants, customers and businesses - WR - Real | F53: =InpActive!F$30 -> 0 | G53: =InpActive!G$30 -> £m
E54: Totex available for wage indexation adjustment - WR - Real | F54: =SUM(F52:F53) -> 235.2624271 | G54: £m
D56: Profile for totex for wage adjustment
E57: =InpActive!E$32 -> Opex split profile - Base costs - WR | F57: =InpActive!F$32 -> 0 | G57: =InpActive!G$32 -> % | H57: =InpActive!H$32 -> 0 | I57: =InpActive!I$32 -> 0 | J57: =InpActive!J$32 -> 0 | K57: =InpActive!K$32 -> 0.1574491386 | L57: =InpActive!L$32 -> 0.1527481059 | M57: =InpActive!M$32 -> 0.1542599866 | N57: =InpActive!N$32 -> 0.1518208351 | O57: =InpActive!O$32 -> 0.1639601954 | P57: =InpActive!P$32 -> 0
E58: =InpActive!E$33 -> Capex Split Profile - Base costs - WR | F58: =InpActive!F$33 -> 0 | G58: =InpActive!G$33 -> % | H58: =InpActive!H$33 -> 0 | I58: =InpActive!I$33 -> 0 | J58: =InpActive!J$33 -> 0 | K58: =InpActive!K$33 -> 0.03444170343 | L58: =InpActive!L$33 -> 0.04806264493 | M58: =InpActive!M$33 -> 0.066439538 | N58: =InpActive!N$33 -> 0.04561664588 | O58: =InpActive!O$33 -> 0.02520120609 | P58: =InpActive!P$33 -> 0
E59: Totex profile - Base costs - WR | G59: % | H59: =SUM(J59:P59) -> 1 | J59: =SUM(J57:J58) -> 0 | K59: 0.1918908421 | L59: 0.2008107508 | M59: 0.2206995246 | N59: 0.197437481 | O59: 0.1891614015 | P59: 0
E60: Totex profile - Base costs - 5 year percentage - WR | F60: =H$59 -> 1 | G60: %
E62: =E$60 -> Totex profile - Base costs - 5 year percentage - WR | F62: =F$60 -> 1 | G62: =G$60 -> %
E63: WR Totex profile 100% check | F63: =IF(OR($F$62 = 1, F62 = 0), 0, 1) -> 0 | G63: Check
E65: =E$54 -> Totex available for wage indexation adjustment - WR - Real | F65: =F$54 -> 235.2624271 | G65: =G$54 -> £m
E66: =Time!E$54 -> Forecast Period Flag | F66: =Time!F$54 -> 0 | G66: =Time!G$54 -> flag | H66: =Time!H$54 -> 5 | I66: =Time!I$54 -> 0 | J66: =Time!J$54 -> 0 | K66: =Time!K$54 -> 1 | L66: =Time!L$54 -> 1 | M66: =Time!M$54 -> 1 | N66: =Time!N$54 -> 1 | O66: =Time!O$54 -> 1 | P66: =Time!P$54 -> 0
E67: =E$59 -> Totex profile - Base costs - WR | F67: 0 | G67: % | H67: 1 | I67: 0 | J67: 0 | K67: 0.1918908421 | L67: 0.2008107508 | M67: 0.2206995246 | N67: 0.197437481 | O67: 0.1891614015 | P67: 0
E68: Profiled Totex available for wage indexation adjustment - WR - Real | G68: £m | H68: =SUM(J68:P68) -> 235.2624271 | J68: =IF(J66 = 1, J67 * $F65, 0) -> 0 | K68: 45.14470525 | L68: 47.24322463 | M68: 51.92230583 | N68: 46.44962099 | O68: 44.50257044 | P68: 0
D70: Totex applicable for wage adjustment by year
E71: =InpActive!E$253 -> Percentage totex linked to wage growth - WR | F71: =InpActive!F$253 -> 0.386 | G71: =InpActive!G$253 -> %
E72: =E68 -> Profiled Totex available for wage indexation adjustment - WR - Real | F72: 0 | G72: £m | H72: 235.2624271 | I72: 0 | J72: 0 | K72: 45.14470525 | L72: 47.24322463 | M72: 51.92230583 | N72: 46.44962099 | O72: 44.50257044 | P72: 0
E73: Profiled Net totex available for wage adj - WR - Real | G73: £m | H73: =SUM(J73:P73) -> 90.81129687 | J73: =J72 * $F71 -> 0 | K73: 17.42585623 | L73: 18.23588471 | M73: 20.04201005 | N73: 17.9295537 | O73: 17.17799219 | P73: 0
D75: Adjustment factor for wage linked totex
E76: =Time!E$54 -> Forecast Period Flag | F76: =Time!F$54 -> 0 | G76: =Time!G$54 -> flag | H76: =Time!H$54 -> 5 | I76: =Time!I$54 -> 0 | J76: =Time!J$54 -> 0 | K76: =Time!K$54 -> 1 | L76: =Time!L$54 -> 1 | M76: =Time!M$54 -> 1 | N76: =Time!N$54 -> 1 | O76: =Time!O$54 -> 1 | P76: =Time!P$54 -> 0
E77: =E$73 -> Profiled Net totex available for wage adj - WR - Real | F77: 0 | G77: £m | H77: 90.81129687 | I77: 0 | J77: 0 | K77: 17.42585623 | L77: 18.23588471 | M77: 20.04201005 | N77: 17.9295537 | O77: 17.17799219 | P77: 0
E78: =E$26 -> Real adjustment factor for wages | F78: 0 | G78: % | H78: 0 | I78: 0 | J78: 0 | K78: 1.008871737 | L78: 0.9954600068 | M78: 0.9810824548 | N78: 0.970281077 | O78: 0.970281077 | P78: 0
E79: Profiled adjustment wage related totex - WR - Real | G79: £m | H79: =SUM(J79:P79) -> 89.4605996 | J79: =IF(J76 = 1, J77 * J78, 0) -> 0 | K79: 17.58045383 | L79: 18.15309391 | M79: 19.66286442 | N79: 17.39670668 | O79: 16.66748076 | P79: 0
D81: Variance to forecast wage linked totex
E82: =E$79 -> Profiled adjustment wage related totex - WR - Real | F82: 0 | G82: £m | H82: 89.4605996 | I82: 0 | J82: 0 | K82: 17.58045383 | L82: 18.15309391 | M82: 19.66286442 | N82: 17.39670668 | O82: 16.66748076 | P82: 0
E83: =E$73 -> Profiled Net totex available for wage adj - WR - Real | F83: 0 | G83: £m | H83: 90.81129687 | I83: 0 | J83: 0 | K83: 17.42585623 | L83: 18.23588471 | M83: 20.04201005 | N83: 17.9295537 | O83: 17.17799219 | P83: 0
E84: Variance to forecast totex for wage adjustment - WR | G84: £m | H84: =SUM(J84:P84) -> -1.350697269 | J84: =J82 - J83 -> 0 | K84: =K82 - K83 -> 0.1545976075 | L84: -0.08279079332 | M84: -0.3791456307 | N84: -0.5328470256 | O84: -0.5105114269 | P84: 0
D86: Wage totex overfunded/unfunded at PR19
E87: =E$84 -> Variance to forecast totex for wage adjustment - WR | F87: =F$84 -> 0 | G87: £m | H87: -1.350697269 | I87: 0 | J87: 0 | K87: =K$84 -> 0.1545976075 | L87: -0.08279079332 | M87: -0.3791456307 | N87: -0.5328470256 | O87: -0.5105114269 | P87: 0
E88: =E137 -> Time value of money factor - WR | F88: 0 | G88: Factor | H88: 0 | I88: 0 | J88: 1 | K88: 1.130763073 | L88: 1.096550691 | M88: 1.06337344 | N88: 1.0312 | O88: 1 | P88: 1
E89: Variance to forecast totex for wage adjustment - NPV adjusted - WR | G89: £m | H89: =SUM(J89:P89) -> -1.379127709 | J89: =J87*J88 -> 0 | K89: =K87*K88 -> 0.1748132657 | L89: =L87*L88 -> -0.09078430165 | M89: -0.4031733936 | N89: -0.5494718528 | O89: -0.5105114269 | P89: 0
E90: (Under)/Overfunded wage related totex at PR19 - WR | F90: =H89 * -1 -> 1.379127709 | G90: £m
C92: Cost sharing on net totex available for reconciliation
E94: =InpActive!E$42 -> Net totex for cost sharing reconciliation - WR - Nominal | F94: =InpActive!F$42 -> 0 | G94: =InpActive!G$42 -> £m | H94: =InpActive!H$42 -> 0 | I94: =InpActive!I$42 -> 0 | J94: =InpActive!J$42 -> 0 | K94: =InpActive!K$42 -> 33.62 | L94: =InpActive!L$42 -> 35.022 | M94: =InpActive!M$42 -> 37.326 | N94: =InpActive!N$42 -> 51.90347201 | O94: =InpActive!O$42 -> 55.50542692 | P94: =InpActive!P$42 -> 0
E95: =Index!E$43 -> CPI(H): Fin year average - inflate from base year 2017-18 average - CALC | F95: =Index!F$43 -> 0 | G95: =Index!G$43 -> % | H95: =Index!H$43 -> 0 | I95: =Index!I$43 -> 0 | J95: =Index!J$43 -> 1.038621462 | K95: =Index!K$43 -> 1.04693747 | L95: =Index!L$43 -> 1.085399008 | M95: =Index!M$43 -> 1.180633296 | N95: =Index!N$43 -> 1.246121862 | O95: =Index!O$43 -> 1.286182632 | P95: =Index!P$43 -> 1.302174956
E96: Actual net totex for cost sharing reconciliation - WR - Real | G96: £m | J96: =J94 / J95 -> 0 | K96: =K94 / K95 -> 32.11271061 | L96: =L94 / L95 -> 32.26647503 | M96: 31.61523576 | N96: 41.6520034 | O96: 43.15516749 | P96: 0
E98: =InpActive!E$44 -> Performance related pay recovery mechanism adjustment - WR - Nominal (Neg) | F98: =InpActive!F$44 -> 0 | G98: =InpActive!G$44 -> £m | H98: =InpActive!H$44 -> 0 | I98: =InpActive!I$44 -> 0 | J98: =InpActive!J$44 -> 0 | K98: =InpActive!K$44 -> 0 | L98: =InpActive!L$44 -> 0 | M98: =InpActive!M$44 -> 0 | N98: =InpActive!N$44 -> 0 | O98: =InpActive!O$44 -> 0 | P98: =InpActive!P$44 -> 0
E99: =Index!E$43 -> CPI(H): Fin year average - inflate from base year 2017-18 average - CALC | F99: =Index!F$43 -> 0 | G99: =Index!G$43 -> % | H99: =Index!H$43 -> 0 | I99: =Index!I$43 -> 0 | J99: =Index!J$43 -> 1.038621462 | K99: =Index!K$43 -> 1.04693747 | L99: =Index!L$43 -> 1.085399008 | M99: =Index!M$43 -> 1.180633296 | N99: =Index!N$43 -> 1.246121862 | O99: =Index!O$43 -> 1.286182632 | P99: =Index!P$43 -> 1.302174956
E100: Performance related pay recovery mechanism adjustment - WR - real | G100: £m | H100: =SUM(K100:O100) -> 0 | J100: =J98 / J99 -> 0 | K100: =K98 / K99 -> 0 | L100: =L98 / L99 -> 0 | M100: 0 | N100: 0 | O100: 0 | P100: 0
E101: Total Performance related pay recovery mechanism adjustment - WR - real | F101: =H100 -> 0 | G101: £m
E103: =E$96 -> Actual net totex for cost sharing reconciliation - WR - Real | F103: =F$96 -> 0 | G103: £m | H103: 0 | I103: 0 | J103: 0 | K103: 32.11271061 | L103: 32.26647503 | M103: 31.61523576 | N103: 41.6520034 | O103: 43.15516749 | P103: 0
E104: =E100 -> Performance related pay recovery mechanism adjustment - WR - real | F104: =F100 -> 0 | G104: £m | H104: 0 | I104: 0 | J104: 0 | K104: 0 | L104: 0 | M104: 0 | N104: 0 | O104: 0 | P104: 0
E105: =Time!E$54 -> Forecast Period Flag | F105: =Time!F$54 -> 0 | G105: =Time!G$54 -> flag | H105: =Time!H$54 -> 5 | I105: =Time!I$54 -> 0 | J105: =Time!J$54 -> 0 | K105: =Time!K$54 -> 1 | L105: =Time!L$54 -> 1 | M105: =Time!M$54 -> 1 | N105: =Time!N$54 -> 1 | O105: =Time!O$54 -> 1 | P105: =Time!P$54 -> 0
E106: Actual net totex for cost sharing reconciliation - WR - Real | G106: £m | H106: =SUM(J106:P106) -> 180.8015923 | J106: =(J103 + J104)* J105 -> 0 | K106: =(K103 + K104)* K105 -> 32.11271061 | L106: =(L103 + L104)* L105 -> 32.26647503 | M106: 31.61523576 | N106: 41.6520034 | O106: 43.15516749 | P106: 0
D108: Profile for net totex for cost sharing
E110: =InpActive!E$35 -> Opex split profile - Cost sharing - WR | F110: =InpActive!F$35 -> 0 | G110: =InpActive!G$35 -> % | H110: =InpActive!H$35 -> 0 | I110: =InpActive!I$35 -> 0 | J110: =InpActive!J$35 -> 0 | K110: =InpActive!K$35 -> 0.1416841268 | L110: =InpActive!L$35 -> 0.1353075737 | M110: =InpActive!M$35 -> 0.1374504954 | N110: =InpActive!N$35 -> 0.1342023332 | O110: =InpActive!O$35 -> 0.150834837 | P110: =InpActive!P$35 -> 0
E111: =InpActive!E$36 -> Capex split profile - Cost sharing - WR | F111: =InpActive!F$36 -> 0 | G111: =InpActive!G$36 -> % | H111: =InpActive!H$36 -> 0 | I111: =InpActive!I$36 -> 0 | J111: =InpActive!J$36 -> 0 | K111: =InpActive!K$36 -> 0.04709847411 | L111: =InpActive!L$36 -> 0.065724892 | M111: =InpActive!M$36 -> 0.09085499697 | N111: =InpActive!N$36 -> 0.06238002774 | O111: =InpActive!O$36 -> 0.034462243 | P111: =InpActive!P$36 -> 0
E112: Totex profile - Cost Sharing - WR | G112: % | H112: =SUM(J112:P112) -> 1 | J112: =SUM(J110:J111) -> 0 | K112: =SUM(K110:K111) -> 0.1887826009 | L112: 0.2010324657 | M112: 0.2283054924 | N112: 0.1965823609 | O112: 0.18529708 | P112: 0
E113: Totex profile - Cost Sharing - 5 year percentage - WR | F113: =H$59 -> 1 | G113: %
E115: =E$60 -> Totex profile - Base costs - 5 year percentage - WR | F115: =F$60 -> 1 | G115: =G$60 -> %
E116: WR Totex profile - Cost sharing 100% check | F116: =IF(OR($F$115 = 1, F115 = 0), 0, 1) -> 0 | G116: Check
E118: =InpActive!E$43 -> Net totex available for cost sharing - WR - Real | F118: =InpActive!F$43 -> 172.0403664 | G118: =InpActive!G$43 -> £m
E119: =E$112 -> Totex profile - Cost Sharing - WR | F119: =F$112 -> 0 | G119: % | H119: 1 | I119: 0 | J119: 0 | K119: 0.1887826009 | L119: 0.2010324657 | M119: 0.2283054924 | N119: 0.1965823609 | O119: 0.18529708 | P119: 0
E120: Net totex available for cost sharing profiled - WR - Real | G120: £m | H120: =SUM(J120:P120) -> 172.0403664 | J120: =J119 * $F118 -> 0 | K120: =K119 * $F118 -> 32.47822784 | L120: 34.58569906 | M120: 39.27776055 | N120: 33.8201014 | O120: 31.87857754 | P120: 0
E123: =E$120 -> Net totex available for cost sharing profiled - WR - Real | F123: 0 | G123: £m | H123: 172.0403664 | I123: 0 | J123: 0 | K123: 32.47822784 | L123: 34.58569906 | M123: 39.27776055 | N123: 33.8201014 | O123: 31.87857754 | P123: 0
E124: =E$84 -> Variance to forecast totex for wage adjustment - WR | F124: 0 | G124: £m | H124: -1.350697269 | I124: 0 | J124: 0 | K124: 0.1545976075 | L124: -0.08279079332 | M124: -0.3791456307 | N124: -0.5328470256 | O124: -0.5105114269 | P124: 0
E125: =InpActive!E$46 -> Total final WINEP reconciliation - WR - real | F125: =InpActive!F$46 -> 0 | G125: =InpActive!G$46 -> £m | H125: =InpActive!H$46 -> 0 | I125: =InpActive!I$46 -> 0 | J125: =InpActive!J$46 -> 0 | K125: =InpActive!K$46 -> 0 | L125: =InpActive!L$46 -> 0 | M125: =InpActive!M$46 -> -0.03633333333 | N125: =InpActive!N$46 -> -0.03633333333 | O125: =InpActive!O$46 -> -0.03633333333 | P125: =InpActive!P$46 -> 0
E126: =E100 -> Performance related pay recovery mechanism adjustment - WR - real | F126: =F100 -> 0 | G126: £m | H126: 0 | I126: 0 | J126: 0 | K126: 0 | L126: 0 | M126: 0 | N126: 0 | O126: 0 | P126: 0
E127: Net totex available for cost sharing after adjustments profiled - WR - Real | G127: £m | H127: =SUM(J127:P127) -> 170.5806691 | J127: =SUM(J123:J126) -> 0 | K127: =SUM(K123:K126) -> 32.63282544 | L127: =SUM(L123:L126) -> 34.50290827 | M127: 38.86228159 | N127: 33.25092104 | O127: 31.33173278 | P127: 0
D129: Variance to forecast net totex for cost sharing
E130: =E$106 -> Actual net totex for cost sharing reconciliation - WR - Real | F130: 0 | G130: £m | H130: 180.8015923 | I130: 0 | J130: 0 | K130: 32.11271061 | L130: 32.26647503 | M130: 31.61523576 | N130: 41.6520034 | O130: 43.15516749 | P130: 0
E131: =E$127 -> Net totex available for cost sharing after adjustments profiled - WR - Real | F131: 0 | G131: £m | H131: 170.5806691 | I131: 0 | J131: 0 | K131: 32.63282544 | L131: 34.50290827 | M131: 38.86228159 | N131: 33.25092104 | O131: 31.33173278 | P131: 0
E132: Variance to forecast net totex for cost sharing - WR | G132: £m | H132: =SUM(J132:P132) -> 10.22092316 | J132: =J130 - J131 -> 0 | K132: -0.5201148338 | L132: -2.236433242 | M132: -7.247045829 | N132: 8.401082354 | O132: 11.82343471 | P132: 0
D134: Variance to forecast net totex for cost sharing - Time adjusted
E135: =InpActive!E$288 -> Financing cost index | F135: =InpActive!F$288 -> 0 | G135: =InpActive!G$288 -> Index | H135: =InpActive!H$288 -> 0 | I135: =InpActive!I$288 -> 0 | J135: =InpActive!J$288 -> 0 | K135: =InpActive!K$288 -> 4 | L135: =InpActive!L$288 -> 3 | M135: =InpActive!M$288 -> 2 | N135: =InpActive!N$288 -> 1 | O135: =InpActive!O$288 -> 0 | P135: =InpActive!P$288 -> 0
E136: =InpActive!E$290 -> Real WACC CPIH Deflated - WR | F136: =InpActive!F$290 -> 0.0312 | G136: =InpActive!G$290 -> %
E137: Time value of money factor - WR | G137: Factor | J137: =(1+$F136) ^ J135 -> 1 | K137: 1.130763073 | L137: 1.096550691 | M137: 1.06337344 | N137: 1.0312 | O137: 1 | P137: 1
E139: =E$132 -> Variance to forecast net totex for cost sharing - WR | F139: 0 | G139: £m | H139: 10.22092316 | I139: 0 | J139: 0 | K139: -0.5201148338 | L139: -2.236433242 | M139: -7.247045829 | N139: 8.401082354 | O139: 11.82343471 | P139: 0
E140: =E$137 -> Time value of money factor - WR | F140: 0 | G140: Factor | H140: 0 | I140: 0 | J140: 1 | K140: 1.130763073 | L140: 1.096550691 | M140: 1.06337344 | N140: 1.0312 | O140: 1 | P140: 1
E141: Time adjusted variance to forecast net totex for cost sharing - WR | G141: £m | H141: =SUM(J141:P141) -> 9.739825716 | J141: =J139 * J140 -> 0 | K141: -0.5881266477 | L141: -2.452362417 | M141: -7.706316053 | N141: 8.663196124 | O141: 11.82343471 | P141: 0
E142: Total variance to forecast net totex for cost sharing - WR | F142: =$H141 -> 9.739825716 | G142: £m
D144: Under / Overperformance on net totex for cost sharing
E145: =E$142 -> Total variance to forecast net totex for cost sharing - WR | F145: =F$142 -> 9.739825716 | G145: =G$142 -> £m
E146: =E$39 -> Active Sharing Rate - Underperformance Rate - WR | F146: =F$39 -> 0.55 | G146: =G$39 -> %
E147: Active adjustment for cost sharing - Net totex for cost sharing - WR - Real | F147: =F145 * (1-F146) -> 4.382921572 | G147: £m
E149: =InpActive!E$57 -> Ex ante allowance above Ofwat forecast - Water Resources - Real | F149: =InpActive!F$57 -> 0 | G149: =InpActive!G$57 -> £m
E150: =E$112 -> Totex profile - Cost Sharing - WR | F150: =F$112 -> 0 | G150: % | H150: 1 | I150: 0 | J150: 0 | K150: 0.1887826009 | L150: 0.2010324657 | M150: 0.2283054924 | N150: 0.1965823609 | O150: 0.18529708 | P150: 0
E151: Ex ante allowance profiled - WR - Real | G151: £m | H151: =SUM(J151:P151) -> 0 | J151: =J150 * $F149 -> 0 | K151: 0 | L151: 0 | M151: 0 | N151: 0 | O151: 0 | P151: 0
E153: =E$151 -> Ex ante allowance profiled - WR - Real | F153: 0 | G153: £m | H153: 0 | I153: 0 | J153: 0 | K153: 0 | L153: 0 | M153: 0 | N153: 0 | O153: 0 | P153: 0
E154: =E$137 -> Time value of money factor - WR | F154: 0 | G154: Factor | H154: 0 | I154: 0 | J154: 1 | K154: 1.130763073 | L154: 1.096550691 | M154: 1.06337344 | N154: 1.0312 | O154: 1 | P154: 1
E155: Ex ante allowance profiled - WR - Real - NPV adjusted | G155: £m | H155: =SUM(J155:P155) -> 0 | J155: =J153 * J154 -> 0 | K155: 0 | L155: 0 | M155: 0 | N155: 0 | O155: 0 | P155: 0
E156: NPV adjusted ex ante allowance - WR - Real | F156: =H155 -> 0 | G156: £m
E158: =InpActive!E$64 -> Actuals for CMA excluded items - WR - nominal | F158: =InpActive!F$64 -> 0 | G158: =InpActive!G$64 -> £m | H158: =InpActive!H$64 -> 0 | I158: =InpActive!I$64 -> 0 | J158: =InpActive!J$64 -> 0 | K158: =InpActive!K$64 -> 0 | L158: =InpActive!L$64 -> 0 | M158: =InpActive!M$64 -> 0 | N158: =InpActive!N$64 -> 0 | O158: =InpActive!O$64 -> 0 | P158: =InpActive!P$64 -> 0
E159: =Index!E$43 -> CPI(H): Fin year average - inflate from base year 2017-18 average - CALC | F159: =Index!F$43 -> 0 | G159: =Index!G$43 -> % | H159: =Index!H$43 -> 0 | I159: =Index!I$43 -> 0 | J159: =Index!J$43 -> 1.038621462 | K159: =Index!K$43 -> 1.04693747 | L159: =Index!L$43 -> 1.085399008 | M159: =Index!M$43 -> 1.180633296 | N159: =Index!N$43 -> 1.246121862 | O159: =Index!O$43 -> 1.286182632 | P159: =Index!P$43 -> 1.302174956
E160: Actuals for CMA excluded items - WR - real | G160: £m | J160: =J158 / J159 -> 0 | K160: =K158 / K159 -> 0 | L160: =L158 / L159 -> 0 | M160: 0 | N160: 0 | O160: 0 | P160: 0
E162: =InpActive!E$65 -> Allowance for CMA excluded items - WR - real | F162: =InpActive!F$65 -> 0 | G162: =InpActive!G$65 -> £m | H162: =InpActive!H$65 -> 0 | I162: =InpActive!I$65 -> 0 | J162: =InpActive!J$65 -> 0 | K162: =InpActive!K$65 -> 0 | L162: =InpActive!L$65 -> 0 | M162: =InpActive!M$65 -> 0 | N162: =InpActive!N$65 -> 0 | O162: =InpActive!O$65 -> 0 | P162: =InpActive!P$65 -> 0
E163: =E160 -> Actuals for CMA excluded items - WR - real | F163: =F160 -> 0 | G163: £m | H163: 0 | I163: 0 | J163: 0 | K163: =K160 -> 0 | L163: 0 | M163: 0 | N163: 0 | O163: 0 | P163: 0
E164: Variance to allowances for CMA excluded items - WR | G164: £m | H164: =SUM(J164:P164) -> 0 | J164: =J163-J162 -> 0 | K164: 0 | L164: =L163-L162 -> 0 | M164: 0 | N164: 0 | O164: 0 | P164: 0
E166: =E$164 -> Variance to allowances for CMA excluded items - WR | F166: =F$164 -> 0 | G166: £m | H166: 0 | I166: 0 | J166: 0 | K166: 0 | L166: 0 | M166: 0 | N166: 0 | O166: 0 | P166: 0
E167: =E$137 -> Time value of money factor - WR | F167: 0 | G167: Factor | H167: 0 | I167: 0 | J167: 1 | K167: 1.130763073 | L167: 1.096550691 | M167: 1.06337344 | N167: 1.0312 | O167: 1 | P167: 1
E168: Time value adjusted variance to allowances for CMA excluded items - WR - real | G168: £m | H168: =SUM(J168:P168) -> 0 | J168: =J166 * J167 -> 0 | K168: =K166 * K167 -> 0 | L168: 0 | M168: 0 | N168: 0 | O168: 0 | P168: 0
E169: Total variance to allowances for CMA excluded items - WR | F169: =$H168 -> 0 | G169: £m
E171: =E169 -> Total variance to allowances for CMA excluded items - WR | F171: =F169 -> 0 | G171: £m
E172: =InpActive!E66 -> CMA excluded items sharing rate - WR - real | F172: =InpActive!F66 -> 0 | G172: =InpActive!G66 -> %
E173: Allowable adjustment for CMA excluded items - WR - Real | F173: =(F171* F172) * -1 -> 0 | G173: £m
E175: =E147 -> Active adjustment for cost sharing - Net totex for cost sharing - WR - Real | F175: =F147 -> 4.382921572 | G175: =G147 -> £m
E176: =E$156 -> NPV adjusted ex ante allowance - WR - Real | F176: =F$156 -> 0 | G176: =G$156 -> £m
E177: =E90 -> (Under)/Overfunded wage related totex at PR19 - WR | F177: =F90 -> 1.379127709 | G177: =G90 -> £m
E178: =E$173 -> Allowable adjustment for CMA excluded items - WR - Real | F178: =F$173 -> 0 | G178: £m
E179: =E101 -> Total Performance related pay recovery mechanism adjustment - WR - real | F179: =F101 -> 0 | G179: £m
E180: Total adjustment for cost sharing after ex ante allowance & wage adjustment - WR - Real | F180: =F175 - SUM(F176:F178) +F179 -> 3.003793863 | G180: £m
C182: Wholesaler bad debt sharing adjustment
E184: =InpActive!E$60 -> Business retail bad debt liability due to covid liquidity measures - WR - real | F184: =InpActive!F$60 -> 0 | G184: =InpActive!G$60 -> £m
E185: =E$39 -> Active Sharing Rate - Underperformance Rate - WR | F185: =F$39 -> 0.55 | G185: =G$39 -> %
E186: Embedded customer share - WR | F186: =F184 * (1-F185) -> 0 | G186: £m
E188: =InpActive!E$61 -> Total Wholesaler Liability - WR - real | F188: =InpActive!F$61 -> 0 | G188: =InpActive!G$61 -> £m
E189: =E$39 -> Active Sharing Rate - Underperformance Rate - WR | F189: =F$39 -> 0.55 | G189: =G$39 -> %
E190: Wholesaler liability - WR | F190: =F188 * (F189) -> 0 | G190: £m
E192: =InpActive!E$60 -> Business retail bad debt liability due to covid liquidity measures - WR - real | F192: =InpActive!F$60 -> 0 | G192: =InpActive!G$60 -> £m
E193: =E$190 -> Wholesaler liability - WR | F193: =F$190 -> 0 | G193: £m
E194: Customer Liability | F194: =F192 - F193 -> 0 | G194: £m
E196: =E194 -> Customer Liability | F196: =F194 -> 0 | G196: £m
E197: =E186 -> Embedded customer share - WR | F197: =F186 -> 0 | G197: £m
E198: Wholesaler bad debt adjustment - WR | F198: =IF(F196 > F197, F196 - F197, 0) -> 0 | G198: £m
C200: Cost sharing adjustment RCV/Revenue Split
E202: =E$180 -> Total adjustment for cost sharing after ex ante allowance & wage adjustment - WR - Real | F202: =F$180 -> 3.003793863 | G202: =G$180 -> £m
E203: =InpActive!E$55 -> Weighted average PAYG rate - WR | F203: =InpActive!F$55 -> 0.7957895305 | G203: =InpActive!G$55 -> %
E204: Cost sharing revenue exc bad debt adjustment- WR - Real | F204: =F202 * ( $F$203) -> 2.390387708 | G204: £m
E206: =E$204 -> Cost sharing revenue exc bad debt adjustment- WR - Real | F206: =F$204 -> 2.390387708 | G206: £m
E207: =E198 -> Wholesaler bad debt adjustment - WR | F207: =F198 -> 0 | G207: =G198 -> £m
E208: Cost sharing revenue adjustment - WR - Real | F208: =SUM(F206:F207) -> 2.390387708 | G208: £m
E210: =E$180 -> Total adjustment for cost sharing after ex ante allowance & wage adjustment - WR - Real | F210: =F$180 -> 3.003793863 | G210: £m
E211: =InpActive!E$55 -> Weighted average PAYG rate - WR | F211: =InpActive!F$55 -> 0.7957895305 | G211: =InpActive!G$55 -> %
E212: Cost sharing RCV adjustment - WR - Real | F212: =F210 * (1 - $F$211) -> 0.6134061551 | G212: £m
A214: WATER NETWORK
C216: Adjustment For Wage Growth
D218: Totex for wage adjustment
E219: =InpActive!E$70 -> Base Costs - WN - Real | F219: =InpActive!F$70 -> 2173.192326 | G219: =InpActive!G$70 -> £m
E220: =InpActive!E$71 -> Metering (excluding new connections) for meters requested by optants, customers and businesses - WN - Real | F220: =InpActive!F$71 -> 0 | G220: =InpActive!G$71 -> £m
E221: Totex available for wage indexation adjustment - WN - Real | F221: =SUM(F219:F220) -> 2173.192326 | G221: £m
D223: Profile for totex for wage adjustment
E224: =InpActive!E$73 -> Opex Split Profile - Base costs - WN | F224: =InpActive!F$73 -> 0 | G224: =InpActive!G$73 -> % | H224: =InpActive!H$73 -> 0 | I224: =InpActive!I$73 -> 0 | J224: =InpActive!J$73 -> 0 | K224: =InpActive!K$73 -> 0.09723946113 | L224: =InpActive!L$73 -> 0.09651211461 | M224: =InpActive!M$73 -> 0.0987856252 | N224: =InpActive!N$73 -> 0.09818053649 | O224: =InpActive!O$73 -> 0.09787097483 | P224: =InpActive!P$73 -> 0
E225: =InpActive!E$74 -> Capex Split Profile - Base costs - WN | F225: =InpActive!F$74 -> 0 | G225: =InpActive!G$74 -> % | H225: =InpActive!H$74 -> 0 | I225: =InpActive!I$74 -> 0 | J225: =InpActive!J$74 -> 0 | K225: =InpActive!K$74 -> 0.07511400106 | L225: =InpActive!L$74 -> 0.1104648891 | M225: =InpActive!M$74 -> 0.1285460064 | N225: =InpActive!N$74 -> 0.1218376644 | O225: =InpActive!O$74 -> 0.07544872676 | P225: =InpActive!P$74 -> 0
E226: Totex profile - Base costs - WN | G226: % | H226: =SUM(J226:P226) -> 1 | J226: =SUM(J224:J225) -> 0 | K226: 0.1723534622 | L226: 0.2069770037 | M226: 0.2273316316 | N226: 0.2200182009 | O226: 0.1733197016 | P226: 0
E227: Totex profile - Base costs - 5 year percentage - WN | F227: =H$226 -> 1 | G227: %
E229: =E$227 -> Totex profile - Base costs - 5 year percentage - WN | F229: =F$227 -> 1 | G229: =G$227 -> %
E230: WN Totex profile - Base costs 100% check | F230: =IF(OR($F$229 = 1, F229 = 0), 0, 1) -> 0 | G230: Check
E232: =E$221 -> Totex available for wage indexation adjustment - WN - Real | F232: =F$221 -> 2173.192326 | G232: =G$221 -> £m
E233: =Time!E$54 -> Forecast Period Flag | F233: =Time!F$54 -> 0 | G233: =Time!G$54 -> flag | H233: =Time!H$54 -> 5 | I233: =Time!I$54 -> 0 | J233: =Time!J$54 -> 0 | K233: =Time!K$54 -> 1 | L233: =Time!L$54 -> 1 | M233: =Time!M$54 -> 1 | N233: =Time!N$54 -> 1 | O233: =Time!O$54 -> 1 | P233: =Time!P$54 -> 0
E234: =E$226 -> Totex profile - Base costs - WN | F234: 0 | G234: % | H234: 1 | I234: 0 | J234: 0 | K234: 0.1723534622 | L234: 0.2069770037 | M234: 0.2273316316 | N234: 0.2200182009 | O234: 0.1733197016 | P234: 0
E235: Profiled Totex available for wage indexation adjustment - WN - Real | G235: £m | H235: =SUM(J235:P235) -> 2173.192326 | J235: =IF(J233 = 1, J234 * $F232, 0) -> 0 | K235: 374.5572213 | L235: 449.8008361 | M235: 494.0353571 | N235: 478.1418657 | O235: 376.6570454 | P235: 0
D237: Totex applicable for wage adjustment by year
E238: =InpActive!E$255 -> Percentage totex linked to wage growth - WN | F238: =InpActive!F$255 -> 0.386 | G238: =InpActive!G$255 -> %
E239: =E235 -> Profiled Totex available for wage indexation adjustment - WN - Real | F239: 0 | G239: £m | H239: 2173.192326 | I239: 0 | J239: 0 | K239: 374.5572213 | L239: 449.8008361 | M239: 494.0353571 | N239: 478.1418657 | O239: 376.6570454 | P239: 0
E240: Profiled Net totex available for wage adj - WN - Real | G240: £m | H240: =SUM(J240:P240) -> 838.8522377 | J240: =J239 * $F238 -> 0 | K240: 144.5790874 | L240: 173.6231227 | M240: 190.6976478 | N240: 184.5627602 | O240: 145.3896195 | P240: 0
D242: Adjustment factor for wage linked totex
E243: =Time!E$54 -> Forecast Period Flag | F243: =Time!F$54 -> 0 | G243: =Time!G$54 -> flag | H243: =Time!H$54 -> 5 | I243: =Time!I$54 -> 0 | J243: =Time!J$54 -> 0 | K243: =Time!K$54 -> 1 | L243: =Time!L$54 -> 1 | M243: =Time!M$54 -> 1 | N243: =Time!N$54 -> 1 | O243: =Time!O$54 -> 1 | P243: =Time!P$54 -> 0
E244: =E$240 -> Profiled Net totex available for wage adj - WN - Real | F244: 0 | G244: £m | H244: 838.8522377 | I244: 0 | J244: 0 | K244: 144.5790874 | L244: 173.6231227 | M244: 190.6976478 | N244: 184.5627602 | O244: 145.3896195 | P244: 0
E245: =E$26 -> Real adjustment factor for wages | F245: 0 | G245: % | H245: 0 | I245: 0 | J245: 0 | K245: 1.008871737 | L245: 0.9954600068 | M245: 0.9810824548 | N245: 0.970281077 | O245: 0.970281077 | P245: 0
E246: Profiled adjustment wage related totex - WN - Real | G246: £m | H246: =SUM(J246:P246) -> 825.9332967 | J246: =IF(J243 = 1, J244 * J245, 0) -> 0 | K246: 145.861755 | L246: 172.8348749 | M246: 187.0901165 | N246: 179.0777537 | O246: 141.0687966 | P246: 0
D248: Variance to forecast wage linked totex
E249: =E$246 -> Profiled adjustment wage related totex - WN - Real | F249: 0 | G249: £m | H249: 825.9332967 | I249: 0 | J249: 0 | K249: 145.861755 | L249: 172.8348749 | M249: 187.0901165 | N249: 179.0777537 | O249: 141.0687966 | P249: 0
E250: =E$240 -> Profiled Net totex available for wage adj - WN - Real | F250: 0 | G250: £m | H250: 838.8522377 | I250: 0 | J250: 0 | K250: 144.5790874 | L250: 173.6231227 | M250: 190.6976478 | N250: 184.5627602 | O250: 145.3896195 | P250: 0
E251: Variance to forecast totex for wage adjustment - WN | G251: £m | H251: =SUM(J251:P251) -> -12.91894094 | J251: =J249 - J250 -> 0 | K251: 1.28266759 | L251: -0.7882478037 | M251: -3.60753137 | N251: -5.485006455 | O251: -4.320822905 | P251: 0
D253: Wage totex overfunded/unfunded at PR19
E254: =E$251 -> Variance to forecast totex for wage adjustment - WN | F254: =F$251 -> 0 | G254: £m | H254: -12.91894094 | I254: 0 | J254: 0 | K254: 1.28266759 | L254: -0.7882478037 | M254: -3.60753137 | N254: -5.485006455 | O254: -4.320822905 | P254: 0
E255: =E303 -> Time value of money factor - WN | F255: 0 | G255: Factor | H255: 0 | I255: 0 | J255: 1 | K255: =K303 -> 1.130763073 | L255: 1.096550691 | M255: 1.06337344 | N255: 1.0312 | O255: 1 | P255: 1
E256: Variance to forecast totex for wage adjustment - NPV adjusted - WN | G256: £m | H256: =SUM(J256:P256) -> -13.22707513 | J256: =J254*J255 -> 0 | K256: =K254*K255 -> 1.450393145 | L256: =L254*L255 -> -0.8643536741 | M256: -3.836153043 | N256: -5.656138657 | O256: -4.320822905 | P256: 0
E257: (Under)/Overfunded wage related totex at PR19 - WN | F257: =H256 * -1 -> 13.22707513 | G257: £m
C260: Cost sharing on net totex available for reconciliation
E262: =InpActive!E$83 -> Net totex for cost sharing reconciliation - WN - Nominal | F262: =InpActive!F$83 -> 0 | G262: =InpActive!G$83 -> £m | H262: =InpActive!H$83 -> 0 | I262: =InpActive!I$83 -> 0 | J262: =InpActive!J$83 -> 0 | K262: =InpActive!K$83 -> 356.756 | L262: =InpActive!L$83 -> 388.354 | M262: =InpActive!M$83 -> 507.066 | N262: =InpActive!N$83 -> 722.4918093 | O262: =InpActive!O$83 -> 636.3593965 | P262: =InpActive!P$83 -> 0
E263: =Index!E$43 -> CPI(H): Fin year average - inflate from base year 2017-18 average - CALC | F263: =Index!F$43 -> 0 | G263: =Index!G$43 -> % | H263: =Index!H$43 -> 0 | I263: =Index!I$43 -> 0 | J263: =Index!J$43 -> 1.038621462 | K263: =Index!K$43 -> 1.04693747 | L263: =Index!L$43 -> 1.085399008 | M263: =Index!M$43 -> 1.180633296 | N263: =Index!N$43 -> 1.246121862 | O263: =Index!O$43 -> 1.286182632 | P263: =Index!P$43 -> 1.302174956
E264: Actual net totex for cost sharing reconciliation - WN - Real | G264: £m | J264: =J262 / J263 -> 0 | K264: =K262 / K263 -> 340.7615165 | L264: =L262 / L263 -> 357.7983737 | M264: =M262 / M263 -> 429.4864474 | N264: =N262 / N263 -> 579.7922592 | O264: =O262 / O263 -> 494.7659691 | P264: =P262 / P263 -> 0
... 221 more rows

Sheet Abstraction & Rates
A1: =RIGHT(CELL("filename", $A$1), LEN(CELL("filename", $A$1)) - SEARCH("]", CELL("filename", $A$1)))&" Uncertainty Mechanism" -> Abstraction & Rates Uncertainty Mechanism
E2: =Time!E$22 -> Model Period BEG | J2: =Time!J$22 -> 2019-04-01 | K2: =Time!K$22 -> 2020-04-01 | L2: =Time!L$22 -> 2021-04-01 | M2: =Time!M$22 -> 2022-04-01 | N2: =Time!N$22 -> 2023-04-01 | O2: =Time!O$22 -> 2024-04-01 | P2: =Time!P$22 -> 2025-04-01
E3: =Time!E$23 -> Model Period END | F3: =Check!F$8 -> 0 | G3: Error chks | J3: =Time!J$23 -> 2020-03-31 | K3: =Time!K$23 -> 2021-03-31 | L3: =Time!L$23 -> 2022-03-31 | M3: =Time!M$23 -> 2023-03-31 | N3: =Time!N$23 -> 2024-03-31 | O3: =Time!O$23 -> 2025-03-31 | P3: =Time!P$23 -> 2026-03-31
E4: =Time!E$59 -> Pre Forecast vs Forecast | J4: =Time!J$59 -> Pre Fcst | K4: =Time!K$59 -> Forecast | L4: =Time!L$59 -> Forecast | M4: =Time!M$59 -> Forecast | N4: =Time!N$59 -> Forecast | O4: =Time!O$59 -> Forecast | P4: =Time!P$59 -> Post-Fcst
E5: =Time!E$101 -> Financial Year Ending | J5: =Time!J$101 -> 2020 | K5: =Time!K$101 -> 2021 | L5: =Time!L$101 -> 2022 | M5: =Time!M$101 -> 2023 | N5: =Time!N$101 -> 2024 | O5: =Time!O$101 -> 2025 | P5: =Time!P$101 -> 2026
E6: =Time!E$11 -> Model column counter | F6: Constant | G6: Unit | H6: Total | J6: =Time!J$11 -> 1 | K6: =Time!K$11 -> 2 | L6: =Time!L$11 -> 3 | M6: =Time!M$11 -> 4 | N6: =Time!N$11 -> 5 | O6: =Time!O$11 -> 6 | P6: =Time!P$11 -> 7
A8: WATER RESOURCES
C10: Uncertainty mechanism for business rates
D12: Profile total forecast business rates
E13: =InpActive!E$49 -> Business rates - Forecast - WR - Real | F13: =InpActive!F$49 -> 15.425 | G13: =InpActive!G$49 -> £m
E14: =InpActive!E$38 -> Business Rates forecast profile - WR | F14: =InpActive!F$38 -> 0 | G14: =InpActive!G$38 -> % | H14: =InpActive!H$38 -> 0 | I14: =InpActive!I$38 -> 0 | J14: =InpActive!J$38 -> 0 | K14: =InpActive!K$38 -> 0.2 | L14: =InpActive!L$38 -> 0.2 | M14: =InpActive!M$38 -> 0.2 | N14: =InpActive!N$38 -> 0.2 | O14: =InpActive!O$38 -> 0.2 | P14: =InpActive!P$38 -> 0
E15: Business rates - Forecast Profiled - WR - Real | G15: £m | H15: =SUM(J15:P15) -> 15.425 | J15: =J14 * $F13 -> 0 | K15: 3.085 | L15: 3.085 | M15: 3.085 | N15: 3.085 | O15: 3.085 | P15: 0
E17: =InpActive!E$52 -> Business rates - Actual - WR - Nominal | F17: =InpActive!F$52 -> 0 | G17: =InpActive!G$52 -> £m | H17: =InpActive!H$52 -> 0 | I17: =InpActive!I$52 -> 0 | J17: =InpActive!J$52 -> 0 | K17: =InpActive!K$52 -> 2.545 | L17: =InpActive!L$52 -> 2.886939877 | M17: =InpActive!M$52 -> 2.376 | N17: =InpActive!N$52 -> 2.583500999 | O17: =InpActive!O$52 -> 2.584576393 | P17: =InpActive!P$52 -> 0
E18: =Index!E$43 -> CPI(H): Fin year average - inflate from base year 2017-18 average - CALC | F18: =Index!F$43 -> 0 | G18: =Index!G$43 -> % | H18: =Index!H$43 -> 0 | I18: =Index!I$43 -> 0 | J18: =Index!J$43 -> 1.038621462 | K18: =Index!K$43 -> 1.04693747 | L18: =Index!L$43 -> 1.085399008 | M18: =Index!M$43 -> 1.180633296 | N18: =Index!N$43 -> 1.246121862 | O18: =Index!O$43 -> 1.286182632 | P18: =Index!P$43 -> 1.302174956
E19: Business rates - Outturn - WR - Real | G19: £m | J19: =J17 / J18 -> 0 | K19: =K17 / K18 -> 2.430899717 | L19: =L17 / L18 -> 2.659795941 | M19: 2.012479241 | N19: 2.073233027 | O19: 2.009494086 | P19: 0
D21: Variance to forecast business rates
E22: =E$19 -> Business rates - Outturn - WR - Real | F22: =F$19 -> 0 | G22: £m | H22: 0 | I22: 0 | J22: 0 | K22: 2.430899717 | L22: 2.659795941 | M22: 2.012479241 | N22: 2.073233027 | O22: 2.009494086 | P22: 0
E23: =E$15 -> Business rates - Forecast Profiled - WR - Real | F23: 0 | G23: £m | H23: 15.425 | I23: 0 | J23: 0 | K23: 3.085 | L23: 3.085 | M23: 3.085 | N23: 3.085 | O23: 3.085 | P23: 0
E24: Variance between forecast and outturn business rates - WR - Real | G24: £m | H24: =SUM(J24:P24) -> -4.239097987 | J24: =J22 - J23 -> 0 | K24: -0.6541002826 | L24: -0.4252040592 | M24: -1.072520759 | N24: -1.011766973 | O24: -1.075505914 | P24: 0
D26: Variance to forecast business rates – Time adjusted
E27: =E$24 -> Variance between forecast and outturn business rates - WR - Real | F27: 0 | G27: £m | H27: -4.239097987 | I27: 0 | J27: 0 | K27: -0.6541002826 | L27: -0.4252040592 | M27: -1.072520759 | N27: -1.011766973 | O27: -1.075505914 | P27: 0
E28: ='Cost sharing calculations'!E$137 -> Time value of money factor - WR | F28: ='Cost sharing calculations'!F$137 -> 0 | G28: ='Cost sharing calculations'!G$137 -> Factor | H28: ='Cost sharing calculations'!H$137 -> 0 | I28: ='Cost sharing calculations'!I$137 -> 0 | J28: ='Cost sharing calculations'!J$137 -> 1 | K28: ='Cost sharing calculations'!K$137 -> 1.130763073 | L28: ='Cost sharing calculations'!L$137 -> 1.096550691 | M28: ='Cost sharing calculations'!M$137 -> 1.06337344 | N28: ='Cost sharing calculations'!N$137 -> 1.0312 | O28: ='Cost sharing calculations'!O$137 -> 1 | P28: ='Cost sharing calculations'!P$137 -> 1
E29: Variance on business rates time value adjusted- WR - Real | G29: £m | H29: =SUM(J29:P29) -> -4.465220356 | J29: =J27 * J28 -> 0 | K29: -0.7396324455 | L29: -0.466257805 | M29: -1.140490088 | N29: -1.043334103 | O29: -1.075505914 | P29: 0
E30: Adjustment for business rates - WR - Real | F30: =H$29 -> -4.465220356 | G30: £m
D32: Under / Overperformance business rates
E33: =InpActive!E$280 -> Cost sharing rates Business rates - Overperformance | F33: =InpActive!F$280 -> 0.1 | G33: =InpActive!G$280 -> %
E34: =E$30 -> Adjustment for business rates - WR - Real | F34: =F$30 -> -4.465220356 | G34: =G$30 -> £m
E35: Business Rates Outperformance Adjustment - WR - Real | F35: =IF( F34 < 0, $F$34 * (1 - F33), 0) -> -4.01869832 | G35: £m
E37: =InpActive!E$281 -> Cost sharing rates Business rates - Underperformance | F37: =InpActive!F$281 -> 0.1 | G37: =InpActive!G$281 -> %
E38: =E$30 -> Adjustment for business rates - WR - Real | F38: =F$30 -> -4.465220356 | G38: =G$30 -> £m
E39: Business Rates Underperformance Adjustment - WR - Real | F39: =IF( F38 > 0, $F$38 * (1 - F37), 0) -> 0 | G39: £m
E41: =E$35 -> Business Rates Outperformance Adjustment - WR - Real | F41: =F$35 -> -4.01869832 | G41: =G$35 -> £m
E42: =E$39 -> Business Rates Underperformance Adjustment - WR - Real | F42: =F$39 -> 0 | G42: =G$39 -> £m
E43: Active adjustment for business rates uncertainty mechanism - WR - Real | F43: =IF(F41 <> 0, F41, F42) -> -4.01869832 | G43: £m
C45: Uncertainty mechanism for abstraction charges
D47: Profile total forecast abstraction charges
E48: =InpActive!E$50 -> Abstraction charges - Forecast - WR - Real | F48: =InpActive!F$50 -> 47.359 | G48: =InpActive!G$50 -> £m
E49: =InpActive!E$39 -> Abstraction Charges forecast profile - WR | F49: =InpActive!F$39 -> 0 | G49: =InpActive!G$39 -> % | H49: =InpActive!H$39 -> 0 | I49: =InpActive!I$39 -> 0 | J49: =InpActive!J$39 -> 0 | K49: =InpActive!K$39 -> 0.2 | L49: =InpActive!L$39 -> 0.2 | M49: =InpActive!M$39 -> 0.2 | N49: =InpActive!N$39 -> 0.2 | O49: =InpActive!O$39 -> 0.2 | P49: =InpActive!P$39 -> 0
E50: Abstraction charges - Forecast Profiled - WR - Real | G50: £m | H50: =SUM(J50:P50) -> 47.359 | J50: =J49 * $F48 -> 0 | K50: 9.4718 | L50: 9.4718 | M50: 9.4718 | N50: 9.4718 | O50: 9.4718 | P50: 0
E52: =InpActive!E$53 -> Abstraction charges - Actual - WR - Nominal | F52: =InpActive!F$53 -> 0 | G52: =InpActive!G$53 -> £m | H52: =InpActive!H$53 -> 0 | I52: =InpActive!I$53 -> 0 | J52: =InpActive!J$53 -> 0 | K52: =InpActive!K$53 -> 9.869 | L52: =InpActive!L$53 -> 10.10863124 | M52: =InpActive!M$53 -> 10.096 | N52: =InpActive!N$53 -> 9.145798777 | O52: =InpActive!O$53 -> 9.575 | P52: =InpActive!P$53 -> 0
E53: =Index!E$43 -> CPI(H): Fin year average - inflate from base year 2017-18 average - CALC | F53: =Index!F$43 -> 0 | G53: =Index!G$43 -> % | H53: =Index!H$43 -> 0 | I53: =Index!I$43 -> 0 | J53: =Index!J$43 -> 1.038621462 | K53: =Index!K$43 -> 1.04693747 | L53: =Index!L$43 -> 1.085399008 | M53: =Index!M$43 -> 1.180633296 | N53: =Index!N$43 -> 1.246121862 | O53: =Index!O$43 -> 1.286182632 | P53: =Index!P$43 -> 1.302174956
E54: Abstraction charges - Outturn - WR - Real | G54: £m | J54: =J52 / J53 -> 0 | K54: =K52 / K53 -> 9.426541969 | L54: =L52 / L53 -> 9.313285859 | M54: 8.55134277 | N54: 7.339409619 | O54: 7.444510413 | P54: 0
D56: Variance to forecast abstraction charges
E57: =E$54 -> Abstraction charges - Outturn - WR - Real | F57: =F$54 -> 0 | G57: £m | H57: 0 | I57: 0 | J57: 0 | K57: 9.426541969 | L57: 9.313285859 | M57: 8.55134277 | N57: 7.339409619 | O57: 7.444510413 | P57: 0
E58: =E$50 -> Abstraction charges - Forecast Profiled - WR - Real | F58: =F$50 -> 0 | G58: £m | H58: 47.359 | I58: 0 | J58: 0 | K58: 9.4718 | L58: 9.4718 | M58: 9.4718 | N58: 9.4718 | O58: 9.4718 | P58: 0
E59: Variance between forecast and outturn abstraction charges - WR - Real | G59: £m | H59: =SUM(J59:P59) -> -5.28390937 | J59: =J57 - J58 -> 0 | K59: -0.04525803101 | L59: -0.1585141413 | M59: -0.9204572299 | N59: -2.132390381 | O59: -2.027289587 | P59: 0
D61: Variance to forecast abstraction charges – Time adjusted
E62: =E$59 -> Variance between forecast and outturn abstraction charges - WR - Real | F62: =F$59 -> 0 | G62: £m | H62: -5.28390937 | I62: 0 | J62: 0 | K62: -0.04525803101 | L62: -0.1585141413 | M62: -0.9204572299 | N62: -2.132390381 | O62: -2.027289587 | P62: 0
E63: ='Cost sharing calculations'!E$137 -> Time value of money factor - WR | F63: ='Cost sharing calculations'!F$137 -> 0 | G63: ='Cost sharing calculations'!G$137 -> Factor | H63: ='Cost sharing calculations'!H$137 -> 0 | I63: ='Cost sharing calculations'!I$137 -> 0 | J63: ='Cost sharing calculations'!J$137 -> 1 | K63: ='Cost sharing calculations'!K$137 -> 1.130763073 | L63: ='Cost sharing calculations'!L$137 -> 1.096550691 | M63: ='Cost sharing calculations'!M$137 -> 1.06337344 | N63: ='Cost sharing calculations'!N$137 -> 1.0312 | O63: ='Cost sharing calculations'!O$137 -> 1 | P63: ='Cost sharing calculations'!P$137 -> 1
E64: Variance on abstraction charges time value adjusted- WR - Real | G64: £m | H64: =SUM(J64:P64) -> -5.42999522 | J64: =J62 * J63 -> 0 | K64: -0.05117611022 | L64: -0.1738187912 | M64: -0.978789771 | N64: -2.198920961 | O64: -2.027289587 | P64: 0
E65: Adjustment for abstraction charges - WR - Real | F65: =H$64 -> -5.42999522 | G65: £m
D67: Under / Overperformance abstraction charges
E68: =InpActive!E$282 -> Cost sharing rates Abstraction - Overperformance | F68: =InpActive!F$282 -> 0.25 | G68: =InpActive!G$282 -> %
E69: =E$65 -> Adjustment for abstraction charges - WR - Real | F69: =F$65 -> -5.42999522 | G69: £m
E70: Abstraction charges Outperformance Adjustment - WR - Real | F70: =IF( F69 < 0, F69 * (1 - F68), 0) -> -4.072496415 | G70: £m
E72: =InpActive!E$283 -> Cost sharing rates Abstraction - Underperformance | F72: =InpActive!F$283 -> 0.25 | G72: =InpActive!G$283 -> %
E73: =E$65 -> Adjustment for abstraction charges - WR - Real | F73: =F$65 -> -5.42999522 | G73: £m
E74: Abstraction charges Underperformance Adjustment - WR - Real | F74: =IF( F73 > 0, F73 * (1 - F72), 0) -> 0 | G74: £m
E76: =E$70 -> Abstraction charges Outperformance Adjustment - WR - Real | F76: =F$70 -> -4.072496415 | G76: £m
E77: =E$74 -> Abstraction charges Underperformance Adjustment - WR - Real | F77: =F$74 -> 0 | G77: £m
E78: Active adjustment for abstraction charges uncertainty mechanism - WR - Real | F78: =IF(F76 <> 0, F76, F77) -> -4.072496415 | G78: £m
E80: =E43 -> Active adjustment for business rates uncertainty mechanism - WR - Real | F80: =F43 -> -4.01869832 | G80: £m
E81: =E78 -> Active adjustment for abstraction charges uncertainty mechanism - WR - Real | F81: =F78 -> -4.072496415 | G81: £m
E82: Active adjustment for abstraction charges & business rates uncertainty mechanism - WR - Real | F82: =SUM(F80:F81) -> -8.091194735 | G82: £m
E84: =E82 -> Active adjustment for abstraction charges & business rates uncertainty mechanism - WR - Real | F84: =F82 -> -8.091194735 | G84: £m
E85: =InpActive!E$55 -> Weighted average PAYG rate - WR | F85: =InpActive!F$55 -> 0.7957895305 | G85: =InpActive!G$55 -> %
E86: Revenue adjustment business rates and abstraction - WR - Real | F86: =F84 * $F$85 -> -6.438888059 | G86: £m
E88: =E$82 -> Active adjustment for abstraction charges & business rates uncertainty mechanism - WR - Real | F88: =F$82 -> -8.091194735 | G88: £m
E89: =InpActive!E$55 -> Weighted average PAYG rate - WR | F89: =InpActive!F$55 -> 0.7957895305 | G89: =InpActive!G$55 -> %
E90: RCV adjustment business rates and abstraction - WR - Real | F90: =F88 * (1 - $F$89) -> -1.652306676 | G90: £m
A92: WATER NETWORK
C94: Uncertainty mechanism for business rates
D96: Profile total forecast business rates
E97: =InpActive!E$90 -> Business rates - Forecast - WN - Real | F97: =InpActive!F$90 -> 178.443 | G97: =InpActive!G$90 -> £m
E98: =InpActive!E$79 -> Business Rates forecast profile - WN | F98: =InpActive!F$79 -> 0 | G98: =InpActive!G$79 -> % | H98: =InpActive!H$79 -> 0 | I98: =InpActive!I$79 -> 0 | J98: =InpActive!J$79 -> 0 | K98: =InpActive!K$79 -> 0.2 | L98: =InpActive!L$79 -> 0.2 | M98: =InpActive!M$79 -> 0.2 | N98: =InpActive!N$79 -> 0.2 | O98: =InpActive!O$79 -> 0.2 | P98: =InpActive!P$79 -> 0
E99: Business rates - Forecast Profiled - WN - Real | G99: £m | H99: =SUM(J99:P99) -> 178.443 | J99: =J98 * $F97 -> 0 | K99: 35.6886 | L99: 35.6886 | M99: 35.6886 | N99: 35.6886 | O99: 35.6886 | P99: 0
E101: =InpActive!E$93 -> Business rates - Actual - WN - Nominal | F101: =InpActive!F$93 -> 0 | G101: =InpActive!G$93 -> £m | H101: =InpActive!H$93 -> 0 | I101: =InpActive!I$93 -> 0 | J101: =InpActive!J$93 -> 0 | K101: =InpActive!K$93 -> 37.585 | L101: =InpActive!L$93 -> 37.852372 | M101: =InpActive!M$93 -> 30.828 | N101: =InpActive!N$93 -> 34.08049533 | O101: =InpActive!O$93 -> 37.03639359 | P101: =InpActive!P$93 -> 0
E102: =Index!E$43 -> CPI(H): Fin year average - inflate from base year 2017-18 average - CALC | F102: =Index!F$43 -> 0 | G102: =Index!G$43 -> % | H102: =Index!H$43 -> 0 | I102: =Index!I$43 -> 0 | J102: =Index!J$43 -> 1.038621462 | K102: =Index!K$43 -> 1.04693747 | L102: =Index!L$43 -> 1.085399008 | M102: =Index!M$43 -> 1.180633296 | N102: =Index!N$43 -> 1.246121862 | O102: =Index!O$43 -> 1.286182632 | P102: =Index!P$43 -> 1.302174956
E103: Business rates - Outturn - WN - Real | G103: £m | J103: =J101 / J102 -> 0 | K103: =K101 / K102 -> 35.8999473 | L103: =L101 / L102 -> 34.87415384 | M103: =M101 / M102 -> 26.11140996 | N103: =N101 / N102 -> 27.3492476 | O103: =O101 / O102 -> 28.79559455 | P103: =P101 / P102 -> 0
D105: Variance to forecast business rates
E106: =E$103 -> Business rates - Outturn - WN - Real | F106: =F$103 -> 0 | G106: £m | H106: 0 | I106: 0 | J106: 0 | K106: 35.8999473 | L106: 34.87415384 | M106: 26.11140996 | N106: 27.3492476 | O106: 28.79559455 | P106: 0
E107: =E$99 -> Business rates - Forecast Profiled - WN - Real | F107: 0 | G107: £m | H107: 178.443 | I107: 0 | J107: 0 | K107: 35.6886 | L107: 35.6886 | M107: 35.6886 | N107: 35.6886 | O107: 35.6886 | P107: 0
E108: Variance between forecast and outturn business rates - WN - Real | G108: £m | H108: =SUM(J108:P108) -> -25.41264676 | J108: =J106 - J107 -> 0 | K108: 0.2113473001 | L108: -0.8144461603 | M108: -9.577190044 | N108: -8.339352402 | O108: -6.893005455 | P108: 0
D110: Variance to forecast business rates – Time adjusted
E111: =E$108 -> Variance between forecast and outturn business rates - WN - Real | F111: 0 | G111: £m | H111: -25.41264676 | I111: 0 | J111: 0 | K111: 0.2113473001 | L111: -0.8144461603 | M111: -9.577190044 | N111: -8.339352402 | O111: -6.893005455 | P111: 0
E112: ='Cost sharing calculations'!E$303 -> Time value of money factor - WN | F112: ='Cost sharing calculations'!F$303 -> 0 | G112: ='Cost sharing calculations'!G$303 -> Factor | H112: ='Cost sharing calculations'!H$303 -> 0 | I112: ='Cost sharing calculations'!I$303 -> 0 | J112: ='Cost sharing calculations'!J$303 -> 1 | K112: ='Cost sharing calculations'!K$303 -> 1.130763073 | L112: ='Cost sharing calculations'!L$303 -> 1.096550691 | M112: ='Cost sharing calculations'!M$303 -> 1.06337344 | N112: ='Cost sharing calculations'!N$303 -> 1.0312 | O112: ='Cost sharing calculations'!O$303 -> 1 | P112: ='Cost sharing calculations'!P$303 -> 1
E113: Variance on business rates time value adjusted- WN - Real | G113: £m | H113: =SUM(J113:P113) -> -26.33077295 | J113: =J111 * J112 -> 0 | K113: 0.2389837225 | L113: -0.8930815001 | M113: -10.18412952 | N113: -8.599540197 | O113: -6.893005455 | P113: 0
E114: Adjustment for business rates for cost sharing - WN - Real | F114: =H$113 -> -26.33077295 | G114: £m
D116: Under / Overperformance business rates
E117: =InpActive!E$280 -> Cost sharing rates Business rates - Overperformance | F117: =InpActive!F$280 -> 0.1 | G117: =InpActive!G$280 -> %
E118: =E$114 -> Adjustment for business rates for cost sharing - WN - Real | F118: =F$114 -> -26.33077295 | G118: =G$114 -> £m
E119: Business Rates Outperformance Adjustment - WN - Real | F119: =IF( F118 < 0, $F$118 * (1 - F117), 0) -> -23.69769566 | G119: £m
E121: =InpActive!E$281 -> Cost sharing rates Business rates - Underperformance | F121: =InpActive!F$281 -> 0.1 | G121: =InpActive!G$281 -> %
E122: =E$114 -> Adjustment for business rates for cost sharing - WN - Real | F122: =F$114 -> -26.33077295 | G122: =G$114 -> £m
E123: Business Rates Underperformance Adjustment - WN - Real | F123: =IF( F122 > 0, $F$122 * (1 -F121), 0) -> 0 | G123: £m
E125: =E$119 -> Business Rates Outperformance Adjustment - WN - Real | F125: =F$119 -> -23.69769566 | G125: =G$119 -> £m
E126: =E$123 -> Business Rates Underperformance Adjustment - WN - Real | F126: =F$123 -> 0 | G126: =G$123 -> £m
E127: Active adjustment for business rates uncertainty mechanism - WN - Real | F127: =IF(F125 <> 0, F125, F126) -> -23.69769566 | G127: £m
C129: Uncertainty mechanism for Abstraction charges
D131: Profile total forecast and abstraction charges
E132: =InpActive!E$91 -> Abstraction charges - Forecast - WN - Real | F132: =InpActive!F$91 -> 2.336 | G132: =InpActive!G$91 -> £m
E133: =InpActive!E$80 -> Abstraction Charges forecast profile - WN | F133: =InpActive!F$80 -> 0 | G133: =InpActive!G$80 -> % | H133: =InpActive!H$80 -> 0 | I133: =InpActive!I$80 -> 0 | J133: =InpActive!J$80 -> 0 | K133: =InpActive!K$80 -> 0.2 | L133: =InpActive!L$80 -> 0.2 | M133: =InpActive!M$80 -> 0.2 | N133: =InpActive!N$80 -> 0.2 | O133: =InpActive!O$80 -> 0.2 | P133: =InpActive!P$80 -> 0
E134: Abstraction charges - Forecast Profiled - WN - Real | G134: £m | H134: =SUM(J134:P134) -> 2.336 | J134: =J133 * $F132 -> 0 | K134: 0.4672 | L134: 0.4672 | M134: 0.4672 | N134: 0.4672 | O134: 0.4672 | P134: 0
E136: =InpActive!E94 -> Abstraction charges - Actual - WN - Nominal | F136: =InpActive!F94 -> 0 | G136: =InpActive!G94 -> £m | H136: =InpActive!H94 -> 0 | I136: =InpActive!I94 -> 0 | J136: =InpActive!J94 -> 0 | K136: =InpActive!K94 -> 0.507 | L136: =InpActive!L94 -> 0.488752 | M136: =InpActive!M94 -> 0.483 | N136: =InpActive!N94 -> 0.4830143085 | O136: =InpActive!O94 -> 0.825 | P136: =InpActive!P94 -> 0
E137: =Index!E$43 -> CPI(H): Fin year average - inflate from base year 2017-18 average - CALC | F137: =Index!F$43 -> 0 | G137: =Index!G$43 -> % | H137: =Index!H$43 -> 0 | I137: =Index!I$43 -> 0 | J137: =Index!J$43 -> 1.038621462 | K137: =Index!K$43 -> 1.04693747 | L137: =Index!L$43 -> 1.085399008 | M137: =Index!M$43 -> 1.180633296 | N137: =Index!N$43 -> 1.246121862 | O137: =Index!O$43 -> 1.286182632 | P137: =Index!P$43 -> 1.302174956
E138: Abstraction charges - Outturn - WN - Real | G138: £m | J138: =J136 / J137 -> 0 | K138: =K136 / K137 -> 0.4842696097 | L138: =L136 / L137 -> 0.4502970762 | M138: 0.4091024721 | N138: 0.3876140235 | O138: 0.6414330121 | P138: 0
D140: Variance to forecast abstraction charges
E141: =E$138 -> Abstraction charges - Outturn - WN - Real | F141: =F$138 -> 0 | G141: £m | H141: 0 | I141: 0 | J141: 0 | K141: 0.4842696097 | L141: 0.4502970762 | M141: 0.4091024721 | N141: 0.3876140235 | O141: 0.6414330121 | P141: 0
E142: =E$134 -> Abstraction charges - Forecast Profiled - WN - Real | F142: =F$134 -> 0 | G142: £m | H142: 2.336 | I142: 0 | J142: 0 | K142: 0.4672 | L142: 0.4672 | M142: 0.4672 | N142: 0.4672 | O142: 0.4672 | P142: 0
E143: Variance between forecast and outturn abstraction charges - WR - Real | G143: £m | H143: =SUM(J143:P143) -> 0.0367161936 | J143: =J141 - J142 -> 0 | K143: 0.01706960972 | L143: -0.01690292382 | M143: -0.05809752794 | N143: -0.07958597648 | O143: 0.1742330121 | P143: 0
D145: Variance to forecast abstraction charges – Time adjusted
E146: =E$143 -> Variance between forecast and outturn abstraction charges - WR - Real | F146: =F$143 -> 0 | G146: £m | H146: 0.0367161936 | I146: 0 | J146: 0 | K146: 0.01706960972 | L146: -0.01690292382 | M146: -0.05809752794 | N146: -0.07958597648 | O146: 0.1742330121 | P146: 0
E147: ='Cost sharing calculations'!E$303 -> Time value of money factor - WN | F147: ='Cost sharing calculations'!F$303 -> 0 | G147: ='Cost sharing calculations'!G$303 -> Factor | H147: ='Cost sharing calculations'!H$303 -> 0 | I147: ='Cost sharing calculations'!I$303 -> 0 | J147: ='Cost sharing calculations'!J$303 -> 1 | K147: ='Cost sharing calculations'!K$303 -> 1.130763073 | L147: ='Cost sharing calculations'!L$303 -> 1.096550691 | M147: ='Cost sharing calculations'!M$303 -> 1.06337344 | N147: ='Cost sharing calculations'!N$303 -> 1.0312 | O147: ='Cost sharing calculations'!O$303 -> 1 | P147: ='Cost sharing calculations'!P$303 -> 1
E148: Variance on abstraction charges time value adjusted- WN - Real | G148: £m | H148: =SUM(J148:P148) -> 0.03115135657 | J148: =J146 * J147 -> 0 | K148: 0.01930168433 | L148: -0.01853491281 | M148: -0.06177936814 | N148: -0.08206905895 | O148: 0.1742330121 | P148: 0
E149: Adjustment for abstraction charges - WN - Real | F149: =H$148 -> 0.03115135657 | G149: £m
D151: Under / Overperformance abstraction charges
E152: =InpActive!E$282 -> Cost sharing rates Abstraction - Overperformance | F152: =InpActive!F$282 -> 0.25 | G152: =InpActive!G$282 -> %
E153: =E$149 -> Adjustment for abstraction charges - WN - Real | F153: =F$149 -> 0.03115135657 | G153: £m
E154: Abstraction charges Outperformance Adjustment - WN - Real | F154: =IF( F153 < 0, $F$153 * (1 - F152), 0) -> 0 | G154: £m
E156: =InpActive!E$283 -> Cost sharing rates Abstraction - Underperformance | F156: =InpActive!F$283 -> 0.25 | G156: =InpActive!G$283 -> %
E157: =E$149 -> Adjustment for abstraction charges - WN - Real | F157: =F$149 -> 0.03115135657 | G157: £m
E158: Abstraction charges Underperformance Adjustment - WN - Real | F158: =IF( F157 > 0, $F$157 * (1 - F156), 0) -> 0.02336351743 | G158: £m
E160: =E$154 -> Abstraction charges Outperformance Adjustment - WN - Real | F160: =F$154 -> 0 | G160: £m
E161: =E$158 -> Abstraction charges Underperformance Adjustment - WN - Real | F161: =F$158 -> 0.02336351743 | G161: £m
E162: Active adjustment for abstraction charges uncertainty mechanism - WN - Real | F162: =IF(F160 <> 0, F160, F161) -> 0.02336351743 | G162: £m
E164: =E127 -> Active adjustment for business rates uncertainty mechanism - WN - Real | F164: =F127 -> -23.69769566 | G164: £m
E165: =E162 -> Active adjustment for abstraction charges uncertainty mechanism - WN - Real | F165: =F162 -> 0.02336351743 | G165: £m
E166: Active adjustment for abstraction charges & business rates uncertainty mechanism - WR - Real | F166: =SUM(F164:F165) -> -23.67433214 | G166: £m
E168: =E$166 -> Active adjustment for abstraction charges & business rates uncertainty mechanism - WR - Real | F168: =F$166 -> -23.67433214 | G168: £m
E169: =InpActive!E$96 -> Weighted average PAYG rate - WN | F169: =InpActive!F$96 -> 0.5193503583 | G169: =InpActive!G$96 -> %
E170: Revenue adjustment business rates and abstraction - WN - Real | F170: =F168 * $F$169 -> -12.29527288 | G170: £m
E172: =E$166 -> Active adjustment for abstraction charges & business rates uncertainty mechanism - WR - Real | F172: =F$166 -> -23.67433214 | G172: £m
E173: =InpActive!E$96 -> Weighted average PAYG rate - WN | F173: =InpActive!F$96 -> 0.5193503583 | G173: =InpActive!G$96 -> %
E174: RCV adjustment business rates and abstraction - WN - Real | F174: =F172 * (1 - $F$173) -> -11.37905926 | G174: £m
A176: WASTEWATER NETWORK
C178: Uncertainty mechanism for business rates
D180: Profile total forecast business rates
E181: =InpActive!E$131 -> Business rates - Forecast - WWN - Real | F181: =InpActive!F$131 -> 103.032 | G181: =InpActive!G$131 -> £m
E182: =InpActive!E$121 -> Business Rates forecast profile - WWN | F182: =InpActive!F$121 -> 0 | G182: =InpActive!G$121 -> % | H182: =InpActive!H$121 -> 0 | I182: =InpActive!I$121 -> 0 | J182: =InpActive!J$121 -> 0 | K182: =InpActive!K$121 -> 0.2 | L182: =InpActive!L$121 -> 0.2 | M182: =InpActive!M$121 -> 0.2 | N182: =InpActive!N$121 -> 0.2 | O182: =InpActive!O$121 -> 0.2 | P182: =InpActive!P$121 -> 0
E183: Business rates - Forecast Profiled - WWN - Real | G183: £m | H183: =SUM(J183:P183) -> 103.032 | J183: =J182 * $F181 -> 0 | K183: 20.6064 | L183: 20.6064 | M183: 20.6064 | N183: 20.6064 | O183: 20.6064 | P183: 0
E185: =InpActive!E$133 -> Business rates - Actual - WWN - Nominal | F185: =InpActive!F$133 -> 0 | G185: =InpActive!G$133 -> £m | H185: =InpActive!H$133 -> 0 | I185: =InpActive!I$133 -> 0 | J185: =InpActive!J$133 -> 0 | K185: =InpActive!K$133 -> 21.362 | L185: =InpActive!L$133 -> 19.9665633 | M185: =InpActive!M$133 -> 20.754 | N185: =InpActive!N$133 -> 25.16363117 | O185: =InpActive!O$133 -> 29.25960518 | P185: =InpActive!P$133 -> 0
E186: =Index!E$43 -> CPI(H): Fin year average - inflate from base year 2017-18 average - CALC | F186: =Index!F$43 -> 0 | G186: =Index!G$43 -> % | H186: =Index!H$43 -> 0 | I186: =Index!I$43 -> 0 | J186: =Index!J$43 -> 1.038621462 | K186: =Index!K$43 -> 1.04693747 | L186: =Index!L$43 -> 1.085399008 | M186: =Index!M$43 -> 1.180633296 | N186: =Index!N$43 -> 1.246121862 | O186: =Index!O$43 -> 1.286182632 | P186: =Index!P$43 -> 1.302174956
E187: Business rates - Outturn - WWN - Real | G187: £m | J187: =J185 / J186 -> 0 | K187: =K185 / K186 -> 20.40427496 | L187: =L185 / L186 -> 18.39559751 | M187: =M185 / M186 -> 17.57870125 | N187: =N185 / N186 -> 20.19355566 | O187: =O185 / O186 -> 22.74918386 | P187: =P185 / P186 -> 0
D189: Variance to forecast business rates
E190: =E$187 -> Business rates - Outturn - WWN - Real | F190: =F$187 -> 0 | G190: £m | H190: 0 | I190: 0 | J190: 0 | K190: 20.40427496 | L190: 18.39559751 | M190: 17.57870125 | N190: 20.19355566 | O190: 22.74918386 | P190: 0
E191: =E$183 -> Business rates - Forecast Profiled - WWN - Real | F191: =F$183 -> 0 | G191: £m | H191: 103.032 | I191: 0 | J191: 0 | K191: 20.6064 | L191: 20.6064 | M191: 20.6064 | N191: 20.6064 | O191: 20.6064 | P191: 0
E192: Variance between forecast and outturn business rates - WWN - Real | G192: £m | H192: =SUM(J192:P192) -> -3.710686759 | J192: =J190 - J191 -> 0 | K192: -0.2021250439 | L192: -2.210802488 | M192: -3.027698747 | N192: -0.4128443389 | O192: 2.142783858 | P192: 0
D194: Variance to forecast business rates - Time adjusted
E195: =E$192 -> Variance between forecast and outturn business rates - WWN - Real | F195: 0 | G195: £m | H195: -3.710686759 | I195: 0 | J195: 0 | K195: -0.2021250439 | L195: -2.210802488 | M195: -3.027698747 | N195: -0.4128443389 | O195: 2.142783858 | P195: 0
E196: ='Cost sharing calculations'!E$471 -> Time value of money factor - WWN | F196: ='Cost sharing calculations'!F$471 -> 0 | G196: ='Cost sharing calculations'!G$471 -> Factor | H196: ='Cost sharing calculations'!H$471 -> 0 | I196: ='Cost sharing calculations'!I$471 -> 0 | J196: ='Cost sharing calculations'!J$471 -> 1 | K196: ='Cost sharing calculations'!K$471 -> 1.130763073 | L196: ='Cost sharing calculations'!L$471 -> 1.096550691 | M196: ='Cost sharing calculations'!M$471 -> 1.06337344 | N196: ='Cost sharing calculations'!N$471 -> 1.0312 | O196: ='Cost sharing calculations'!O$471 -> 1 | P196: ='Cost sharing calculations'!P$471 -> 1
E197: Variance on business rates time value adjusted- WWN - Real | G197: £m | H197: =SUM(J197:P197) -> -4.155328188 | J197: =J195 * J196 -> 0 | K197: -0.2285555358 | L197: -2.424256996 | M197: -3.219574432 | N197: -0.4257250823 | O197: 2.142783858 | P197: 0
E198: Adjustment for business rates for cost sharing - WWN - Real | F198: =H$197 -> -4.155328188 | G198: £m
D200: Under / Overperformance business rates
E201: =InpActive!E$280 -> Cost sharing rates Business rates - Overperformance | F201: =InpActive!F$280 -> 0.1 | G201: =InpActive!G$280 -> %
E202: =E$198 -> Adjustment for business rates for cost sharing - WWN - Real | F202: =F$198 -> -4.155328188 | G202: =G$198 -> £m
E203: Business Rates Outperformance Adjustment - WWN - Real | F203: =IF( F202 < 0, $F$202 * (1 - F201), 0) -> -3.739795369 | G203: £m
E205: =InpActive!E$281 -> Cost sharing rates Business rates - Underperformance | F205: =InpActive!F$281 -> 0.1 | G205: =InpActive!G$281 -> %
E206: =E$198 -> Adjustment for business rates for cost sharing - WWN - Real | F206: =F$198 -> -4.155328188 | G206: =G$198 -> £m
E207: Business Rates Underperformance Adjustment - WWN - Real | F207: =IF( F206 > 0, $F$206 * (1 - F205), 0) -> 0 | G207: £m
E209: =E$203 -> Business Rates Outperformance Adjustment - WWN - Real | F209: =F$203 -> -3.739795369 | G209: =G$203 -> £m
E210: =E$207 -> Business Rates Underperformance Adjustment - WWN - Real | F210: =F$207 -> 0 | G210: =G$207 -> £m
E211: Active adjustment for business rates uncertainty mechanism - WWN - Real | F211: =IF(F209 <> 0, F209, F210) -> -3.739795369 | G211: £m
E213: =E$211 -> Active adjustment for business rates uncertainty mechanism - WWN - Real | F213: =F$211 -> -3.739795369 | G213: £m
E214: =InpActive!E$135 -> Weighted average PAYG rate - WWN | F214: =InpActive!F$135 -> 0.4186012921 | G214: =InpActive!G$135 -> %
E215: Revenue adjustment business rates - WWN - Real | F215: =F213 * $F$214 -> -1.565483174 | G215: £m
E217: =E$211 -> Active adjustment for business rates uncertainty mechanism - WWN - Real | F217: =F$211 -> -3.739795369 | G217: £m
E218: =InpActive!E$135 -> Weighted average PAYG rate - WWN | F218: =InpActive!F$135 -> 0.4186012921 | G218: =InpActive!G$135 -> %
E219: RCV adjustment business rates - WWN - Real | F219: =F217 * (1 - $F$218) -> -2.174312196 | G219: £m
A221: BIORESOURCES
C223: Uncertainty mechanism for business rates
D225: Profile total forecast business rates
E226: =InpActive!E$156 -> Business rates - Forecast - BIO - Real | F226: =InpActive!F$156 -> 14.438 | G226: =InpActive!G$156 -> £m
E227: =InpActive!E$160 -> Business Rates forecast profile - BIO | F227: =InpActive!F$160 -> 0 | G227: =InpActive!G$160 -> % | H227: =InpActive!H$160 -> 0 | I227: =InpActive!I$160 -> 0 | J227: =InpActive!J$160 -> 0 | K227: =InpActive!K$160 -> 0.2 | L227: =InpActive!L$160 -> 0.2 | M227: =InpActive!M$160 -> 0.2 | N227: =InpActive!N$160 -> 0.2 | O227: =InpActive!O$160 -> 0.2 | P227: =InpActive!P$160 -> 0
E228: Business rates - Forecast Profiled - BIO - Real | G228: £m | H228: =SUM(J228:P228) -> 14.438 | J228: =J227 * $F226 -> 0 | K228: 2.8876 | L228: 2.8876 | M228: 2.8876 | N228: 2.8876 | O228: 2.8876 | P228: 0
E230: =InpActive!E$158 -> Business rates - Actual - BIO - Nominal | F230: =InpActive!F$158 -> 0 | G230: =InpActive!G$158 -> £m | H230: =InpActive!H$158 -> 0 | I230: =InpActive!I$158 -> 0 | J230: =InpActive!J$158 -> 0 | K230: =InpActive!K$158 -> 3.287 | L230: =InpActive!L$158 -> 3.12346506 | M230: =InpActive!M$158 -> 3.212 | N230: =InpActive!N$158 -> 3.870741486 | O230: =InpActive!O$158 -> 4.668930049 | P230: =InpActive!P$158 -> 0
E231: =Index!E$43 -> CPI(H): Fin year average - inflate from base year 2017-18 average - CALC | F231: =Index!F$43 -> 0 | G231: =Index!G$43 -> % | H231: =Index!H$43 -> 0 | I231: =Index!I$43 -> 0 | J231: =Index!J$43 -> 1.038621462 | K231: =Index!K$43 -> 1.04693747 | L231: =Index!L$43 -> 1.085399008 | M231: =Index!M$43 -> 1.180633296 | N231: =Index!N$43 -> 1.246121862 | O231: =Index!O$43 -> 1.286182632 | P231: =Index!P$43 -> 1.302174956
E232: Business rates - Outturn - BIO - Real | G232: £m | J232: =J230 / J231 -> 0 | K232: =K230 / K231 -> 3.139633545 | L232: =L230 / L231 -> 2.877711363 | M232: =M230 / M231 -> 2.720573789 | N232: =N230 / N231 -> 3.106230302 | O232: =O230 / O231 -> 3.630067715 | P232: =P230 / P231 -> 0
D234: Variance to forecast business rates
E235: =E$232 -> Business rates - Outturn - BIO - Real | F235: =F$232 -> 0 | G235: £m | H235: 0 | I235: 0 | J235: 0 | K235: 3.139633545 | L235: 2.877711363 | M235: 2.720573789 | N235: 3.106230302 | O235: 3.630067715 | P235: 0
E236: =E$228 -> Business rates - Forecast Profiled - BIO - Real | F236: =F$228 -> 0 | G236: £m | H236: 14.438 | I236: 0 | J236: 0 | K236: 2.8876 | L236: 2.8876 | M236: 2.8876 | N236: 2.8876 | O236: 2.8876 | P236: 0
E237: Variance between forecast and outturn business rates - BIO - Real | G237: £m | H237: =SUM(J237:P237) -> 1.036216714 | J237: =J235 - J236 -> 0 | K237: 0.2520335446 | L237: -0.009888637074 | M237: -0.1670262106 | N237: 0.218630302 | O237: 0.7424677145 | P237: 0
D239: Variance to forecast business rates - Time adjusted
E240: =E$237 -> Variance between forecast and outturn business rates - BIO - Real | F240: 0 | G240: £m | H240: 1.036216714 | I240: 0 | J240: 0 | K240: 0.2520335446 | L240: -0.009888637074 | M240: -0.1670262106 | N240: 0.218630302 | O240: 0.7424677145 | P240: 0
E241: =Bioresources!E$49 -> Time value of money factor - BIO | F241: =Bioresources!F$49 -> 0 | G241: =Bioresources!G$49 -> Factor | H241: =Bioresources!H$49 -> 0 | I241: =Bioresources!I$49 -> 0 | J241: =Bioresources!J$49 -> 1 | K241: =Bioresources!K$49 -> 1.130763073 | L241: =Bioresources!L$49 -> 1.096550691 | M241: =Bioresources!M$49 -> 1.06337344 | N241: =Bioresources!N$49 -> 1.0312 | O241: =Bioresources!O$49 -> 1 | P241: =Bioresources!P$49 -> 1
E242: Variance on business rates time value adjusted- BIO - Real | G242: £m | H242: =SUM(J242:P242) -> 1.064454879 | J242: =J240 * J241 -> 0 | K242: 0.2849902254 | L242: -0.01084339182 | M242: -0.1776112362 | N242: 0.2254515675 | O242: 0.7424677145 | P242: 0
E243: Adjustment for business rates for cost sharing - BIO - Real | F243: =H$242 -> 1.064454879 | G243: £m
D245: Under / Overperformance business rates
E246: =InpActive!E$280 -> Cost sharing rates Business rates - Overperformance | F246: =InpActive!F$280 -> 0.1 | G246: =InpActive!G$280 -> %
E247: =E$243 -> Adjustment for business rates for cost sharing - BIO - Real | F247: =F$243 -> 1.064454879 | G247: =G$243 -> £m
E248: Business Rates Outperformance Adjustment - BIO - Real | F248: =IF( F247 < 0, $F$247 * (1 - F246), 0) -> 0 | G248: £m
E250: =InpActive!E$281 -> Cost sharing rates Business rates - Underperformance | F250: =InpActive!F$281 -> 0.1 | G250: =InpActive!G$281 -> %
E251: =E$243 -> Adjustment for business rates for cost sharing - BIO - Real | F251: =F$243 -> 1.064454879 | G251: =G$243 -> £m
E252: Business Rates Underperformance Adjustment - BIO - Real | F252: =IF( F251 > 0, $F$251 * (1 - F250), 0) -> 0.9580093915 | G252: £m
E254: =E$248 -> Business Rates Outperformance Adjustment - BIO - Real | F254: =F$248 -> 0 | G254: £m
E255: =E$252 -> Business Rates Underperformance Adjustment - BIO - Real | F255: =F$252 -> 0.9580093915 | G255: £m
E256: Active adjustment for business rates uncertainty mechanism - BIO - Real | F256: =IF(F254 <> 0, F254, F255) -> 0.9580093915 | G256: £m
E258: =E$256 -> Active adjustment for business rates uncertainty mechanism - BIO - Real | F258: =F$256 -> 0.9580093915 | G258: £m
E259: =InpActive!E$162 -> Weighted average PAYG rate - BIO | F259: =InpActive!F$162 -> 0.8280942436 | G259: =InpActive!G$162 -> %
E260: Revenue adjustment business rates - BIO - Real | F260: =F258 * $F$259 -> 0.7933220624 | G260: £m
E262: =E$256 -> Active adjustment for business rates uncertainty mechanism - BIO - Real | F262: =F$256 -> 0.9580093915 | G262: =G$256 -> £m
... 3 more rows

Sheet Bioresources
A1: =RIGHT(CELL("filename", $A$1), LEN(CELL("filename", $A$1)) - SEARCH("]", CELL("filename", $A$1))) -> Bioresources
E2: =Time!E$22 -> Model Period BEG | J2: =Time!J$22 -> 2019-04-01 | K2: =Time!K$22 -> 2020-04-01 | L2: =Time!L$22 -> 2021-04-01 | M2: =Time!M$22 -> 2022-04-01 | N2: =Time!N$22 -> 2023-04-01 | O2: =Time!O$22 -> 2024-04-01 | P2: =Time!P$22 -> 2025-04-01
E3: =Time!E$23 -> Model Period END | F3: =Check!F$8 -> 0 | G3: Error chks | J3: =Time!J$23 -> 2020-03-31 | K3: =Time!K$23 -> 2021-03-31 | L3: =Time!L$23 -> 2022-03-31 | M3: =Time!M$23 -> 2023-03-31 | N3: =Time!N$23 -> 2024-03-31 | O3: =Time!O$23 -> 2025-03-31 | P3: =Time!P$23 -> 2026-03-31
E4: =Time!E$59 -> Pre Forecast vs Forecast | J4: =Time!J$59 -> Pre Fcst | K4: =Time!K$59 -> Forecast | L4: =Time!L$59 -> Forecast | M4: =Time!M$59 -> Forecast | N4: =Time!N$59 -> Forecast | O4: =Time!O$59 -> Forecast | P4: =Time!P$59 -> Post-Fcst
E5: =Time!E$101 -> Financial Year Ending | J5: =Time!J$101 -> 2020 | K5: =Time!K$101 -> 2021 | L5: =Time!L$101 -> 2022 | M5: =Time!M$101 -> 2023 | N5: =Time!N$101 -> 2024 | O5: =Time!O$101 -> 2025 | P5: =Time!P$101 -> 2026
E6: =Time!E$11 -> Model column counter | F6: Constant | G6: Unit | H6: Total | J6: =Time!J$11 -> 1 | K6: =Time!K$11 -> 2 | L6: =Time!L$11 -> 3 | M6: =Time!M$11 -> 4 | N6: =Time!N$11 -> 5 | O6: =Time!O$11 -> 6 | P6: =Time!P$11 -> 7
A8: BIORESOURCES
C10: Adjustment For Wage Growth
D12: Totex for wage adjustment
E13: =InpActive!E$150 -> Base Costs - BIO - Real | F13: =InpActive!F$150 -> 401.5207689 | G13: =InpActive!G$150 -> £m
E14: =InpActive!E$151 -> WINEP / NEP ~ In-the-Round - BIO - Real | F14: =InpActive!F$151 -> 0 | G14: =InpActive!G$151 -> £m
E15: Totex available for wage indexation adjustment - BIO - Real | F15: =SUM(F13:F14) -> 401.5207689 | G15: £m
D17: Profile for totex for wage adjustment
E18: =InpActive!E$153 -> Opex Split Profile - Base costs - BIO | F18: =InpActive!F$153 -> 0 | G18: =InpActive!G$153 -> % | H18: =InpActive!H$153 -> 0 | I18: =InpActive!I$153 -> 0 | J18: =InpActive!J$153 -> 0 | K18: =InpActive!K$153 -> 0.16880934 | L18: =InpActive!L$153 -> 0.1656825676 | M18: =InpActive!M$153 -> 0.1646276979 | N18: =InpActive!N$153 -> 0.1644129629 | O18: =InpActive!O$153 -> 0.1639269757 | P18: =InpActive!P$153 -> 0
E19: =InpActive!E$154 -> Capex Split Profile - Base costs - BIO | F19: =InpActive!F$154 -> 0 | G19: =InpActive!G$154 -> % | H19: =InpActive!H$154 -> 0 | I19: =InpActive!I$154 -> 0 | J19: =InpActive!J$154 -> 0 | K19: =InpActive!K$154 -> 0.03360336214 | L19: =InpActive!L$154 -> 0.04870667258 | M19: =InpActive!M$154 -> 0.03756902302 | N19: =InpActive!N$154 -> 0.02504430911 | O19: =InpActive!O$154 -> 0.02761708911 | P19: =InpActive!P$154 -> 0
E20: Totex profile - BIO | G20: % | H20: =SUM(J20:P20) -> 1 | J20: =SUM(J18:J19) -> 0 | K20: 0.2024127022 | L20: 0.2143892401 | M20: 0.2021967209 | N20: 0.189457272 | O20: 0.1915440648 | P20: 0
E21: Totex profile - 5 year percentage - BIO | F21: =H$20 -> 1 | G21: %
E23: =E$21 -> Totex profile - 5 year percentage - BIO | F23: =F$21 -> 1 | G23: =G$21 -> %
E24: WWN Totex profile 100% check | F24: =IF(OR($F$23 = 1, F23 = 0), 0, 1) -> 0 | G24: Check
E26: =E$15 -> Totex available for wage indexation adjustment - BIO - Real | F26: =F$15 -> 401.5207689 | G26: =G$15 -> £m
E27: =Time!E$54 -> Forecast Period Flag | F27: =Time!F$54 -> 0 | G27: =Time!G$54 -> flag | H27: =Time!H$54 -> 5 | I27: =Time!I$54 -> 0 | J27: =Time!J$54 -> 0 | K27: =Time!K$54 -> 1 | L27: =Time!L$54 -> 1 | M27: =Time!M$54 -> 1 | N27: =Time!N$54 -> 1 | O27: =Time!O$54 -> 1 | P27: =Time!P$54 -> 0
E28: =E$20 -> Totex profile - BIO | F28: 0 | G28: % | H28: 1 | I28: 0 | J28: 0 | K28: 0.2024127022 | L28: 0.2143892401 | M28: 0.2021967209 | N28: 0.189457272 | O28: 0.1915440648 | P28: 0
E29: Profiled Totex available for wage indexation adjustment - BIO - Real | G29: £m | H29: =SUM(J29:P29) -> 401.5207689 | J29: =IF(J27 = 1, J28 * $F26, 0) -> 0 | K29: 81.27290381 | L29: 86.08173255 | M29: 81.18618283 | N29: 76.07102952 | O29: 76.90892019 | P29: 0
D31: Totex applicable for wage adjustment by year
E32: =InpActive!E$259 -> Percentage totex linked to wage growth - BIO | F32: =InpActive!F$259 -> 0.386 | G32: =InpActive!G$259 -> %
E33: =E29 -> Profiled Totex available for wage indexation adjustment - BIO - Real | F33: 0 | G33: £m | H33: 401.5207689 | I33: 0 | J33: 0 | K33: 81.27290381 | L33: 86.08173255 | M33: 81.18618283 | N33: 76.07102952 | O33: 76.90892019 | P33: 0
E34: Profiled Net totex available for wage adj - BIO - Real | G34: £m | H34: =SUM(J34:P34) -> 154.9870168 | J34: =J33 * $F32 -> 0 | K34: 31.37134087 | L34: 33.22754876 | M34: 31.33786657 | N34: 29.3634174 | O34: 29.68684319 | P34: 0
D36: Adjustment factor for wage linked totex
E37: =Time!E$54 -> Forecast Period Flag | F37: =Time!F$54 -> 0 | G37: =Time!G$54 -> flag | H37: =Time!H$54 -> 5 | I37: =Time!I$54 -> 0 | J37: =Time!J$54 -> 0 | K37: =Time!K$54 -> 1 | L37: =Time!L$54 -> 1 | M37: =Time!M$54 -> 1 | N37: =Time!N$54 -> 1 | O37: =Time!O$54 -> 1 | P37: =Time!P$54 -> 0
E38: =E$34 -> Profiled Net totex available for wage adj - BIO - Real | F38: 0 | G38: £m | H38: 154.9870168 | I38: 0 | J38: 0 | K38: 31.37134087 | L38: 33.22754876 | M38: 31.33786657 | N38: 29.3634174 | O38: 29.68684319 | P38: 0
E39: ='Cost sharing calculations'!E$26 -> Real adjustment factor for wages | F39: ='Cost sharing calculations'!F$26 -> 0 | G39: ='Cost sharing calculations'!G$26 -> % | H39: ='Cost sharing calculations'!H$26 -> 0 | I39: ='Cost sharing calculations'!I$26 -> 0 | J39: ='Cost sharing calculations'!J$26 -> 0 | K39: ='Cost sharing calculations'!K$26 -> 1.008871737 | L39: ='Cost sharing calculations'!L$26 -> 0.9954600068 | M39: ='Cost sharing calculations'!M$26 -> 0.9810824548 | N39: ='Cost sharing calculations'!N$26 -> 0.970281077 | O39: ='Cost sharing calculations'!O$26 -> 0.970281077 | P39: ='Cost sharing calculations'!P$26 -> 0
E40: Profiled adjustment wage related totex - BIO - Real | G40: £m | H40: =SUM(J40:P40) -> 152.7667366 | J40: =IF(J37 = 1, J38 * J39, 0) -> 0 | K40: 31.64965914 | L40: 33.07669592 | M40: 30.74503107 | N40: 28.49076826 | O40: 28.80458219 | P40: 0
D42: Variance to forecast wage linked totex
E43: =E$40 -> Profiled adjustment wage related totex - BIO - Real | F43: 0 | G43: £m | H43: 152.7667366 | I43: 0 | J43: 0 | K43: 31.64965914 | L43: 33.07669592 | M43: 30.74503107 | N43: 28.49076826 | O43: 28.80458219 | P43: 0
E44: =E$34 -> Profiled Net totex available for wage adj - BIO - Real | F44: 0 | G44: £m | H44: 154.9870168 | I44: 0 | J44: 0 | K44: 31.37134087 | L44: 33.22754876 | M44: 31.33786657 | N44: 29.3634174 | O44: 29.68684319 | P44: 0
E45: Variance to forecast totex for wage adjustment- BIO | G45: £m | H45: =SUM(J45:P45) -> -2.220280226 | J45: =J43 - J44 -> 0 | K45: 0.2783182748 | L45: -0.1508528468 | M45: -0.592835507 | N45: -0.8726491402 | O45: -0.8822610065 | P45: 0
E47: =InpActive!E$288 -> Financing cost index | F47: =InpActive!F$288 -> 0 | G47: =InpActive!G$288 -> Index | H47: =InpActive!H$288 -> 0 | I47: =InpActive!I$288 -> 0 | J47: =InpActive!J$288 -> 0 | K47: =InpActive!K$288 -> 4 | L47: =InpActive!L$288 -> 3 | M47: =InpActive!M$288 -> 2 | N47: =InpActive!N$288 -> 1 | O47: =InpActive!O$288 -> 0 | P47: =InpActive!P$288 -> 0
E48: =InpActive!E$293 -> Real WACC CPIH Deflated - BIO | F48: =InpActive!F$293 -> 0.0312 | G48: =InpActive!G$293 -> %
E49: Time value of money factor - BIO | G49: Factor | J49: =(1+$F48) ^ J47 -> 1 | K49: 1.130763073 | L49: 1.096550691 | M49: 1.06337344 | N49: 1.0312 | O49: 1 | P49: 1
D51: Wage totex overfunded/unfunded at PR19
E52: =E$45 -> Variance to forecast totex for wage adjustment- BIO | F52: 0 | G52: £m | H52: -2.220280226 | I52: 0 | J52: 0 | K52: 0.2783182748 | L52: -0.1508528468 | M52: -0.592835507 | N52: -0.8726491402 | O52: -0.8822610065 | P52: 0
E53: =E49 -> Time value of money factor - BIO | F53: 0 | G53: Factor | H53: 0 | I53: 0 | J53: 1 | K53: 1.130763073 | L53: 1.096550691 | M53: 1.06337344 | N53: 1.0312 | O53: 1 | P53: 1
E54: Variance to forecast totex for wage adjustment - NPV adjusted - BIO | G54: £m | H54: =SUM(J54:P54) -> -2.263248098 | J54: =J52*J53 -> 0 | K54: 0.3147120276 | L54: -0.1654177935 | M54: -0.6304055324 | N54: -0.8998757933 | O54: -0.8822610065 | P54: 0
E55: Total adjustment for wage related totex - BIO - Real | F55: =H54 -> -2.263248098 | G55: £m
C58: Performance related pay recovery mechanism adjustment
E60: =InpActive!E$170 -> Performance related pay recovery mechanism adjustment - BIO - Nominal (Neg) | F60: =InpActive!F$170 -> 0 | G60: =InpActive!G$170 -> £m | H60: =InpActive!H$170 -> 0 | I60: =InpActive!I$170 -> 0 | J60: =InpActive!J$170 -> 0 | K60: =InpActive!K$170 -> 0 | L60: =InpActive!L$170 -> 0 | M60: =InpActive!M$170 -> 0 | N60: =InpActive!N$170 -> 0 | O60: =InpActive!O$170 -> 0 | P60: =InpActive!P$170 -> 0
E61: =Index!E$43 -> CPI(H): Fin year average - inflate from base year 2017-18 average - CALC | F61: =Index!F$43 -> 0 | G61: =Index!G$43 -> % | H61: =Index!H$43 -> 0 | I61: =Index!I$43 -> 0 | J61: =Index!J$43 -> 1.038621462 | K61: =Index!K$43 -> 1.04693747 | L61: =Index!L$43 -> 1.085399008 | M61: =Index!M$43 -> 1.180633296 | N61: =Index!N$43 -> 1.246121862 | O61: =Index!O$43 -> 1.286182632 | P61: =Index!P$43 -> 1.302174956
E62: Performance related pay recovery mechanism adjustment - BIO - real | G62: £m | H62: =SUM(K62:O62) -> 0 | J62: =J60 / J61 -> 0 | K62: =K60 / K61 -> 0 | L62: =L60 / L61 -> 0 | M62: 0 | N62: 0 | O62: 0 | P62: 0
E63: Total Performance related pay recovery mechanism adjustment - BIO - real | F63: =H62 -> 0 | G63: £m
C65: CMA exclusions
E67: =InpActive!E$165 -> Actuals for CMA excluded items - BIO - nominal | F67: =InpActive!F$165 -> 0 | G67: =InpActive!G$165 -> £m | H67: =InpActive!H$165 -> 0 | I67: =InpActive!I$165 -> 0 | J67: =InpActive!J$165 -> 0 | K67: =InpActive!K$165 -> 0 | L67: =InpActive!L$165 -> 0 | M67: =InpActive!M$165 -> 0 | N67: =InpActive!N$165 -> 0 | O67: =InpActive!O$165 -> 0 | P67: =InpActive!P$165 -> 0
E68: =Index!E$43 -> CPI(H): Fin year average - inflate from base year 2017-18 average - CALC | F68: =Index!F$43 -> 0 | G68: =Index!G$43 -> % | H68: =Index!H$43 -> 0 | I68: =Index!I$43 -> 0 | J68: =Index!J$43 -> 1.038621462 | K68: =Index!K$43 -> 1.04693747 | L68: =Index!L$43 -> 1.085399008 | M68: =Index!M$43 -> 1.180633296 | N68: =Index!N$43 -> 1.246121862 | O68: =Index!O$43 -> 1.286182632 | P68: =Index!P$43 -> 1.302174956
E69: Actuals for CMA excluded items - BIO - real | G69: £m | J69: =J67 / J68 -> 0 | K69: =K67 / K68 -> 0 | L69: =L67 / L68 -> 0 | M69: 0 | N69: 0 | O69: 0 | P69: 0
E71: =InpActive!E$166 -> Allowance for CMA excluded items - BIO - real | F71: =InpActive!F$166 -> 0 | G71: =InpActive!G$166 -> £m | H71: =InpActive!H$166 -> 0 | I71: =InpActive!I$166 -> 0 | J71: =InpActive!J$166 -> 0 | K71: =InpActive!K$166 -> 0 | L71: =InpActive!L$166 -> 0 | M71: =InpActive!M$166 -> 0 | N71: =InpActive!N$166 -> 0 | O71: =InpActive!O$166 -> 0 | P71: =InpActive!P$166 -> 0
E72: =E69 -> Actuals for CMA excluded items - BIO - real | F72: =F69 -> 0 | G72: £m | H72: 0 | I72: 0 | J72: 0 | K72: =K69 -> 0 | L72: =L69 -> 0 | M72: 0 | N72: 0 | O72: 0 | P72: 0
E73: Variance to allowances for CMA excluded items - BIO | G73: £m | H73: =SUM(J73:P73) -> 0 | J73: =J72-J71 -> 0 | K73: =K72-K71 -> 0 | L73: =L72-L71 -> 0 | M73: 0 | N73: 0 | O73: 0 | P73: 0
E75: =E$73 -> Variance to allowances for CMA excluded items - BIO | F75: =F$73 -> 0 | G75: £m | H75: 0 | I75: 0 | J75: 0 | K75: =K$73 -> 0 | L75: 0 | M75: 0 | N75: 0 | O75: 0 | P75: 0
E76: =E$49 -> Time value of money factor - BIO | F76: =F$49 -> 0 | G76: Factor | H76: 0 | I76: 0 | J76: 1 | K76: 1.130763073 | L76: 1.096550691 | M76: 1.06337344 | N76: 1.0312 | O76: 1 | P76: 1
E77: Time value adjusted variance to allowances for CMA excluded items - BIO - real | G77: £m | H77: =SUM(J77:P77) -> 0 | J77: =J75 * J76 -> 0 | K77: =K75 * K76 -> 0 | L77: 0 | M77: 0 | N77: 0 | O77: 0 | P77: 0
E78: Total variance to allowances for CMA excluded items - BIO - real | F78: =$H77 -> 0 | G78: £m
E80: =E78 -> Total variance to allowances for CMA excluded items - BIO - real | F80: =F78 -> 0 | G80: =G78 -> £m
E81: =InpActive!E167 -> CMA excluded items sharing rate - BIO - real | F81: =InpActive!F167 -> 0 | G81: =InpActive!G167 -> %
E82: Allowable adjustment for CMA excluded items - BIO - Real | F82: =(F80* F81) -> 0 | G82: £m
E84: =E55 -> Total adjustment for wage related totex - BIO - Real | F84: =F55 -> -2.263248098 | G84: =G55 -> £m
E85: =E82 -> Allowable adjustment for CMA excluded items - BIO - Real | F85: =F82 -> 0 | G85: £m
E86: =E63 -> Total Performance related pay recovery mechanism adjustment - BIO - real | F86: 0 | G86: £m
E87: Total adjustment for cost sharing - BIO - Real | F87: =SUM(F84:F85) + F86 -> -2.263248098 | G87: £m
E89: =E87 -> Total adjustment for cost sharing - BIO - Real | F89: =F87 -> -2.263248098 | G89: £m
E90: =InpActive!E162 -> Weighted average PAYG rate - BIO | F90: =InpActive!F162 -> 0.8280942436 | G90: =InpActive!G162 -> %
E91: Cost sharing Revenue adjustment - BIO - Real | F91: =F90 * F89 -> -1.874182722 | G91: £m
E93: =E87 -> Total adjustment for cost sharing - BIO - Real | F93: =F87 -> -2.263248098 | G93: =G87 -> £m
E94: =InpActive!E162 -> Weighted average PAYG rate - BIO | F94: =InpActive!F162 -> 0.8280942436 | G94: =InpActive!G162 -> %
E95: Cost sharing RCV adjustment - BIO - Real | F95: =F93 * (1 - F94) -> -0.3890653762 | G95: £m
A100: END OF SHEET

Sheet Thames Tideway Tunnel
A1: =RIGHT(CELL("filename", $A$1), LEN(CELL("filename", $A$1)) - SEARCH("]", CELL("filename", $A$1))) -> Thames Tideway Tunnel
E2: =Time!E$22 -> Model Period BEG | J2: =Time!J$22 -> 2019-04-01 | K2: =Time!K$22 -> 2020-04-01 | L2: =Time!L$22 -> 2021-04-01 | M2: =Time!M$22 -> 2022-04-01 | N2: =Time!N$22 -> 2023-04-01 | O2: =Time!O$22 -> 2024-04-01 | P2: =Time!P$22 -> 2025-04-01
E3: =Time!E$23 -> Model Period END | F3: =Check!F$8 -> 0 | G3: Error chks | J3: =Time!J$23 -> 2020-03-31 | K3: =Time!K$23 -> 2021-03-31 | L3: =Time!L$23 -> 2022-03-31 | M3: =Time!M$23 -> 2023-03-31 | N3: =Time!N$23 -> 2024-03-31 | O3: =Time!O$23 -> 2025-03-31 | P3: =Time!P$23 -> 2026-03-31
E4: =Time!E$59 -> Pre Forecast vs Forecast | J4: =Time!J$59 -> Pre Fcst | K4: =Time!K$59 -> Forecast | L4: =Time!L$59 -> Forecast | M4: =Time!M$59 -> Forecast | N4: =Time!N$59 -> Forecast | O4: =Time!O$59 -> Forecast | P4: =Time!P$59 -> Post-Fcst
E5: =Time!E$101 -> Financial Year Ending | J5: =Time!J$101 -> 2020 | K5: =Time!K$101 -> 2021 | L5: =Time!L$101 -> 2022 | M5: =Time!M$101 -> 2023 | N5: =Time!N$101 -> 2024 | O5: =Time!O$101 -> 2025 | P5: =Time!P$101 -> 2026
E6: =Time!E$11 -> Model column counter | F6: Constant | G6: Unit | H6: Total | J6: =Time!J$11 -> 1 | K6: =Time!K$11 -> 2 | L6: =Time!L$11 -> 3 | M6: =Time!M$11 -> 4 | N6: =Time!N$11 -> 5 | O6: =Time!O$11 -> 6 | P6: =Time!P$11 -> 7
A8: THAMES TIDEWAY TUNNEL
C10: Adjustment For Wage Growth
D12: Profile for totex for wage adjustment
E13: =InpActive!E$177 -> Opex Split Profile - Base costs - TTT | F13: =InpActive!F$177 -> 0 | G13: =InpActive!G$177 -> % | H13: =InpActive!H$177 -> 0 | I13: =InpActive!I$177 -> 0 | J13: =InpActive!J$177 -> 0 | K13: =InpActive!K$177 -> 0 | L13: =InpActive!L$177 -> 0 | M13: =InpActive!M$177 -> 0 | N13: =InpActive!N$177 -> 0 | O13: =InpActive!O$177 -> 0 | P13: =InpActive!P$177 -> 0
E14: =InpActive!E$178 -> Capex Split Profile - Base costs - TTT | F14: =InpActive!F$178 -> 0 | G14: =InpActive!G$178 -> % | H14: =InpActive!H$178 -> 0 | I14: =InpActive!I$178 -> 0 | J14: =InpActive!J$178 -> 0 | K14: =InpActive!K$178 -> 0 | L14: =InpActive!L$178 -> 0 | M14: =InpActive!M$178 -> 0 | N14: =InpActive!N$178 -> 0 | O14: =InpActive!O$178 -> 0 | P14: =InpActive!P$178 -> 0
E15: Totex profile - TTT | G15: % | H15: =SUM(J15:P15) -> 0 | J15: =SUM(J13:J14) -> 0 | K15: 0 | L15: 0 | M15: 0 | N15: 0 | O15: 0 | P15: 0
E16: Totex profile - 5 year percentage - TTT | F16: =H15 -> 0 | G16: %
E18: =E$16 -> Totex profile - 5 year percentage - TTT | F18: =F$16 -> 0 | G18: =G$16 -> %
E19: TTT Totex profile 100% check | F19: =IF(OR($F$18 = 1, F18 = 0), 0, 1) -> 0 | G19: Check
E21: =InpActive!E$175 -> Base Costs - TTT - Real | F21: =InpActive!F$175 -> 0 | G21: =InpActive!G$175 -> £m
E22: =Time!E$54 -> Forecast Period Flag | F22: =Time!F$54 -> 0 | G22: =Time!G$54 -> flag | H22: =Time!H$54 -> 5 | I22: =Time!I$54 -> 0 | J22: =Time!J$54 -> 0 | K22: =Time!K$54 -> 1 | L22: =Time!L$54 -> 1 | M22: =Time!M$54 -> 1 | N22: =Time!N$54 -> 1 | O22: =Time!O$54 -> 1 | P22: =Time!P$54 -> 0
E23: =E$15 -> Totex profile - TTT | F23: 0 | G23: % | H23: 0 | I23: 0 | J23: 0 | K23: 0 | L23: 0 | M23: 0 | N23: 0 | O23: 0 | P23: 0
E24: Profiled Totex available for wage indexation adjustment - TTT - Real | G24: £m | H24: =SUM(J24:P24) -> 0 | J24: =IF(J22 = 1, J23 * $F21, 0) -> 0 | K24: 0 | L24: 0 | M24: 0 | N24: 0 | O24: 0 | P24: 0
D26: Totex applicable for wage adjustment by year
E27: =InpActive!E261 -> Percentage totex linked to wage growth - TTT | F27: =InpActive!F261 -> 0.386 | G27: =InpActive!G261 -> %
E28: =E24 -> Profiled Totex available for wage indexation adjustment - TTT - Real | F28: 0 | G28: £m | H28: 0 | I28: 0 | J28: 0 | K28: 0 | L28: 0 | M28: 0 | N28: 0 | O28: 0 | P28: 0
E29: Profiled Net totex available for wage adj - TTT - Real | G29: £m | H29: =SUM(J29:P29) -> 0 | J29: =J28 * $F27 -> 0 | K29: 0 | L29: 0 | M29: 0 | N29: 0 | O29: 0 | P29: 0
D31: Adjustment factor for wage linked totex
E32: =Time!E$54 -> Forecast Period Flag | F32: =Time!F$54 -> 0 | G32: =Time!G$54 -> flag | H32: =Time!H$54 -> 5 | I32: =Time!I$54 -> 0 | J32: =Time!J$54 -> 0 | K32: =Time!K$54 -> 1 | L32: =Time!L$54 -> 1 | M32: =Time!M$54 -> 1 | N32: =Time!N$54 -> 1 | O32: =Time!O$54 -> 1 | P32: =Time!P$54 -> 0
E33: =E$29 -> Profiled Net totex available for wage adj - TTT - Real | F33: 0 | G33: £m | H33: 0 | I33: 0 | J33: 0 | K33: 0 | L33: 0 | M33: 0 | N33: 0 | O33: 0 | P33: 0
E34: ='Cost sharing calculations'!E26 -> Real adjustment factor for wages | F34: ='Cost sharing calculations'!F26 -> 0 | G34: ='Cost sharing calculations'!G26 -> % | H34: ='Cost sharing calculations'!H26 -> 0 | I34: ='Cost sharing calculations'!I26 -> 0 | J34: ='Cost sharing calculations'!J26 -> 0 | K34: ='Cost sharing calculations'!K26 -> 1.008871737 | L34: ='Cost sharing calculations'!L26 -> 0.9954600068 | M34: ='Cost sharing calculations'!M26 -> 0.9810824548 | N34: ='Cost sharing calculations'!N26 -> 0.970281077 | O34: ='Cost sharing calculations'!O26 -> 0.970281077 | P34: ='Cost sharing calculations'!P26 -> 0
E35: Profiled adjustment wage related totex - TTT - Real | G35: £m | H35: =SUM(J35:P35) -> 0 | J35: =IF(J32 = 1, J33 * J34, 0) -> 0 | K35: 0 | L35: 0 | M35: 0 | N35: 0 | O35: 0 | P35: 0
D37: Variance to forecast wage linked totex
E38: =E$35 -> Profiled adjustment wage related totex - TTT - Real | F38: 0 | G38: £m | H38: 0 | I38: 0 | J38: 0 | K38: 0 | L38: 0 | M38: 0 | N38: 0 | O38: 0 | P38: 0
E39: =E$29 -> Profiled Net totex available for wage adj - TTT - Real | F39: 0 | G39: £m | H39: 0 | I39: 0 | J39: 0 | K39: 0 | L39: 0 | M39: 0 | N39: 0 | O39: 0 | P39: 0
E40: Variance to forecast totex for wage adjustment - TTT | G40: £m | H40: =SUM(J40:P40) -> 0 | J40: =J38 - J39 -> 0 | K40: 0 | L40: 0 | M40: 0 | N40: 0 | O40: 0 | P40: 0
D42: Wage totex overfunded/unfunded at PR19
E44: =InpActive!E288 -> Financing cost index | F44: =InpActive!F288 -> 0 | G44: =InpActive!G288 -> Index | H44: =InpActive!H288 -> 0 | I44: =InpActive!I288 -> 0 | J44: =InpActive!J288 -> 0 | K44: =InpActive!K288 -> 4 | L44: =InpActive!L288 -> 3 | M44: =InpActive!M288 -> 2 | N44: =InpActive!N288 -> 1 | O44: =InpActive!O288 -> 0 | P44: =InpActive!P288 -> 0
E45: =InpActive!E294 -> Real WACC CPIH Deflated - TTT | F45: =InpActive!F294 -> 0.0312 | G45: =InpActive!G294 -> %
E46: Time value of money factor - TTT | G46: Factor | J46: =(1+$F45) ^ J44 -> 1 | K46: 1.130763073 | L46: 1.096550691 | M46: 1.06337344 | N46: 1.0312 | O46: 1 | P46: 1
E48: =E$40 -> Variance to forecast totex for wage adjustment - TTT | F48: 0 | G48: £m | H48: 0 | I48: 0 | J48: 0 | K48: 0 | L48: 0 | M48: 0 | N48: 0 | O48: 0 | P48: 0
E49: =E46 -> Time value of money factor - TTT | F49: 0 | G49: Factor | H49: 0 | I49: 0 | J49: 1 | K49: 1.130763073 | L49: 1.096550691 | M49: 1.06337344 | N49: 1.0312 | O49: 1 | P49: 1
E50: Variance to forecast totex for wage adjustment - NPV adjusted - WWN | G50: £m | H50: =SUM(J50:P50) -> 0 | J50: =J48*J49 -> 0 | K50: 0 | L50: 0 | M50: 0 | N50: 0 | O50: 0 | P50: 0
E51: (Under)/Overfunded wage related totex at PR19 - TTT | F51: =H50 * -1 -> 0 | G51: £m
C53: Cost sharing on net totex available for reconciliation
E55: =InpActive!E$184 -> Net totex for cost sharing reconciliation - TTT - nominal | F55: =InpActive!F$184 -> 0 | G55: =InpActive!G$184 -> £m | H55: =InpActive!H$184 -> 0 | I55: =InpActive!I$184 -> 0 | J55: =InpActive!J$184 -> 0 | K55: =InpActive!K$184 -> 0 | L55: =InpActive!L$184 -> 0 | M55: =InpActive!M$184 -> 0 | N55: =InpActive!N$184 -> 0 | O55: =InpActive!O$184 -> 0 | P55: =InpActive!P$184 -> 0
E56: =Index!E$43 -> CPI(H): Fin year average - inflate from base year 2017-18 average - CALC | F56: =Index!F$43 -> 0 | G56: =Index!G$43 -> % | H56: =Index!H$43 -> 0 | I56: =Index!I$43 -> 0 | J56: =Index!J$43 -> 1.038621462 | K56: =Index!K$43 -> 1.04693747 | L56: =Index!L$43 -> 1.085399008 | M56: =Index!M$43 -> 1.180633296 | N56: =Index!N$43 -> 1.246121862 | O56: =Index!O$43 -> 1.286182632 | P56: =Index!P$43 -> 1.302174956
E57: Actual net totex for cost sharing reconciliation - TTT - Real | G57: £m | J57: =J55 / J56 -> 0 | K57: 0 | L57: 0 | M57: 0 | N57: 0 | O57: 0 | P57: 0
E59: =InpActive!E$186 -> Performance related pay recovery mechanism adjustment - TTT - Nominal (Neg) | F59: =InpActive!F$186 -> 0 | G59: =InpActive!G$186 -> £m | H59: =InpActive!H$186 -> 0 | I59: =InpActive!I$186 -> 0 | J59: =InpActive!J$186 -> 0 | K59: =InpActive!K$186 -> 0 | L59: =InpActive!L$186 -> 0 | M59: =InpActive!M$186 -> 0 | N59: =InpActive!N$186 -> 0 | O59: =InpActive!O$186 -> 0 | P59: =InpActive!P$186 -> 0
E60: =Index!E$43 -> CPI(H): Fin year average - inflate from base year 2017-18 average - CALC | F60: =Index!F$43 -> 0 | G60: =Index!G$43 -> % | H60: =Index!H$43 -> 0 | I60: =Index!I$43 -> 0 | J60: =Index!J$43 -> 1.038621462 | K60: =Index!K$43 -> 1.04693747 | L60: =Index!L$43 -> 1.085399008 | M60: =Index!M$43 -> 1.180633296 | N60: =Index!N$43 -> 1.246121862 | O60: =Index!O$43 -> 1.286182632 | P60: =Index!P$43 -> 1.302174956
E61: Performance related pay recovery mechanism adjustment - TTT - real | G61: £m | H61: =SUM(K61:O61) -> 0 | J61: =J59 / J60 -> 0 | K61: =K59 / K60 -> 0 | L61: =L59 / L60 -> 0 | M61: 0 | N61: 0 | O61: 0 | P61: 0
E62: Total Performance related pay recovery mechanism adjustment - TTT - real | F62: =H61 -> 0 | G62: £m
E64: =E$57 -> Actual net totex for cost sharing reconciliation - TTT - Real | F64: 0 | G64: £m | H64: 0 | I64: 0 | J64: 0 | K64: 0 | L64: 0 | M64: 0 | N64: 0 | O64: 0 | P64: 0
E65: =E61 -> Performance related pay recovery mechanism adjustment - TTT - real | F65: 0 | G65: £m | H65: 0 | I65: 0 | J65: 0 | K65: 0 | L65: 0 | M65: 0 | N65: 0 | O65: 0 | P65: 0
E66: =Time!E$54 -> Forecast Period Flag | F66: =Time!F$54 -> 0 | G66: =Time!G$54 -> flag | H66: =Time!H$54 -> 5 | I66: =Time!I$54 -> 0 | J66: =Time!J$54 -> 0 | K66: =Time!K$54 -> 1 | L66: =Time!L$54 -> 1 | M66: =Time!M$54 -> 1 | N66: =Time!N$54 -> 1 | O66: =Time!O$54 -> 1 | P66: =Time!P$54 -> 0
E67: Actual net totex for cost sharing reconciliation - TTT - Real | G67: £m | H67: =SUM(J67:P67) -> 0 | J67: =(J64 + J65) * J66 -> 0 | K67: =(K64 + K65) * K66 -> 0 | L67: 0 | M67: 0 | N67: 0 | O67: 0 | P67: 0
D69: Profile for net totex for cost sharing
E70: =InpActive!E180 -> Opex split profile - Cost sharing - TTT | F70: =InpActive!F180 -> 0 | G70: =InpActive!G180 -> % | H70: =InpActive!H180 -> 0 | I70: =InpActive!I180 -> 0 | J70: =InpActive!J180 -> 0 | K70: =InpActive!K180 -> 0 | L70: =InpActive!L180 -> 0 | M70: =InpActive!M180 -> 0 | N70: =InpActive!N180 -> 0 | O70: =InpActive!O180 -> 0 | P70: =InpActive!P180 -> 0
E71: =InpActive!E181 -> Capex split profile - Cost sharing - TTT | F71: =InpActive!F181 -> 0 | G71: =InpActive!G181 -> % | H71: =InpActive!H181 -> 0 | I71: =InpActive!I181 -> 0 | J71: =InpActive!J181 -> 0 | K71: =InpActive!K181 -> 0 | L71: =InpActive!L181 -> 0 | M71: =InpActive!M181 -> 0 | N71: =InpActive!N181 -> 0 | O71: =InpActive!O181 -> 0 | P71: =InpActive!P181 -> 0
E72: Totex profile - Cost Sharing - TTT | G72: % | H72: =SUM(J72:P72) -> 0 | J72: =SUM(J70:J71) -> 0 | K72: 0 | L72: 0 | M72: 0 | N72: 0 | O72: 0 | P72: 0
E73: Totex profile - Cost Sharing - 5 year percentage - TTT | F73: =$H$72 -> 0 | G73: %
E75: =E$73 -> Totex profile - Cost Sharing - 5 year percentage - TTT | F75: =F$73 -> 0 | G75: =G$73 -> %
E76: TTT Totex profile - Cost Sharing 100% check | F76: =IF(OR(F75 = 1, F75 = 0), 0, 1) -> 0 | G76: Check
E78: =InpActive!E185 -> Net totex available for cost sharing - TTT - Real | F78: =InpActive!F185 -> 0 | G78: =InpActive!G185 -> £m
E79: =E$72 -> Totex profile - Cost Sharing - TTT | F79: 0 | G79: % | H79: 0 | I79: 0 | J79: 0 | K79: 0 | L79: 0 | M79: 0 | N79: 0 | O79: 0 | P79: 0
E80: Net totex available for cost sharing profiled - TTT - Real | G80: £m | H80: =SUM(J80:P80) -> 0 | J80: =J79 * $F78 -> 0 | K80: 0 | L80: 0 | M80: 0 | N80: 0 | O80: 0 | P80: 0
E82: =E$80 -> Net totex available for cost sharing profiled - TTT - Real | F82: 0 | G82: £m | H82: 0 | I82: 0 | J82: 0 | K82: 0 | L82: 0 | M82: 0 | N82: 0 | O82: 0 | P82: 0
E83: =E$40 -> Variance to forecast totex for wage adjustment - TTT | F83: 0 | G83: £m | H83: 0 | I83: 0 | J83: 0 | K83: 0 | L83: 0 | M83: 0 | N83: 0 | O83: 0 | P83: 0
E84: =InpActive!E188 -> Total final WINEP reconciliation - TTT - real | F84: =InpActive!F188 -> 0 | G84: =InpActive!G188 -> £m | H84: =InpActive!H188 -> 0 | I84: =InpActive!I188 -> 0 | J84: =InpActive!J188 -> 0 | K84: =InpActive!K188 -> 0 | L84: =InpActive!L188 -> 0 | M84: =InpActive!M188 -> 0 | N84: =InpActive!N188 -> 0 | O84: =InpActive!O188 -> 0 | P84: =InpActive!P188 -> 0
E85: =E61 -> Performance related pay recovery mechanism adjustment - TTT - real | F85: 0 | G85: £m | H85: 0 | I85: 0 | J85: 0 | K85: 0 | L85: 0 | M85: 0 | N85: 0 | O85: 0 | P85: 0
E86: Net totex available for cost sharing after adjustments profiled - TTT - Real | G86: £m | H86: =SUM(J86:P86) -> 0 | J86: =SUM(J82:J85) -> 0 | K86: =SUM(K82:K85) -> 0 | L86: =SUM(L82:L85) -> 0 | M86: 0 | N86: 0 | O86: 0 | P86: 0
D88: Variance to forecast net totex for cost sharing
E89: =E$67 -> Actual net totex for cost sharing reconciliation - TTT - Real | F89: 0 | G89: £m | H89: 0 | I89: 0 | J89: 0 | K89: 0 | L89: 0 | M89: 0 | N89: 0 | O89: 0 | P89: 0
E90: =E$86 -> Net totex available for cost sharing after adjustments profiled - TTT - Real | F90: 0 | G90: £m | H90: 0 | I90: 0 | J90: 0 | K90: 0 | L90: 0 | M90: 0 | N90: 0 | O90: 0 | P90: 0
E91: Variance to forecast net totex for cost sharing - TTT - Real | G91: £m | H91: =SUM(J91:P91) -> 0 | J91: =J89 - J90 -> 0 | K91: 0 | L91: 0 | M91: 0 | N91: 0 | O91: 0 | P91: 0
D93: Variance to forecast net totex for cost sharing - Time adjusted
E95: =E$91 -> Variance to forecast net totex for cost sharing - TTT - Real | F95: 0 | G95: £m | H95: 0 | I95: 0 | J95: 0 | K95: 0 | L95: 0 | M95: 0 | N95: 0 | O95: 0 | P95: 0
E96: =E$46 -> Time value of money factor - TTT | F96: 0 | G96: Factor | H96: 0 | I96: 0 | J96: 1 | K96: 1.130763073 | L96: 1.096550691 | M96: 1.06337344 | N96: 1.0312 | O96: 1 | P96: 1
E97: Time adjusted variance to forecast net totex for cost sharing - TTT | G97: £m | H97: =SUM(J97:P97) -> 0 | J97: =J95 * J96 -> 0 | K97: 0 | L97: 0 | M97: 0 | N97: 0 | O97: 0 | P97: 0
E98: Total variance to forecast net totex for cost sharing - TTT | F98: =$H97 -> 0 | G98: £m
D100: Under / Overperformance on net totex for cost sharing
E102: =E$98 -> Total variance to forecast net totex for cost sharing - TTT | F102: =F$98 -> 0 | G102: =G$98 -> £m
E103: =InpActive!E$276 -> Outperformance Rate - TTT | F103: =InpActive!F$276 -> 0 | G103: =InpActive!G$276 -> %
E104: =InpActive!E$277 -> Underperformance Rate - TTT | F104: =InpActive!F$277 -> 0 | G104: =InpActive!G$277 -> %
E105: ="Active Sharing Rate - "& INDEX(E103:E104,MATCH(F105,F103:F104,0)) -> Active Sharing Rate - Outperformance Rate - TTT | F105: =IF(F102<0,F103,F104) -> 0 | G105: %
E107: =E$98 -> Total variance to forecast net totex for cost sharing - TTT | F107: =F$98 -> 0 | G107: =G$98 -> £m
E108: =E$105 -> Active Sharing Rate - Outperformance Rate - TTT | F108: =F$105 -> 0 | G108: =G$105 -> %
E109: Active adjustment for cost sharing - Net totex for cost sharing - TTT - Real | F109: =F107 * (1-F108) -> 0 | G109: £m
E111: =E109 -> Active adjustment for cost sharing - Net totex for cost sharing - TTT - Real | F111: =F109 -> 0 | G111: =G109 -> £m
E112: =E51 -> (Under)/Overfunded wage related totex at PR19 - TTT | F112: =F51 -> 0 | G112: =G51 -> £m
E113: =E62 -> Total Performance related pay recovery mechanism adjustment - TTT - real | F113: =F62 -> 0 | G113: £m
E114: Total adjustment for cost sharing after ex ante allowance - TTT - Real | F114: =F111 - F112 + F113 -> 0 | G114: £m
C116: Cost sharing adjustment RCV/Revenue Split
E118: =E$114 -> Total adjustment for cost sharing after ex ante allowance - TTT - Real | F118: =F$114 -> 0 | G118: =G$114 -> £m
E119: =InpActive!E$190 -> Weighted average PAYG rate - TTT | F119: =InpActive!F$190 -> 0 | G119: =InpActive!G$190 -> %
E120: Cost sharing revenue adjustment - TTT - Real | F120: =F118 * $F$119 -> 0 | G120: £m
E122: =E$114 -> Total adjustment for cost sharing after ex ante allowance - TTT - Real | F122: =F$114 -> 0 | G122: =G$114 -> £m
E123: =InpActive!E$190 -> Weighted average PAYG rate - TTT | F123: =InpActive!F$190 -> 0 | G123: =InpActive!G$190 -> %
E124: Cost sharing RCV adjustment - TTT - Real | F124: =F122 * (1 - $F$123) -> 0 | G124: £m
A127: END OF SHEET

Sheet Green Recovery
A1: =RIGHT(CELL("filename", $A$1), LEN(CELL("filename", $A$1)) - SEARCH("]", CELL("filename", $A$1))) -> Green Recovery
E2: =Time!E$22 -> Model Period BEG | J2: =Time!J$22 -> 2019-04-01 | K2: =Time!K$22 -> 2020-04-01 | L2: =Time!L$22 -> 2021-04-01 | M2: =Time!M$22 -> 2022-04-01 | N2: =Time!N$22 -> 2023-04-01 | O2: =Time!O$22 -> 2024-04-01 | P2: =Time!P$22 -> 2025-04-01
E3: =Time!E$23 -> Model Period END | F3: =Check!F$8 -> 0 | G3: Error chks | J3: =Time!J$23 -> 2020-03-31 | K3: =Time!K$23 -> 2021-03-31 | L3: =Time!L$23 -> 2022-03-31 | M3: =Time!M$23 -> 2023-03-31 | N3: =Time!N$23 -> 2024-03-31 | O3: =Time!O$23 -> 2025-03-31 | P3: =Time!P$23 -> 2026-03-31
E4: =Time!E$59 -> Pre Forecast vs Forecast | J4: =Time!J$59 -> Pre Fcst | K4: =Time!K$59 -> Forecast | L4: =Time!L$59 -> Forecast | M4: =Time!M$59 -> Forecast | N4: =Time!N$59 -> Forecast | O4: =Time!O$59 -> Forecast | P4: =Time!P$59 -> Post-Fcst
E5: =Time!E$101 -> Financial Year Ending | J5: =Time!J$101 -> 2020 | K5: =Time!K$101 -> 2021 | L5: =Time!L$101 -> 2022 | M5: =Time!M$101 -> 2023 | N5: =Time!N$101 -> 2024 | O5: =Time!O$101 -> 2025 | P5: =Time!P$101 -> 2026
E6: =Time!E$11 -> Model column counter | F6: Constant | G6: Unit | H6: Total | J6: =Time!J$11 -> 1 | K6: =Time!K$11 -> 2 | L6: =Time!L$11 -> 3 | M6: =Time!M$11 -> 4 | N6: =Time!N$11 -> 5 | O6: =Time!O$11 -> 6 | P6: =Time!P$11 -> 7
A9: ACTIVE GREEN RECOVERY COST SHARING RATE
C11: Active Sharing Rates -WR/WN
E13: =E37 -> Variance to green recovery expenditure - WR - real | F13: =F37 -> 0 | G13: =G37 -> £m
E14: =E73 -> Variance to green recovery expenditure - WN - real | F14: =F73 -> 0 | G14: =G73 -> £m
E15: =E108 -> Variance to green recovery expenditure - WWN - real | F15: 0 | G15: £m
E16: Total Variance to green recovery expenditure - real | F16: =SUM(F13:F15) -> 0 | G16: £m
E18: =E$16 -> Total Variance to green recovery expenditure - real | F18: =F$16 -> 0 | G18: £m
E19: =InpActive!E$212 -> Green Recovery Outperformance Rate | F19: =InpActive!F$212 -> 0.1 | G19: =InpActive!G$212 -> %
E20: =InpActive!E$213 -> Green Recovery Underperformance Rate | F20: =InpActive!F$213 -> 0.5 | G20: =InpActive!G$213 -> %
E21: ="Active Sharing Rate - "& INDEX(E19:E20,MATCH(F21,F19:F20,0)) -> Active Sharing Rate - Green Recovery Underperformance Rate | F21: =IF(F18<0,F19,F20) -> 0.5 | G21: %
A24: WATER RESOURCES
E26: =InpActive!E$197 -> Actual Green Recovery Expenditure - WR - nominal | F26: =InpActive!F$197 -> 0 | G26: =InpActive!G$197 -> £m | H26: =InpActive!H$197 -> 0 | I26: =InpActive!I$197 -> 0 | J26: =InpActive!J$197 -> 0 | K26: =InpActive!K$197 -> 0 | L26: =InpActive!L$197 -> 0 | M26: =InpActive!M$197 -> 0 | N26: =InpActive!N$197 -> 0 | O26: =InpActive!O$197 -> 0 | P26: =InpActive!P$197 -> 0
E27: =Index!E$43 -> CPI(H): Fin year average - inflate from base year 2017-18 average - CALC | F27: =Index!F$43 -> 0 | G27: =Index!G$43 -> % | H27: =Index!H$43 -> 0 | I27: =Index!I$43 -> 0 | J27: =Index!J$43 -> 1.038621462 | K27: =Index!K$43 -> 1.04693747 | L27: =Index!L$43 -> 1.085399008 | M27: =Index!M$43 -> 1.180633296 | N27: =Index!N$43 -> 1.246121862 | O27: =Index!O$43 -> 1.286182632 | P27: =Index!P$43 -> 1.302174956
E28: Actual Green Recovery Expenditure - WR - real | G28: £m | H28: =SUM(J28:P28) -> 0 | J28: =J26 / J27 -> 0 | K28: =K26 / K27 -> 0 | L28: =L26 / L27 -> 0 | M28: 0 | N28: 0 | O28: 0 | P28: 0
E30: =E28 -> Actual Green Recovery Expenditure - WR - real | F30: =F28 -> 0 | G30: £m | H30: 0 | I30: 0 | J30: 0 | K30: =K28 -> 0 | L30: 0 | M30: 0 | N30: 0 | O30: 0 | P30: 0
E31: =Time!E$54 -> Forecast Period Flag | F31: =Time!F$54 -> 0 | G31: =Time!G$54 -> flag | H31: =Time!H$54 -> 5 | I31: =Time!I$54 -> 0 | J31: =Time!J$54 -> 0 | K31: =Time!K$54 -> 1 | L31: =Time!L$54 -> 1 | M31: =Time!M$54 -> 1 | N31: =Time!N$54 -> 1 | O31: =Time!O$54 -> 1 | P31: =Time!P$54 -> 0
E32: Actual Green Recovery Expenditure for cost sharing - WR - real | G32: £m | H32: =SUM(J32:P32) -> 0 | J32: =J30 * J31 -> 0 | K32: =K30 * K31 -> 0 | L32: 0 | M32: 0 | N32: 0 | O32: 0 | P32: 0
D34: Variance to forecast totex for green recovery expenditure
E35: =E$32 -> Actual Green Recovery Expenditure for cost sharing - WR - real | F35: 0 | G35: £m | H35: 0 | I35: 0 | J35: 0 | K35: 0 | L35: =L$32 -> 0 | M35: 0 | N35: 0 | O35: 0 | P35: 0
E36: =InpActive!E$198 -> Total adjusted cost allowance - WR - real | F36: =InpActive!F$198 -> 0 | G36: =InpActive!G$198 -> £m | H36: =InpActive!H$198 -> 0 | I36: =InpActive!I$198 -> 0 | J36: =InpActive!J$198 -> 0 | K36: =InpActive!K$198 -> 0 | L36: =InpActive!L$198 -> 0 | M36: =InpActive!M$198 -> 0 | N36: =InpActive!N$198 -> 0 | O36: =InpActive!O$198 -> 0 | P36: =InpActive!P$198 -> 0
E37: Variance to green recovery expenditure - WR - real | F37: =H35 - H36 -> 0 | G37: £m | H37: =SUM(J37:P37) -> 0
E39: =E$32 -> Actual Green Recovery Expenditure for cost sharing - WR - real | F39: 0 | G39: £m | H39: 0 | I39: 0 | J39: 0 | K39: 0 | L39: 0 | M39: 0 | N39: 0 | O39: 0 | P39: 0
E40: =E37 -> Variance to green recovery expenditure - WR - real | F40: =F37 -> 0 | G40: =G37 -> £m
E41: Apportioned variance to GRE - WR - real | G41: £m | H41: =SUM(J41:O41) -> 0 | J41: =IF($F$40=0,0, $F$40 * (J39/SUM($K$39:$O$39))) -> 0 | K41: =IF($F$40=0,0, $F$40 * (K39/SUM($K$39:$O$39))) -> 0 | L41: =IF($F$40=0,0, $F$40 * (L39/SUM($K$39:$O$39))) -> 0 | M41: 0 | N41: 0 | O41: 0 | P41: 0
D43: Variance to forecast totex for green recovery expenditure - Time adjusted
E44: =InpActive!E$288 -> Financing cost index | F44: =InpActive!F$288 -> 0 | G44: =InpActive!G$288 -> Index | H44: =InpActive!H$288 -> 0 | I44: =InpActive!I$288 -> 0 | J44: =InpActive!J$288 -> 0 | K44: =InpActive!K$288 -> 4 | L44: =InpActive!L$288 -> 3 | M44: =InpActive!M$288 -> 2 | N44: =InpActive!N$288 -> 1 | O44: =InpActive!O$288 -> 0 | P44: =InpActive!P$288 -> 0
E45: =InpActive!E$290 -> Real WACC CPIH Deflated - WR | F45: =InpActive!F$290 -> 0.0312 | G45: =InpActive!G$290 -> %
E46: Time value of money factor - WR | G46: Factor | J46: =(1+$F45) ^ J44 -> 1 | K46: =(1+$F45) ^ K44 -> 1.130763073 | L46: 1.096550691 | M46: 1.06337344 | N46: 1.0312 | O46: 1 | P46: 1
E48: =E$41 -> Apportioned variance to GRE - WR - real | F48: 0 | G48: £m | H48: 0 | I48: 0 | J48: 0 | K48: 0 | L48: 0 | M48: 0 | N48: 0 | O48: 0 | P48: 0
E49: =E$46 -> Time value of money factor - WR | F49: 0 | G49: Factor | H49: 0 | I49: 0 | J49: 1 | K49: 1.130763073 | L49: 1.096550691 | M49: 1.06337344 | N49: 1.0312 | O49: 1 | P49: 1
E50: Time adjusted variance to green recovery expenditure - WR - real | G50: £m | H50: =SUM(J50:P50) -> 0 | J50: =J48 * J49 -> 0 | K50: =K48 * K49 -> 0 | L50: =L48 * L49 -> 0 | M50: 0 | N50: 0 | O50: 0 | P50: 0
E51: Total variance to green recovery expenditure - WR - real | F51: =$H50 -> 0 | G51: £m
D53: Under / Overperformance on green recovery expenditure
E55: =E$51 -> Total variance to green recovery expenditure - WR - real | F55: =F$51 -> 0 | G55: =G$51 -> £m
E56: =E$21 -> Active Sharing Rate - Green Recovery Underperformance Rate | F56: =F$21 -> 0.5 | G56: %
E57: Active RCV adjustment for cost sharing - Green Recovery Expenditure - WR - Real | F57: =F55 * (1-F56) -> 0 | G57: £m
A60: WATER NETWORK
E62: =InpActive!E$202 -> Actual Green Recovery Expenditure - WN - nominal | F62: =InpActive!F$202 -> 0 | G62: =InpActive!G$202 -> £m | H62: =InpActive!H$202 -> 0 | I62: =InpActive!I$202 -> 0 | J62: =InpActive!J$202 -> 0 | K62: =InpActive!K$202 -> 0 | L62: =InpActive!L$202 -> 0 | M62: =InpActive!M$202 -> 0 | N62: =InpActive!N$202 -> 0 | O62: =InpActive!O$202 -> 0 | P62: =InpActive!P$202 -> 0
E63: =Index!E$43 -> CPI(H): Fin year average - inflate from base year 2017-18 average - CALC | F63: =Index!F$43 -> 0 | G63: =Index!G$43 -> % | H63: =Index!H$43 -> 0 | I63: =Index!I$43 -> 0 | J63: =Index!J$43 -> 1.038621462 | K63: =Index!K$43 -> 1.04693747 | L63: =Index!L$43 -> 1.085399008 | M63: =Index!M$43 -> 1.180633296 | N63: =Index!N$43 -> 1.246121862 | O63: =Index!O$43 -> 1.286182632 | P63: =Index!P$43 -> 1.302174956
E64: Actual Green Recovery Expenditure - WN - real | G64: £m | H64: =SUM(J64:P64) -> 0 | J64: =J62 / J63 -> 0 | K64: =K62 / K63 -> 0 | L64: =L62 / L63 -> 0 | M64: 0 | N64: 0 | O64: 0 | P64: 0
E66: =E64 -> Actual Green Recovery Expenditure - WN - real | F66: =F64 -> 0 | G66: £m | H66: 0 | I66: 0 | J66: 0 | K66: =K64 -> 0 | L66: 0 | M66: 0 | N66: 0 | O66: 0 | P66: 0
E67: =Time!E$54 -> Forecast Period Flag | F67: =Time!F$54 -> 0 | G67: =Time!G$54 -> flag | H67: =Time!H$54 -> 5 | I67: =Time!I$54 -> 0 | J67: =Time!J$54 -> 0 | K67: =Time!K$54 -> 1 | L67: =Time!L$54 -> 1 | M67: =Time!M$54 -> 1 | N67: =Time!N$54 -> 1 | O67: =Time!O$54 -> 1 | P67: =Time!P$54 -> 0
E68: Actual Green Recovery Expenditure for cost sharing - WN - real | G68: £m | H68: =SUM(J68:P68) -> 0 | J68: =J66 * J67 -> 0 | K68: =K66 * K67 -> 0 | L68: 0 | M68: 0 | N68: 0 | O68: 0 | P68: 0
D70: Variance to forecast totex for green recovery expenditure
E71: =E$68 -> Actual Green Recovery Expenditure for cost sharing - WN - real | F71: 0 | G71: £m | H71: 0 | I71: 0 | J71: 0 | K71: 0 | L71: 0 | M71: 0 | N71: 0 | O71: 0 | P71: 0
E72: =InpActive!E$203 -> Total adjusted cost allowance - WN - real | F72: =InpActive!F$203 -> 0 | G72: =InpActive!G$203 -> £m | H72: =InpActive!H$203 -> 0 | I72: =InpActive!I$203 -> 0 | J72: =InpActive!J$203 -> 0 | K72: =InpActive!K$203 -> 0 | L72: =InpActive!L$203 -> 0 | M72: =InpActive!M$203 -> 0 | N72: =InpActive!N$203 -> 0 | O72: =InpActive!O$203 -> 0 | P72: =InpActive!P$203 -> 0
E73: Variance to green recovery expenditure - WN - real | F73: =H71 - H72 -> 0 | G73: £m | H73: =SUM(J73:O73) -> 0
E75: =E$68 -> Actual Green Recovery Expenditure for cost sharing - WN - real | F75: 0 | G75: £m | H75: 0 | I75: 0 | J75: 0 | K75: 0 | L75: 0 | M75: 0 | N75: 0 | O75: 0 | P75: 0
E76: =E73 -> Variance to green recovery expenditure - WN - real | F76: =F73 -> 0 | G76: £m
E77: Apportioned variance to GRE - WN - real | G77: £m | H77: =SUM(J77:O77) -> 0 | J77: =IF($F$76 = 0, 0, $F$76*(J75/SUM($K$75:$O$75))) -> 0 | K77: 0 | L77: 0 | M77: 0 | N77: 0 | O77: 0 | P77: 0
D79: Variance to forecast totex for green recovery expenditure - Time adjusted
E80: =InpActive!E$288 -> Financing cost index | F80: =InpActive!F$288 -> 0 | G80: =InpActive!G$288 -> Index | H80: =InpActive!H$288 -> 0 | I80: =InpActive!I$288 -> 0 | J80: =InpActive!J$288 -> 0 | K80: =InpActive!K$288 -> 4 | L80: =InpActive!L$288 -> 3 | M80: =InpActive!M$288 -> 2 | N80: =InpActive!N$288 -> 1 | O80: =InpActive!O$288 -> 0 | P80: =InpActive!P$288 -> 0
E81: =InpActive!E$291 -> Real WACC CPIH Deflated - WN | F81: =InpActive!F$291 -> 0.0312 | G81: =InpActive!G$291 -> %
E82: Time value of money factor - WN | G82: Factor | J82: =(1+$F81) ^ J80 -> 1 | K82: =(1+$F81) ^ K80 -> 1.130763073 | L82: 1.096550691 | M82: 1.06337344 | N82: 1.0312 | O82: 1 | P82: 1
E84: =E$77 -> Apportioned variance to GRE - WN - real | F84: 0 | G84: £m | H84: 0 | I84: 0 | J84: 0 | K84: 0 | L84: 0 | M84: 0 | N84: 0 | O84: 0 | P84: 0
E85: =E$82 -> Time value of money factor - WN | F85: 0 | G85: Factor | H85: 0 | I85: 0 | J85: 1 | K85: 1.130763073 | L85: 1.096550691 | M85: 1.06337344 | N85: 1.0312 | O85: 1 | P85: 1
E86: Time adjusted variance to green recovery expenditure - WN - real | G86: £m | H86: =SUM(J86:P86) -> 0 | J86: =J84 * J85 -> 0 | K86: =K84 * K85 -> 0 | L86: 0 | M86: =M84 * M85 -> 0 | N86: 0 | O86: 0 | P86: 0
E87: Total variance to green recovery expenditure - WN - real | F87: =$H86 -> 0 | G87: £m
D89: Under / Overperformance on green recovery expenditure
E91: =E$87 -> Total variance to green recovery expenditure - WN - real | F91: =F$87 -> 0 | G91: £m
E92: =E$21 -> Active Sharing Rate - Green Recovery Underperformance Rate | F92: =F$21 -> 0.5 | G92: %
E93: Active RCV adjustment for cost sharing - Green Recovery Expenditure - WN - Real | F93: =F91 * (1-F92) -> 0 | G93: £m
A95: WASTEWATER NETWORK
E97: =InpActive!E$207 -> Actual Green Recovery Expenditure - WWN - nominal | F97: =InpActive!F$207 -> 0 | G97: =InpActive!G$207 -> £m | H97: =InpActive!H$207 -> 0 | I97: =InpActive!I$207 -> 0 | J97: =InpActive!J$207 -> 0 | K97: =InpActive!K$207 -> 0 | L97: =InpActive!L$207 -> 0 | M97: =InpActive!M$207 -> 0 | N97: =InpActive!N$207 -> 0 | O97: =InpActive!O$207 -> 0 | P97: =InpActive!P$207 -> 0
E98: =Index!E$43 -> CPI(H): Fin year average - inflate from base year 2017-18 average - CALC | F98: =Index!F$43 -> 0 | G98: =Index!G$43 -> % | H98: =Index!H$43 -> 0 | I98: =Index!I$43 -> 0 | J98: =Index!J$43 -> 1.038621462 | K98: =Index!K$43 -> 1.04693747 | L98: =Index!L$43 -> 1.085399008 | M98: =Index!M$43 -> 1.180633296 | N98: =Index!N$43 -> 1.246121862 | O98: =Index!O$43 -> 1.286182632 | P98: =Index!P$43 -> 1.302174956
E99: Actual Green Recovery Expenditure - WWN - real | G99: £m | H99: =SUM(J99:P99) -> 0 | J99: =J97 / J98 -> 0 | K99: =K97 / K98 -> 0 | L99: =L97 / L98 -> 0 | M99: 0 | N99: 0 | O99: 0 | P99: 0
E101: =E99 -> Actual Green Recovery Expenditure - WWN - real | F101: =F99 -> 0 | G101: £m | H101: 0 | I101: 0 | J101: 0 | K101: =K99 -> 0 | L101: 0 | M101: 0 | N101: 0 | O101: 0 | P101: 0
E102: =Time!E$54 -> Forecast Period Flag | F102: =Time!F$54 -> 0 | G102: =Time!G$54 -> flag | H102: =Time!H$54 -> 5 | I102: =Time!I$54 -> 0 | J102: =Time!J$54 -> 0 | K102: =Time!K$54 -> 1 | L102: =Time!L$54 -> 1 | M102: =Time!M$54 -> 1 | N102: =Time!N$54 -> 1 | O102: =Time!O$54 -> 1 | P102: =Time!P$54 -> 0
E103: Actual Green Recovery Expenditure for cost sharing - WWN - real | G103: £m | H103: =SUM(J103:P103) -> 0 | J103: =J101 * J102 -> 0 | K103: =K101 * K102 -> 0 | L103: 0 | M103: 0 | N103: 0 | O103: 0 | P103: 0
D105: Variance to forecast totex for green recovery expenditure
E106: =E$103 -> Actual Green Recovery Expenditure for cost sharing - WWN - real | F106: 0 | G106: £m | H106: 0 | I106: 0 | J106: 0 | K106: 0 | L106: 0 | M106: 0 | N106: 0 | O106: 0 | P106: 0
E107: =InpActive!E$208 -> Total adjusted cost allowance - WWN - real | F107: =InpActive!F$208 -> 0 | G107: =InpActive!G$208 -> £m | H107: =InpActive!H$208 -> 0 | I107: =InpActive!I$208 -> 0 | J107: =InpActive!J$208 -> 0 | K107: =InpActive!K$208 -> 0 | L107: =InpActive!L$208 -> 0 | M107: =InpActive!M$208 -> 0 | N107: =InpActive!N$208 -> 0 | O107: =InpActive!O$208 -> 0 | P107: =InpActive!P$208 -> 0
E108: Variance to green recovery expenditure - WWN - real | F108: =H106 - H107 -> 0 | G108: £m
E110: =E$106 -> Actual Green Recovery Expenditure for cost sharing - WWN - real | F110: 0 | G110: £m | H110: 0 | I110: 0 | J110: 0 | K110: 0 | L110: 0 | M110: 0 | N110: 0 | O110: 0 | P110: 0
E111: =E108 -> Variance to green recovery expenditure - WWN - real | F111: =F108 -> 0 | G111: £m
E112: Apportioned variance to GRE - WWN - real | G112: £m | H112: =SUM(J112:O112) -> 0 | J112: =IF($F$111 = 0, 0, $F$111*(J110/SUM($K$110:$O$110))) -> 0 | K112: 0 | L112: 0 | M112: 0 | N112: 0 | O112: 0 | P112: 0
D115: Variance to forecast totex for green recovery expenditure - Time adjusted
E116: =InpActive!E$288 -> Financing cost index | F116: =InpActive!F$288 -> 0 | G116: =InpActive!G$288 -> Index | H116: =InpActive!H$288 -> 0 | I116: =InpActive!I$288 -> 0 | J116: =InpActive!J$288 -> 0 | K116: =InpActive!K$288 -> 4 | L116: =InpActive!L$288 -> 3 | M116: =InpActive!M$288 -> 2 | N116: =InpActive!N$288 -> 1 | O116: =InpActive!O$288 -> 0 | P116: =InpActive!P$288 -> 0
E117: =InpActive!E$292 -> Real WACC CPIH Deflated - WWN | F117: =InpActive!F$292 -> 0.0312 | G117: =InpActive!G$292 -> %
E118: Time value of money factor - WWN | G118: Factor | J118: =(1+$F117) ^ J116 -> 1 | K118: =(1+$F117) ^ K116 -> 1.130763073 | L118: =(1+$F117) ^ L116 -> 1.096550691 | M118: 1.06337344 | N118: 1.0312 | O118: 1 | P118: 1
E120: =E112 -> Apportioned variance to GRE - WWN - real | F120: =F112 -> 0 | G120: £m | H120: 0 | I120: 0 | J120: 0 | K120: =K112 -> 0 | L120: 0 | M120: 0 | N120: 0 | O120: 0 | P120: 0
E121: =E$118 -> Time value of money factor - WWN | F121: 0 | G121: Factor | H121: 0 | I121: 0 | J121: 1 | K121: 1.130763073 | L121: 1.096550691 | M121: 1.06337344 | N121: 1.0312 | O121: 1 | P121: 1
E122: Time adjusted variance to green recovery expenditure - WWN - real | G122: £m | H122: =SUM(J122:P122) -> 0 | J122: =J120 * J121 -> 0 | K122: =K120 * K121 -> 0 | L122: 0 | M122: 0 | N122: 0 | O122: 0 | P122: 0
E123: Total variance to green recovery expenditure - WWN - real | F123: =$H122 -> 0 | G123: £m
D125: Under / Overperformance on green recovery expenditure
E127: =E$123 -> Total variance to green recovery expenditure - WWN - real | F127: =F$123 -> 0 | G127: £m
E128: =E$21 -> Active Sharing Rate - Green Recovery Underperformance Rate | F128: =F$21 -> 0.5 | G128: %
E129: Active RCV adjustment for cost sharing - Green Recovery Expenditure - WWN - Real | F129: =F127 * (1-F128) -> 0 | G129: £m
A131: END OF SHEET

Sheet Outputs-->

Sheet Outputs
A1: =RIGHT(CELL("filename", $A$1), LEN(CELL("filename", $A$1)) - SEARCH("]", CELL("filename", $A$1))) -> Outputs
E2: =Time!E$22 -> Model Period BEG | J2: =Time!J$22 -> 2019-04-01 | K2: =Time!K$22 -> 2020-04-01 | L2: =Time!L$22 -> 2021-04-01 | M2: =Time!M$22 -> 2022-04-01 | N2: =Time!N$22 -> 2023-04-01 | O2: =Time!O$22 -> 2024-04-01 | P2: =Time!P$22 -> 2025-04-01
E3: =Time!E$23 -> Model Period END | F3: =Check!F$8 -> 0 | G3: Error chks | J3: =Time!J$23 -> 2020-03-31 | K3: =Time!K$23 -> 2021-03-31 | L3: =Time!L$23 -> 2022-03-31 | M3: =Time!M$23 -> 2023-03-31 | N3: =Time!N$23 -> 2024-03-31 | O3: =Time!O$23 -> 2025-03-31 | P3: =Time!P$23 -> 2026-03-31
E4: =Time!E$59 -> Pre Forecast vs Forecast | J4: =Time!J$59 -> Pre Fcst | K4: =Time!K$59 -> Forecast | L4: =Time!L$59 -> Forecast | M4: =Time!M$59 -> Forecast | N4: =Time!N$59 -> Forecast | O4: =Time!O$59 -> Forecast | P4: =Time!P$59 -> Post-Fcst
E5: =Time!E$101 -> Financial Year Ending | J5: =Time!J$101 -> 2020 | K5: =Time!K$101 -> 2021 | L5: =Time!L$101 -> 2022 | M5: =Time!M$101 -> 2023 | N5: =Time!N$101 -> 2024 | O5: =Time!O$101 -> 2025 | P5: =Time!P$101 -> 2026
E6: =Time!E$11 -> Model column counter | F6: Constant | G6: Unit | H6: Total | J6: =Time!J$11 -> 1 | K6: =Time!K$11 -> 2 | L6: =Time!L$11 -> 3 | M6: =Time!M$11 -> 4 | N6: =Time!N$11 -> 5 | O6: =Time!O$11 -> 6 | P6: =Time!P$11 -> 7
A8: WATER RESOURCES
B10: Cost sharing
E11: ='Cost sharing calculations'!E$180 -> Total adjustment for cost sharing after ex ante allowance & wage adjustment - WR - Real | F11: ='Cost sharing calculations'!F$180 -> 3.003793863 | G11: ='Cost sharing calculations'!G$180 -> £m
E12: ='Cost sharing calculations'!E$198 -> Wholesaler bad debt adjustment - WR | F12: ='Cost sharing calculations'!F$198 -> 0 | G12: ='Cost sharing calculations'!G$198 -> £m
E13: ='Cost sharing calculations'!E$208 -> Cost sharing revenue adjustment - WR - Real | F13: ='Cost sharing calculations'!F$208 -> 2.390387708 | G13: ='Cost sharing calculations'!G$208 -> £m
E14: ='Cost sharing calculations'!E$212 -> Cost sharing RCV adjustment - WR - Real | F14: ='Cost sharing calculations'!F$212 -> 0.6134061551 | G14: ='Cost sharing calculations'!G$212 -> £m
E15: Water Resources cost sharing 100% check | F15: =IF(SUM(F11:F12) <> SUM(F13:F14), 1, 0) -> 0 | G15: Check
B17: Abstraction & Business Rates uncertainty mechanism
E18: ='Abstraction & Rates'!E82 -> Active adjustment for abstraction charges & business rates uncertainty mechanism - WR - Real | F18: ='Abstraction & Rates'!F82 -> -8.091194735 | G18: ='Abstraction & Rates'!G82 -> £m
E19: ='Abstraction & Rates'!E86 -> Revenue adjustment business rates and abstraction - WR - Real | F19: ='Abstraction & Rates'!F86 -> -6.438888059 | G19: ='Abstraction & Rates'!G86 -> £m
E20: ='Abstraction & Rates'!E90 -> RCV adjustment business rates and abstraction - WR - Real | F20: ='Abstraction & Rates'!F90 -> -1.652306676 | G20: ='Abstraction & Rates'!G90 -> £m
B22: Revenue adjustment
E23: ='Cost sharing calculations'!E$208 -> Cost sharing revenue adjustment - WR - Real | F23: ='Cost sharing calculations'!F$208 -> 2.390387708 | G23: ='Cost sharing calculations'!G$208 -> £m
E24: ='Abstraction & Rates'!E86 -> Revenue adjustment business rates and abstraction - WR - Real | F24: ='Abstraction & Rates'!F86 -> -6.438888059 | G24: ='Abstraction & Rates'!G86 -> £m
E25: Total Revenue adjustment for cost sharing - WR - Real | F25: =SUM(F23:F24) -> -4.048500351 | G25: £m
B27: RCV adjustment
E28: ='Cost sharing calculations'!E$212 -> Cost sharing RCV adjustment - WR - Real | F28: ='Cost sharing calculations'!F$212 -> 0.6134061551 | G28: ='Cost sharing calculations'!G$212 -> £m
E29: ='Abstraction & Rates'!E90 -> RCV adjustment business rates and abstraction - WR - Real | F29: ='Abstraction & Rates'!F90 -> -1.652306676 | G29: ='Abstraction & Rates'!G90 -> £m
E30: ='Green Recovery'!E$57 -> Active RCV adjustment for cost sharing - Green Recovery Expenditure - WR - Real | F30: ='Green Recovery'!F$57 -> 0 | G30: ='Green Recovery'!G$57 -> £m
E31: Total RCV adjustment for cost sharing - WR - Real | F31: =SUM(F28:F30) -> -1.038900521 | G31: £m
A34: WATER NETWORK
B36: Cost sharing
E37: ='Cost sharing calculations'!E$347 -> Total adjustment for cost sharing after ex ante allowance - WN - Real | F37: ='Cost sharing calculations'!F$347 -> 181.9897013 | G37: ='Cost sharing calculations'!G$347 -> £m
E38: ='Cost sharing calculations'!E$365 -> Wholesaler bad debt adjustment - WN | F38: ='Cost sharing calculations'!F$365 -> 0 | G38: ='Cost sharing calculations'!G$365 -> £m
E39: ='Cost sharing calculations'!E$375 -> Cost sharing revenue adjustment - WN - Real | F39: ='Cost sharing calculations'!F$375 -> 94.51641656 | G39: ='Cost sharing calculations'!G$375 -> £m
E40: ='Cost sharing calculations'!E$379 -> Cost sharing RCV adjustment - WN - Real | F40: ='Cost sharing calculations'!F$379 -> 87.47328471 | G40: ='Cost sharing calculations'!G$379 -> £m
E41: Water Network cost sharing 100% check | F41: =IF(SUM(F37:F38) <> SUM(F39:F40), 1, 0) -> 0 | G41: Check
B43: Abstraction & Business Rates uncertainty mechanism
E44: ='Abstraction & Rates'!E$166 -> Active adjustment for abstraction charges & business rates uncertainty mechanism - WR - Real | F44: ='Abstraction & Rates'!F$166 -> -23.67433214 | G44: ='Abstraction & Rates'!G$166 -> £m
E45: ='Abstraction & Rates'!E$170 -> Revenue adjustment business rates and abstraction - WN - Real | F45: ='Abstraction & Rates'!F$170 -> -12.29527288 | G45: ='Abstraction & Rates'!G$170 -> £m
E46: ='Abstraction & Rates'!E$174 -> RCV adjustment business rates and abstraction - WN - Real | F46: ='Abstraction & Rates'!F$174 -> -11.37905926 | G46: ='Abstraction & Rates'!G$174 -> £m
B48: Revenue adjustment
E49: ='Cost sharing calculations'!E$375 -> Cost sharing revenue adjustment - WN - Real | F49: ='Cost sharing calculations'!F$375 -> 94.51641656 | G49: ='Cost sharing calculations'!G$375 -> £m
E50: ='Abstraction & Rates'!E170 -> Revenue adjustment business rates and abstraction - WN - Real | F50: ='Abstraction & Rates'!F170 -> -12.29527288 | G50: ='Abstraction & Rates'!G170 -> £m
E51: Total Revenue adjustment for cost sharing - WN - Real | F51: =SUM(F49:F50) -> 82.22114369 | G51: £m
B53: RCV adjustment
E54: ='Cost sharing calculations'!E$379 -> Cost sharing RCV adjustment - WN - Real | F54: ='Cost sharing calculations'!F$379 -> 87.47328471 | G54: ='Cost sharing calculations'!G$379 -> £m
E55: ='Abstraction & Rates'!E174 -> RCV adjustment business rates and abstraction - WN - Real | F55: ='Abstraction & Rates'!F174 -> -11.37905926 | G55: ='Abstraction & Rates'!G174 -> £m
E56: ='Green Recovery'!E93 -> Active RCV adjustment for cost sharing - Green Recovery Expenditure - WN - Real | F56: ='Green Recovery'!F93 -> 0 | G56: ='Green Recovery'!G93 -> £m
E57: Total RCV adjustment for cost sharing - WN - Real | F57: =SUM(F54:F56) -> 76.09422545 | G57: £m
A60: WASTEWATER NETWORK
B62: Cost sharing
E63: ='Cost sharing calculations'!E$520 -> Total adjustment for cost sharing after ex ante allowance - WWN - Real | F63: ='Cost sharing calculations'!F$520 -> -46.65067131 | G63: ='Cost sharing calculations'!G$520 -> £m
E64: ='Cost sharing calculations'!E$538 -> Wholesaler bad debt adjustment - WWN | F64: ='Cost sharing calculations'!F$538 -> 0 | G64: ='Cost sharing calculations'!G$538 -> £m
E65: ='Cost sharing calculations'!E$548 -> Cost sharing revenue adjustment - WWN - Real | F65: ='Cost sharing calculations'!F$548 -> -19.52803129 | G65: ='Cost sharing calculations'!G$548 -> £m
E66: ='Cost sharing calculations'!E$552 -> Cost sharing RCV adjustment - WWN - Real | F66: ='Cost sharing calculations'!F$552 -> -27.12264002 | G66: ='Cost sharing calculations'!G$552 -> £m
E67: Wastewater Network cost sharing 100% check | F67: =IF(SUM(F63:F64) <> SUM(F65:F66), 1, 0) -> 0 | G67: Check
B69: Abstraction & Business Rates uncertainty mechanism
E70: ='Abstraction & Rates'!E$211 -> Active adjustment for business rates uncertainty mechanism - WWN - Real | F70: ='Abstraction & Rates'!F$211 -> -3.739795369 | G70: ='Abstraction & Rates'!G$211 -> £m
E71: ='Abstraction & Rates'!E$215 -> Revenue adjustment business rates - WWN - Real | F71: ='Abstraction & Rates'!F$215 -> -1.565483174 | G71: ='Abstraction & Rates'!G$215 -> £m
E72: ='Abstraction & Rates'!E$219 -> RCV adjustment business rates - WWN - Real | F72: ='Abstraction & Rates'!F$219 -> -2.174312196 | G72: ='Abstraction & Rates'!G$219 -> £m
B74: Revenue adjustment
E75: ='Cost sharing calculations'!E$548 -> Cost sharing revenue adjustment - WWN - Real | F75: ='Cost sharing calculations'!F$548 -> -19.52803129 | G75: ='Cost sharing calculations'!G$548 -> £m
E76: ='Abstraction & Rates'!E215 -> Revenue adjustment business rates - WWN - Real | F76: ='Abstraction & Rates'!F215 -> -1.565483174 | G76: ='Abstraction & Rates'!G215 -> £m
E77: Total Revenue adjustment for cost sharing - WWN - Real | F77: =SUM(F75:F76) -> -21.09351446 | G77: £m
B79: RCV adjustment
E80: ='Cost sharing calculations'!E$552 -> Cost sharing RCV adjustment - WWN - Real | F80: ='Cost sharing calculations'!F$552 -> -27.12264002 | G80: ='Cost sharing calculations'!G$552 -> £m
E81: ='Abstraction & Rates'!E219 -> RCV adjustment business rates - WWN - Real | F81: ='Abstraction & Rates'!F219 -> -2.174312196 | G81: ='Abstraction & Rates'!G219 -> £m
E82: ='Green Recovery'!E$129 -> Active RCV adjustment for cost sharing - Green Recovery Expenditure - WWN - Real | F82: ='Green Recovery'!F$129 -> 0 | G82: ='Green Recovery'!G$129 -> £m
E83: Total RCV adjustment for cost sharing - WWN - Real | F83: =SUM(F80:F82) -> -29.29695222 | G83: £m
A85: BIORESOURCES
B87: Wage growth adjustment
E88: =Bioresources!E$55 -> Total adjustment for wage related totex - BIO - Real | F88: =Bioresources!F$55 -> -2.263248098 | G88: =Bioresources!G$55 -> £m
B90: Abstraction & Business Rates uncertainty mechanism
E91: ='Abstraction & Rates'!E$256 -> Active adjustment for business rates uncertainty mechanism - BIO - Real | F91: ='Abstraction & Rates'!F$256 -> 0.9580093915 | G91: ='Abstraction & Rates'!G$256 -> £m
E92: ='Abstraction & Rates'!E$260 -> Revenue adjustment business rates - BIO - Real | F92: ='Abstraction & Rates'!F$260 -> 0.7933220624 | G92: ='Abstraction & Rates'!G$260 -> £m
E93: ='Abstraction & Rates'!E$264 -> RCV adjustment business rates - BIO - Real | F93: ='Abstraction & Rates'!F$264 -> 0.1646873291 | G93: ='Abstraction & Rates'!G$264 -> £m
B95: Revenue adjustment
E96: =Bioresources!E91 -> Cost sharing Revenue adjustment - BIO - Real | F96: =Bioresources!F91 -> -1.874182722 | G96: =Bioresources!G91 -> £m
E97: ='Abstraction & Rates'!E260 -> Revenue adjustment business rates - BIO - Real | F97: ='Abstraction & Rates'!F260 -> 0.7933220624 | G97: ='Abstraction & Rates'!G260 -> £m
E98: Total Revenue adjustment for cost sharing - BIO - Real | F98: =SUM(F96:F97) -> -1.08086066 | G98: £m
B100: RCV adjustment
E101: =Bioresources!E95 -> Cost sharing RCV adjustment - BIO - Real | F101: =Bioresources!F95 -> -0.3890653762 | G101: =Bioresources!G95 -> £m
E102: ='Abstraction & Rates'!E264 -> RCV adjustment business rates - BIO - Real | F102: ='Abstraction & Rates'!F264 -> 0.1646873291 | G102: ='Abstraction & Rates'!G264 -> £m
E103: Total RCV adjustment for cost sharing - BIO - Real | F103: =SUM(F101:F102) -> -0.2243780471 | G103: £m
A106: TIDEWAY
B108: Revenue adjustment
E109: ='Thames Tideway Tunnel'!E120 -> Cost sharing revenue adjustment - TTT - Real | F109: ='Thames Tideway Tunnel'!F120 -> 0 | G109: ='Thames Tideway Tunnel'!G120 -> £m
B111: RCV adjustment
E112: ='Thames Tideway Tunnel'!E124 -> Cost sharing RCV adjustment - TTT - Real | F112: ='Thames Tideway Tunnel'!F124 -> 0 | G112: ='Thames Tideway Tunnel'!G124 -> £m
A115: END OF SHEET

Sheet F_Outputs
C1: PR24PD14_OUT
A2: Acronym | B2: Reference | C2: Item description | D2: Unit | E2: Model | F2: 2024-25
B4: C_PR24PD14_PD11_13WR_PR24 | C4: PR19 Costs reconciliation RCV adjustment in 2017-18 FYA (CPIH deflated) prices (WR) | D4: £m | E4: Price Review 2024 | F4: =Outputs!F31 -> -1.038900521
B5: C_PR24PD14_PD11_13WN_PR24 | C5: PR19 Costs reconciliation RCV adjustment in 2017-18 FYA (CPIH deflated) prices (WN) | D5: £m | E5: Price Review 2024 | F5: =Outputs!F57 -> 76.09422545
B6: C_PR24PD14_PD11_13WWN_PR24 | C6: PR19 Costs reconciliation RCV adjustment in 2017-18 FYA (CPIH deflated) prices (WWN) | D6: £m | E6: Price Review 2024 | F6: =Outputs!F83 -> -29.29695222
B7: C_PR24PD14_PD11_13BIO_PR24 | C7: PR19 Costs reconciliation RCV adjustment in 2017-18 FYA (CPIH deflated) prices (BR) | D7: £m | E7: Price Review 2024 | F7: =Outputs!F103 -> -0.2243780471
B8: C_PR24PD14_PD11_13ADDN1_PR24 | C8: PR19 Costs reconciliation RCV adjustment in 2017-18 FYA (CPIH deflated) prices (ADDN1) | D8: £m | E8: Price Review 2024 | F8: =Outputs!F112 -> 0
B9: C_PR24PD14_PD11_13ADDN2_PR24 | C9: PR19 Costs reconciliation RCV adjustment in 2017-18 FYA (CPIH deflated) prices (ADDN2) | D9: £m | E9: Price Review 2024
B10: C_PR24PD14_PD12_28WR_PR24 | C10: PR19 Totex costs revenue adjustment in 2017-18 FYA (CPIH deflated) prices (WR) | D10: £m | E10: Price Review 2024 | F10: =Outputs!F25 -> -4.048500351
B11: C_PR24PD14_PD12_28WN_PR24 | C11: PR19 Totex costs revenue adjustment in 2017-18 FYA (CPIH deflated) prices (WN) | D11: £m | E11: Price Review 2024 | F11: =Outputs!F51 -> 82.22114369
B12: C_PR24PD14_PD12_28WWN_PR24 | C12: PR19 Totex costs revenue adjustment in 2017-18 FYA (CPIH deflated) prices (WWN) | D12: £m | E12: Price Review 2024 | F12: =Outputs!F77 -> -21.09351446
B13: C_PR24PD14_PD12_28BIO_PR24 | C13: PR19 Totex costs revenue adjustment in 2017-18 FYA (CPIH deflated) prices (BR) | D13: £m | E13: Price Review 2024 | F13: =Outputs!F98 -> -1.08086066
B14: C_PR24PD14_PD12_28ADDN1_PR24 | C14: PR19 Totex costs revenue adjustment in 2017-18 FYA (CPIH deflated) prices (ADDN1) | D14: £m | E14: Price Review 2024 | F14: =Outputs!F109 -> 0
B15: C_PR24PD14_PD12_28ADDN2_PR24 | C15: PR19 Totex costs revenue adjustment in 2017-18 FYA (CPIH deflated) prices (ADDN2) | D15: £m | E15: Price Review 2024
B16: PR24QA_PR24PD14_OUT1 | C16: Date & Time for Model - PR24PD14 | D16: Text | E16: Price Review 2024 | F16: =CONCATENATE("[…]", TEXT(NOW(),"dd/mm/yyy hh:mm:ss")) -> […]18/07/2025 08:30:27
B17: PR24QA_PR24PD14_OUT2 | C17: Name of Model - PR24PD14 | D17: Text | E17: Price Review 2024 | F17: =MID(CELL("filename"),SEARCH("[",CELL("filename"))+1,SEARCH("]",CELL("filename"))-SEARCH("[",CELL("filename"))-1) -> PR24-FD-PD14-Cost-sharing-reconciliation-ANH_BYA_Final.xlsm
B18: PR24QA_PR24PD14_OUT3 | C18: F_Inputs time stamp - PR24PD14 | D18: Text | E18: Price Review 2024 | F18: =F_Inputs!$E$1 -> Run on 25 Oct 2024 15:07
B19: PR24QA_PR24PD14_OUT4 | C19: Model override switch for - PR24PD14 | D19: nr | E19: Price Review 2024 | F19: 0

Sheet Integrity checks-->

Sheet Check
A1: =RIGHT(CELL("filename", $A$1), LEN(CELL("filename", $A$1)) - SEARCH("]", CELL("filename", $A$1))) -> Check
E2: =Time!E$22 -> Model Period BEG | J2: =Time!J$22 -> 2019-04-01 | K2: =Time!K$22 -> 2020-04-01 | L2: =Time!L$22 -> 2021-04-01 | M2: =Time!M$22 -> 2022-04-01 | N2: =Time!N$22 -> 2023-04-01 | O2: =Time!O$22 -> 2024-04-01 | P2: =Time!P$22 -> 2025-04-01
E3: =Time!E$23 -> Model Period END | F3: =Check!F$8 -> 0 | G3: Error chks | J3: =Time!J$23 -> 2020-03-31 | K3: =Time!K$23 -> 2021-03-31 | L3: =Time!L$23 -> 2022-03-31 | M3: =Time!M$23 -> 2023-03-31 | N3: =Time!N$23 -> 2024-03-31 | O3: =Time!O$23 -> 2025-03-31 | P3: =Time!P$23 -> 2026-03-31
E4: =Time!E$59 -> Pre Forecast vs Forecast | J4: =Time!J$59 -> Pre Fcst | K4: =Time!K$59 -> Forecast | L4: =Time!L$59 -> Forecast | M4: =Time!M$59 -> Forecast | N4: =Time!N$59 -> Forecast | O4: =Time!O$59 -> Forecast | P4: =Time!P$59 -> Post-Fcst
E5: =Time!E$101 -> Financial Year Ending | J5: =Time!J$101 -> 2020 | K5: =Time!K$101 -> 2021 | L5: =Time!L$101 -> 2022 | M5: =Time!M$101 -> 2023 | N5: =Time!N$101 -> 2024 | O5: =Time!O$101 -> 2025 | P5: =Time!P$101 -> 2026
E6: =Time!E$11 -> Model column counter | F6: Constant | G6: Unit | H6: Total | J6: =Time!J$11 -> 1 | K6: =Time!K$11 -> 2 | L6: =Time!L$11 -> 3 | M6: =Time!M$11 -> 4 | N6: =Time!N$11 -> 5 | O6: =Time!O$11 -> 6 | P6: =Time!P$11 -> 7
E8: Total error checks | F8: =SUM(F10:F23) -> 0 | G8: check
A10: [Do not delete]
E12: ='Cost sharing calculations'!E63 -> WR Totex profile 100% check | F12: ='Cost sharing calculations'!F63 -> 0 | G12: ='Cost sharing calculations'!G63 -> Check
E13: ='Cost sharing calculations'!E116 -> WR Totex profile - Cost sharing 100% check | F13: ='Cost sharing calculations'!F116 -> 0 | G13: ='Cost sharing calculations'!G116 -> Check
E14: ='Cost sharing calculations'!E230 -> WN Totex profile - Base costs 100% check | F14: ='Cost sharing calculations'!F230 -> 0 | G14: ='Cost sharing calculations'!G230 -> Check
E15: ='Cost sharing calculations'!E283 -> WN Totex profile - Cost Sharing 100% check | F15: ='Cost sharing calculations'!F283 -> 0 | G15: ='Cost sharing calculations'!G283 -> Check
E16: ='Cost sharing calculations'!E398 -> WWN Totex profile 100% check | F16: ='Cost sharing calculations'!F398 -> 0 | G16: ='Cost sharing calculations'!G398 -> Check
E17: ='Cost sharing calculations'!E451 -> WWN Totex profile - Cost Sharing 100% check | F17: ='Cost sharing calculations'!F451 -> 0 | G17: ='Cost sharing calculations'!G451 -> Check
E18: =Bioresources!E24 -> WWN Totex profile 100% check | F18: =Bioresources!F24 -> 0 | G18: =Bioresources!G24 -> Check
E19: =Outputs!E15 -> Water Resources cost sharing 100% check | F19: =Outputs!F15 -> 0 | G19: =Outputs!G15 -> Check
E20: =Outputs!E41 -> Water Network cost sharing 100% check | F20: =Outputs!F41 -> 0 | G20: =Outputs!G41 -> Check
E21: =Outputs!E67 -> Wastewater Network cost sharing 100% check | F21: =Outputs!F67 -> 0 | G21: =Outputs!G67 -> Check
A23: [Do not delete]
A25: END OF SHEET
